Workbook

Sheet Informatie
A3: Eindstand van de Subtopselecties voor het Indoorkampioenschap 2018
A5: Heb je vragen over de selectie, mail dan naar: subtop@knhs.nl
A6: Inschrijven
A7: Je moet je nog wel even inschrijven voor het KNHS-Indoorkampioenschap waarvoor je geselecteerd bent. Dit kan via Mijn KNHS (www.mijnknhs.nl). Let hierbij op dat je dit doet voor de sluitingsdatum. Op www.knhsindoorkampioenschappen.nl vind je alle infornatie over de kampioenschappen waaronder het vraagprogramma waarin de sluitingsdatum per kampioenschap vermeld staat. Zodra de sluitingsdatum is verlopen voeren wij controles uit op de startgerechtigdheid van alle deelnemers. Nadat deze zijn voltooid wordt je inschrijving in Mijn KNHS op ‘definitief’ gezet.
A9: Stalling
A10: Je hebt de mogelijkheid om een stal te reserveren op het KNHS-centrum. De kosten hiervoor bedragen € 27,50 per stal per dag. Reserveren kan vanaf 25 januari tot 14 dagen voor het kampioenschap via de kalender van ‘Opleidingen en Evenementen’ in Mijn KNHS.
A12: Omdat het aantal stallen beperkt is zal de vraag groter zijn dan het aantal beschikbare stallen. In de omgeving van het KNHS-centrum zijn meerdere locaties waar stallen gereserveerd kunnen worden. Is er geen stal meer beschikbaar dan kun je contact opnemen met de afdeling eventmanagement (eventmanagement@knhs.nl) voor gegevens over alternatieve stallings- en overnachtingsmogelijkheden.
A14: Afmelden
A15: Wanneer je niet kunt deelnemen aan het KNHS-Indoorkampioenschap vragen we je dit zo spoedig mogelijk per e-mail door te geven aan het bestuur van jouw regio én aan de afdeling eventmanagement van de KNHS, via afmelding@knhs.nl. Wij kunnen dan een reservecombinatie blij maken. Reservecombinaties worden opgeroepen tot 48 uur voorafgaand aan het kampioenschap.
A17: Houd er rekening mee dat je als geselecteerde combinatie voor het KNHS-Indoorkampioenschap, niet mag uitkomen op andere wedstrijden op de dag van het kampioenschap, ook niet na afmelding.

Sheet ZZZ
A1: Selectie uitslagen
C2: 1 | D2: =FLOOR((C2+3)/4,1) -> 1 | H2: 192 | I2: 190 | J2: =H2+I2 -> 382 | N2: 1 | P2: 193 | Q2: 193 | R2: =P2+Q2 -> 386 | V2: 2 | X2: 198 | Y2: 198 | Z2: =X2+Y2 -> 396 | AD2: 3 | AF2: 177 | AG2: 177 | AH2: =AF2+AG2 -> 354 | AL2: 4 | AN2: 178 | AO2: 178 | AP2: =AN2+AO2 -> 356 | AT2: 5 | AV2: 179 | AW2: 179 | AX2: =AV2+AW2 -> 358 | BB2: 6 | BC2: =N2+V2+AD2+AL2+AT2+BB2 -> 21 | BD2: =J2+R2+Z2+AH2+AP2+AX2 -> 2232 | BE2: =IF($O$4>0,(LARGE(($N2,$V2,$AD2,$AL2,$AT2,$BB2),1)),"0") -> 6 | BF2: =IF($O$4>0,(LARGE(($N2,$V2,$AD2,$AL2,$AT2,$BB2),2)),"0") -> 5 | BG2: 354 | BH2: 354 | BI2: =BC2-BE2-BF2 -> 10 | BJ2: =BD2-BG2-BH2 -> 1524
A3: Kring: | C3: =Instellingen!B3 -> Selectie Subtop | F3: Aantal afvaardiging Regiokampioenschappen: | O3: 16 | BC3: Aantal wedstrijden: | BL3: =Instellingen!B6 -> 3
A4: Klasse: | C4: ZZZ | F4: Aantal afval resultaten: | O4: =Instellingen!B7 -> 1
A5: Cat.: | F5: Plaatsingspunten niet gestart: | O5: =Instellingen!B5 -> 99 | BC5: Aantal reserves: | BL5: 10
F6: Lokatie: | G6: =Instellingen!B36 -> Delft/Werkendam/Harich | O6: =Instellingen!B37 -> uden/Emmeloord/Den Hoorn | W6: =Instellingen!B38 -> Nw. en St. Joosland/Boxtel/Bunschoten-Spakenburg | AE6: =Instellingen!B39 ->  | AM6: =Instellingen!B40 ->  | AU6: =Instellingen!B41 ->  | BC6: Dressuur | BI6: Pnt. 60% regel | BL6: 210
F7: Datum: | G7: =Instellingen!C36 -> 18 & 19 -11-2017 | O7: =Instellingen!C37 -> 16 & 17 -12 -2017 | W7: =Instellingen!C38 -> 20 en 21-1-2018 | AE7: =Instellingen!C39 ->  | AM7: =Instellingen!C40 ->  | AU7: =Instellingen!C41 ->  | BC7: Tot. | BD7: Tot. | BE7: afval | BF7: afval | BG7: afval | BH7: afval | BI7: Beste | BJ7: Beste
A8: Pl. | B8: Comb.nr. | C8: Ruiter/amazone | D8: Paard/pony | E8: kl. | F8: vereniging | G8: Ring | H8: pnt.C | I8: pnt.H | J8: pnt.tot | K8: ex 1 | L8: ex 2 | M8: pl. | N8: pl.p. | O8: Ring | P8: pnt.C | Q8: pnt.H | R8: pnt.tot. | S8: ex 1 | T8: ex 2 | U8: pl. | V8: pl.p. | W8: Ring | X8: pnt.C | Y8: pnt. H | Z8: pnt.tot. | AA8: ex 1 | AB8: ex 2 | AC8: pl. | AD8: pl.p. | AE8: Ring | AF8: pnt.C | AG8: pnt.H | AH8: pnt.tot. | AI8: ex 1 | AJ8: ex 2 | AK8: pl. | AL8: pl.p. | AM8: Ring | AN8: pnt.C | AO8: pnt.H | AP8: pnt.tot. | AQ8: ex 1 | AR8: ex 2 | AS8: pl. | AT8: pl.p. | AU8: Ring | AV8: pnt.C | AW8: pnt.H | AX8: pnt.tot. | AY8: ex 1 | AZ8: ex 2 | BA8: pl. | BB8: pl.p. | BC8: pl.pnt | BD8: punten | BE8: pl.pnt | BF8: pl.pnt | BG8: punten | BH8: punten | BI8: pl.pnt | BJ8: punten | BK8: Afv. | BL8: Res. | BM8: Afv. Regio | BN8: opmerking
B9: 810857SB | C9: Kirsten Brouwer | D9: Sultan des Paluds | E9: ZZZ | F9: Voornruiters, RV. De | J9: =H9+I9 -> 0 | M9: 0 | N9: 99 | O9: 1 | P9: 260 | Q9: 266,5 | R9: =P9+Q9 -> 526.5 | U9: =VLOOKUP(V9,Blad1!A:C,2,0) -> 20 | V9: 1 | X9: 261 | Y9: 269 | Z9: =X9+Y9 -> 530 | AC9: =VLOOKUP(AD9,Blad1!A:C,2,0) -> 20 | AD9: 1 | BC9: =M9+U9+AC9+AL9+AT9+BB9 -> 40 | BD9: =J9+R9+Z9+AH9+AP9+AX9 -> 1056.5 | BE9: =IF($O$4>0,(SMALL(($M9,$U9,$AC9),1)),"0") -> 0 | BI9: =BC9-BE9-BF9 -> 40 | BJ9: =BD9-BG9-BH9 -> 1056.5 | BK9: 1 | BO9: =IF(COUNT(M9,U9,AC9)>1,"ja","nee") -> ja
B10: 800195GN | C10: Jeanine Nieuwenhuis | D10: Genua TC | E10: ZZZ | F10: Oud-beijerland, RV. | H10: 254,5 | I10: 241 | J10: =H10+I10 -> 495.5 | M10: =VLOOKUP(N10,Blad1!A:C,2,0) -> 20 | N10: 1 | O10: 1 | P10: 235 | Q10: 262,5 | R10: =P10+Q10 -> 497.5 | U10: =VLOOKUP(V10,Blad1!A:C,2,0) -> 20 | V10: 1 | Z10: =X10+Y10 -> 0 | AC10: 0 | BC10: =M10+U10+AC10+AL10+AT10+BB10 -> 40 | BD10: =J10+R10+Z10+AH10+AP10+AX10 -> 993 | BE10: =IF($O$4>0,(SMALL(($M10,$U10,$AC10),1)),"0") -> 0 | BI10: =BC10-BE10-BF10 -> 40 | BJ10: 993 | BK10: 2 | BO10: ja
B11: 779962CB | C11: Vai Bruntink | D11: Cum Laude | E11: ZZZ | F11: Neta, RV. | H11: 241 | I11: 258 | J11: =H11+I11 -> 499 | M11: =VLOOKUP(N11,Blad1!A:C,2,0) -> 20 | N11: 1 | O11: 1 | P11: 217 | Q11: 243 | R11: =P11+Q11 -> 460 | U11: =VLOOKUP(V11,Blad1!A:C,2,0) -> 15 | V11: 3 | X11: 249 | Y11: 253,5 | Z11: =X11+Y11 -> 502.5 | AC11: =VLOOKUP(AD11,Blad1!A:C,2,0) -> 17 | AD11: 2 | BC11: =M11+U11+AC11+AL11+AT11+BB11 -> 52 | BD11: =J11+R11+Z11+AH11+AP11+AX11 -> 1461.5 | BE11: =IF($O$4>0,(SMALL(($M11,$U11,$AC11),1)),"0") -> 15 | BI11: =BC11-BE11-BF11 -> 37 | BJ11: 1461.5 | BK11: 3 | BO11: ja
B12: 784250GS | C12: Jennifer Sekreve | D12: Gamante d | E12: ZZZ | F12: Oost-Veluwse R.J.V., RV. | H12: 237.5 | I12: 246.5 | J12: =H12+I12 -> 484 | M12: =VLOOKUP(N12,Blad1!A:C,2,0) -> 17 | N12: 2 | P12: 244 | Q12: 233 | R12: =P12+Q12 -> 477 | U12: =VLOOKUP(V12,Blad1!A:C,2,0) -> 20 | V12: 1 | Z12: =X12+Y12 -> 0 | AC12: 0 | BC12: =M12+U12+AC12+AL12+AT12+BB12 -> 37 | BD12: =J12+R12+Z12+AH12+AP12+AX12 -> 961 | BE12: =IF($O$4>0,(SMALL(($M12,$U12,$AC12),1)),"0") -> 0 | BI12: =BC12-BE12-BF12 -> 37 | BJ12: 961 | BK12: 4 | BO12: ja
B13: 753827GS | C13: Jonna Schelstraete - Van den Ham | D13: Grand-charmeur | E13: ZZZ | F13: Jacobus, RV. | H13: 236.5 | I13: 251.5 | J13: =H13+I13 -> 488 | M13: =VLOOKUP(N13,Blad1!A:C,2,0) -> 15 | N13: 3 | O13: 1 | P13: 272,5 | Q13: 252,5 | R13: =P13+Q13 -> 525 | U13: =VLOOKUP(V13,Blad1!A:C,2,0) -> 17 | V13: 2 | X13: 255 | Y13: 244,5 | Z13: =X13+Y13 -> 499.5 | AC13: =VLOOKUP(AD13,Blad1!A:C,2,0) -> 20 | AD13: 1 | BC13: =M13+U13+AC13+AL13+AT13+BB13 -> 52 | BD13: =J13+R13+Z13+AH13+AP13+AX13 -> 1512.5 | BE13: =IF($O$4>0,(SMALL(($M13,$U13,$AC13),1)),"0") -> 15 | BI13: =BC13-BE13-BF13 -> 37 | BJ13: 1512.5 | BK13: 5 | BO13: ja
B14: 693466VV | C14: Suzanne Van de Ven | D14: Vdv D'avicci | E14: ZZZ | F14: Vereniging Eindhovense Manege, RV. | H14: 250 | I14: 240.5 | J14: =H14+I14 -> 490.5 | M14: =VLOOKUP(N14,Blad1!A:C,2,0) -> 20 | N14: 1 | O14: 1 | P14: 247 | Q14: 244 | R14: =P14+Q14 -> 491 | U14: =VLOOKUP(V14,Blad1!A:C,2,0) -> 15 | V14: 3 | Z14: =X14+Y14 -> 0 | AC14: 0 | BC14: =M14+U14+AC14+AL14+AT14+BB14 -> 35 | BD14: =J14+R14+Z14+AH14+AP14+AX14 -> 981.5 | BE14: =IF($O$4>0,(SMALL(($M14,$U14,$AC14),1)),"0") -> 0 | BI14: =BC14-BE14-BF14 -> 35 | BJ14: 981.5 | BK14: 6 | BO14: ja
B15: 818550TV | C15: Tommie van Puijenbroek - Visser | D15: TOP's Gentle | E15: ZZZ | F15: Goirle, RV. | H15: 241 | I15: 244 | J15: =H15+I15 -> 485 | M15: =VLOOKUP(N15,Blad1!A:C,2,0) -> 13 | N15: 4 | O15: 1 | P15: 242,5 | Q15: 248 | R15: =P15+Q15 -> 490.5 | U15: =VLOOKUP(V15,Blad1!A:C,2,0) -> 13 | V15: 4 | W15: 1 | X15: 243 | Y15: 240,5 | Z15: =X15+Y15 -> 483.5 | AC15: =VLOOKUP(AD15,Blad1!A:C,2,0) -> 20 | AD15: 1 | BC15: =M15+U15+AC15+AL15+AT15+BB15 -> 46 | BD15: =J15+R15+Z15+AH15+AP15+AX15 -> 1459 | BE15: =IF($O$4>0,(SMALL(($M15,$U15,$AC15),1)),"0") -> 13 | BI15: =BC15-BE15-BF15 -> 33 | BJ15: 1459 | BK15: 7 | BO15: ja
B16: 826261ED | C16: Mark Van de Donk | D16: Duppie | E16: ZZZ | F16: Srjv Groenendaal, RV. | H16: 248 | I16: 242 | J16: =H16+I16 -> 490 | M16: =VLOOKUP(N16,Blad1!A:C,2,0) -> 17 | N16: 2 | P16: 227 | Q16: 238,5 | R16: =P16+Q16 -> 465.5 | U16: =VLOOKUP(V16,Blad1!A:C,2,0) -> 12 | V16: 5 | X16: 247,5 | Y16: 239 | Z16: =X16+Y16 -> 486.5 | AC16: =VLOOKUP(AD16,Blad1!A:C,2,0) -> 15 | AD16: 3 | BC16: =M16+U16+AC16+AL16+AT16+BB16 -> 44 | BD16: =J16+R16+Z16+AH16+AP16+AX16 -> 1442 | BE16: =IF($O$4>0,(SMALL(($M16,$U16,$AC16),1)),"0") -> 12 | BI16: =BC16-BE16-BF16 -> 32 | BJ16: 1442 | BK16: 8 | BO16: ja
B17: 718347FS | C17: Jennifer Sekreve | D17: Ferrero | E17: ZZZ | F17: Oost-Veluwse R.J.V., RV. | H17: 236 | I17: 235.5 | J17: =H17+I17 -> 471.5 | M17: =VLOOKUP(N17,Blad1!A:C,2,0) -> 15 | N17: 3 | P17: 233,5 | Q17: 233,5 | R17: =P17+Q17 -> 467 | U17: =VLOOKUP(V17,Blad1!A:C,2,0) -> 17 | V17: 2 | Z17: =X17+Y17 -> 0 | AC17: 0 | BC17: =M17+U17+AC17+AL17+AT17+BB17 -> 32 | BD17: =J17+R17+Z17+AH17+AP17+AX17 -> 938.5 | BE17: =IF($O$4>0,(SMALL(($M17,$U17,$AC17),1)),"0") -> 0 | BI17: =BC17-BE17-BF17 -> 32 | BJ17: 938.5 | BN17: gepromoveerd | BO17: ja
B18: 742845FE | C18: Petra Van Esch | D18: Fifty Fifty | E18: ZZZ | F18: Lambertus, RV. | H18: 240 | I18: 224,5 | J18: =H18+I18 -> 464.5 | M18: =VLOOKUP(N18,Blad1!A:C,2,0) -> 13 | N18: 4 | O18: 1 | P18: 247,5 | Q18: 237 | R18: =P18+Q18 -> 484.5 | U18: =VLOOKUP(V18,Blad1!A:C,2,0) -> 12 | V18: 5 | X18: 240,5 | Y18: 240,5 | Z18: =X18+Y18 -> 481 | AC18: =VLOOKUP(AD18,Blad1!A:C,2,0) -> 17 | AD18: 2 | BC18: =M18+U18+AC18+AL18+AT18+BB18 -> 42 | BD18: =J18+R18+Z18+AH18+AP18+AX18 -> 1430 | BE18: =IF($O$4>0,(SMALL(($M18,$U18,$AC18),1)),"0") -> 12 | BI18: =BC18-BE18-BF18 -> 30 | BJ18: 1430 | BK18: 9 | BO18: ja
B19: 784738HG | C19: Marijke Van Giesen | D19: Hexagon's Furious | E19: ZZZ | F19: Hexagon B.V., Stal | H19: 231,5 | I19: 232,5 | J19: =H19+I19 -> 464 | M19: =VLOOKUP(N19,Blad1!A:C,2,0) -> 12 | N19: 5 | P19: 234,5 | Q19: 231,5 | R19: =P19+Q19 -> 466 | U19: =VLOOKUP(V19,Blad1!A:C,2,0) -> 15 | V19: 3 | W19: 1 | X19: 239,5 | Y19: 222,5 | Z19: =X19+Y19 -> 462 | AC19: =VLOOKUP(AD19,Blad1!A:C,2,0) -> 15 | AD19: 3 | BC19: =M19+U19+AC19+AL19+AT19+BB19 -> 42 | BD19: =J19+R19+Z19+AH19+AP19+AX19 -> 1392 | BE19: =IF($O$4>0,(SMALL(($M19,$U19,$AC19),1)),"0") -> 12 | BI19: =BC19-BE19-BF19 -> 30 | BJ19: 1392 | BK19: 10 | BO19: ja
B20: 787940HZ | C20: Thamar Zweistra | D20: Hexagon's Filamanda | E20: ZZZ | F20: Hexagon B.V., Stal | H20: 228,5 | I20: 238,5 | J20: =H20+I20 -> 467 | M20: =VLOOKUP(N20,Blad1!A:C,2,0) -> 17 | N20: 2 | P20: 233 | Q20: 233 | R20: =P20+Q20 -> 466 | U20: =VLOOKUP(V20,Blad1!A:C,2,0) -> 13 | V20: 4 | W20: 1 | X20: 231,5 | Y20: 226,5 | Z20: =X20+Y20 -> 458 | AC20: =VLOOKUP(AD20,Blad1!A:C,2,0) -> 13 | AD20: 4 | BC20: =M20+U20+AC20+AL20+AT20+BB20 -> 43 | BD20: =J20+R20+Z20+AH20+AP20+AX20 -> 1391 | BE20: =IF($O$4>0,(SMALL(($M20,$U20,$AC20),1)),"0") -> 13 | BI20: =BC20-BE20-BF20 -> 30 | BJ20: 1391 | BK20: 11 | BO20: ja
B21: 832336HH | C21: Danielle Heijkoop | D21: Damirez | E21: ZZZ | F21: Zwethruiters, RV. | H21: 231 | I21: 229 | J21: =H21+I21 -> 460 | M21: =VLOOKUP(N21,Blad1!A:C,2,0) -> 9 | N21: 8 | O21: 1 | P21: 229,5 | Q21: 231,5 | R21: =P21+Q21 -> 461 | U21: =VLOOKUP(V21,Blad1!A:C,2,0) -> 17 | V21: 2 | X21: 241 | Y21: 236,5 | Z21: =X21+Y21 -> 477.5 | AC21: =VLOOKUP(AD21,Blad1!A:C,2,0) -> 13 | AD21: 4 | BC21: =M21+U21+AC21+AL21+AT21+BB21 -> 39 | BD21: =J21+R21+Z21+AH21+AP21+AX21 -> 1398.5 | BE21: =IF($O$4>0,(SMALL(($M21,$U21,$AC21),1)),"0") -> 9 | BI21: =BC21-BE21-BF21 -> 30 | BJ21: 1398.5 | BK21: 12 | BO21: ja
B22: 787586ZW | C22: Merel Van Wallenburg | D22: Zip | E22: ZZZ | F22: Sé-ros, RV. | H22: 215 | I22: 230.5 | J22: =H22+I22 -> 445.5 | M22: =VLOOKUP(N22,Blad1!A:C,2,0) -> 0 | N22: 17 | O22: 1 | P22: 233 | Q22: 231,5 | R22: =P22+Q22 -> 464.5 | U22: =VLOOKUP(V22,Blad1!A:C,2,0) -> 9 | V22: 8 | W22: 1 | X22: 230,5 | Y22: 232 | Z22: =X22+Y22 -> 462.5 | AC22: =VLOOKUP(AD22,Blad1!A:C,2,0) -> 17 | AD22: 2 | BC22: =M22+U22+AC22+AL22+AT22+BB22 -> 26 | BD22: =J22+R22+Z22+AH22+AP22+AX22 -> 1372.5 | BE22: =IF($O$4>0,(SMALL(($M22,$U22,$AC22),1)),"0") -> 0 | BI22: =BC22-BE22-BF22 -> 26 | BJ22: 1372.5 | BK22: 13 | BO22: ja
B23: 665782DS | C23: Romy Van der Schaft | D23: Diva Dvb | E23: ZZZ | F23: WWNA, RV. | H23: 224 | I23: 233.5 | J23: =H23+I23 -> 457.5 | M23: =VLOOKUP(N23,Blad1!A:C,2,0) -> 13 | N23: 4 | P23: 232 | Q23: 215,5 | R23: =P23+Q23 -> 447.5 | U23: =VLOOKUP(V23,Blad1!A:C,2,0) -> 10 | V23: 7 | X23: 232,5 | Y23: 229 | Z23: =X23+Y23 -> 461.5 | AC23: =VLOOKUP(AD23,Blad1!A:C,2,0) -> 12 | AD23: 5 | BC23: =M23+U23+AC23+AL23+AT23+BB23 -> 35 | BD23: =J23+R23+Z23+AH23+AP23+AX23 -> 1366.5 | BE23: =IF($O$4>0,(SMALL(($M23,$U23,$AC23),1)),"0") -> 10 | BI23: =BC23-BE23-BF23 -> 25 | BJ23: 1366.5 | BK23: 14 | BO23: ja
B24: 682458FW | C24: Katie Werring | D24: Francois | E24: ZZZ | F24: Voornruiters, RV. De | H24: 220,5 | I24: 244,5 | J24: =H24+I24 -> 465 | M24: =VLOOKUP(N24,Blad1!A:C,2,0) -> 15 | N24: 3 | O24: 1 | P24: 201 | Q24: 210,5 | R24: =P24+Q24 -> 411.5 | U24: =VLOOKUP(V24,Blad1!A:C,2,0) -> 0 | V24: 18 | X24: 225,5 | Y24: 229,5 | Z24: =X24+Y24 -> 455 | AC24: =VLOOKUP(AD24,Blad1!A:C,2,0) -> 10 | AD24: 7 | BC24: =M24+U24+AC24+AL24+AT24+BB24 -> 25 | BD24: =J24+R24+Z24+AH24+AP24+AX24 -> 1331.5 | BE24: =IF($O$4>0,(SMALL(($M24,$U24,$AC24),1)),"0") -> 0 | BI24: =BC24-BE24-BF24 -> 25 | BJ24: 1331.5 | BK24: 15 | BO24: ja
B25: 642952DV | C25: Natascha Veen | D25: Damoiselle | E25: ZZZ | F25: Drentse Hooglanden, RV. | H25: 224 | I25: 231.5 | J25: =H25+I25 -> 455.5 | M25: =VLOOKUP(N25,Blad1!A:C,2,0) -> 12 | N25: 5 | P25: 219 | Q25: 220,5 | R25: =P25+Q25 -> 439.5 | U25: =VLOOKUP(V25,Blad1!A:C,2,0) -> 8 | V25: 9 | X25: 235 | Y25: 238,5 | Z25: =X25+Y25 -> 473.5 | AC25: =VLOOKUP(AD25,Blad1!A:C,2,0) -> 12 | AD25: 5 | BC25: =M25+U25+AC25+AL25+AT25+BB25 -> 32 | BD25: =J25+R25+Z25+AH25+AP25+AX25 -> 1368.5 | BE25: =IF($O$4>0,(SMALL(($M25,$U25,$AC25),1)),"0") -> 8 | BI25: =BC25-BE25-BF25 -> 24 | BJ25: 1368.5 | BK25: 16 | BO25: ja
B26: 803057BH | C26: Geert Hofland | D26: Blaze | E26: ZZZ | F26: Boreftse Ruiters, RV. | H26: 210 | I26: 221 | J26: =H26+I26 -> 431 | M26: =VLOOKUP(N26,Blad1!A:C,2,0) -> 9 | N26: 8 | O26: 1 | P26: 223 | Q26: 235 | R26: =P26+Q26 -> 458 | U26: =VLOOKUP(V26,Blad1!A:C,2,0) -> 13 | V26: 4 | X26: 232 | Y26: 224,5 | Z26: =X26+Y26 -> 456.5 | AC26: =VLOOKUP(AD26,Blad1!A:C,2,0) -> 11 | AD26: 6 | BC26: =M26+U26+AC26+AL26+AT26+BB26 -> 33 | BD26: =J26+R26+Z26+AH26+AP26+AX26 -> 1345.5 | BE26: =IF($O$4>0,(SMALL(($M26,$U26,$AC26),1)),"0") -> 9 | BI26: =BC26-BE26-BF26 -> 24 | BJ26: 1345.5 | BL26: 1 | BO26: ja
B27: 678585EE | C27: Lotte Van Engelen | D27: Experience | E27: ZZZ | F27: s-Gravenhof, RV. | H27: 229,5 | I27: 233 | J27: =H27+I27 -> 462.5 | M27: =VLOOKUP(N27,Blad1!A:C,2,0) -> 11 | N27: 6 | O27: 1 | P27: 226,5 | Q27: 231,5 | R27: =P27+Q27 -> 458 | U27: =VLOOKUP(V27,Blad1!A:C,2,0) -> 12 | V27: 5 | X27: 219 | Y27: 220,5 | Z27: =X27+Y27 -> 439.5 | AC27: =VLOOKUP(AD27,Blad1!A:C,2,0) -> 5 | AD27: 12 | BC27: =M27+U27+AC27+AL27+AT27+BB27 -> 28 | BD27: =J27+R27+Z27+AH27+AP27+AX27 -> 1360 | BE27: =IF($O$4>0,(SMALL(($M27,$U27,$AC27),1)),"0") -> 5 | BI27: =BC27-BE27-BF27 -> 23 | BJ27: 1360 | BL27: 2 | BO27: ja
B28: 717759DP | C28: Joelle Peters | D28: Dacar's Dream | E28: ZZZ | F28: Hoefke (HSV), RV. | H28: 228 | I28: 236.5 | J28: =H28+I28 -> 464.5 | M28: =VLOOKUP(N28,Blad1!A:C,2,0) -> 10 | N28: 7 | O28: 1 | P28: 207,5 | Q28: 229 | R28: =P28+Q28 -> 436.5 | U28: =VLOOKUP(V28,Blad1!A:C,2,0) -> 5 | V28: 12 | W28: 1 | X28: 239 | Y28: 218 | Z28: =X28+Y28 -> 457 | AC28: =VLOOKUP(AD28,Blad1!A:C,2,0) -> 12 | AD28: 5 | BC28: =M28+U28+AC28+AL28+AT28+BB28 -> 27 | BD28: =J28+R28+Z28+AH28+AP28+AX28 -> 1358 | BE28: =IF($O$4>0,(SMALL(($M28,$U28,$AC28),1)),"0") -> 5 | BI28: =BC28-BE28-BF28 -> 22 | BJ28: 1358 | BL28: 3 | BO28: ja
B29: 832904FV | C29: Tommie van Puijenbroek - Visser | D29: Fanatique Begijnhoeve | E29: ZZZ | F29: Goirle, RV. | H29: 234.5 | I29: 233 | J29: =H29+I29 -> 467.5 | M29: =VLOOKUP(N29,Blad1!A:C,2,0) -> 11 | N29: 6 | O29: 1 | P29: 239 | Q29: 239 | R29: =P29+Q29 -> 478 | U29: =VLOOKUP(V29,Blad1!A:C,2,0) -> 11 | V29: 6 | W29: 1 | X29: 223 | Y29: 227 | Z29: =X29+Y29 -> 450 | AC29: =VLOOKUP(AD29,Blad1!A:C,2,0) -> 11 | AD29: 6 | BC29: =M29+U29+AC29+AL29+AT29+BB29 -> 33 | BD29: =J29+R29+Z29+AH29+AP29+AX29 -> 1395.5 | BE29: =IF($O$4>0,(SMALL(($M29,$U29,$AC29),1)),"0") -> 11 | BI29: =BC29-BE29-BF29 -> 22 | BJ29: 1395.5 | BL29: 4 | BO29: ja
B30: 828718EK | C30: Paulette Kral | D30: El dorado | E30: ZZZ | F30: Hoeve Westland Ruiters, RV. | H30: 227 | I30: 224 | J30: =H30+I30 -> 451 | M30: =VLOOKUP(N30,Blad1!A:C,2,0) -> 7 | N30: 10 | O30: 1 | P30: 224 | Q30: 228 | R30: =P30+Q30 -> 452 | U30: =VLOOKUP(V30,Blad1!A:C,2,0) -> 11 | V30: 6 | X30: 232,5 | Y30: 221,5 | Z30: =X30+Y30 -> 454 | AC30: =VLOOKUP(AD30,Blad1!A:C,2,0) -> 9 | AD30: 8 | BC30: =M30+U30+AC30+AL30+AT30+BB30 -> 27 | BD30: =J30+R30+Z30+AH30+AP30+AX30 -> 1357 | BE30: =IF($O$4>0,(SMALL(($M30,$U30,$AC30),1)),"0") -> 7 | BI30: =BC30-BE30-BF30 -> 20 | BJ30: 1357 | BL30: 5 | BO30: ja
B31: 728367BJ | C31: Fabienne Jongen | D31: Botticelli | E31: ZZZ | F31: Hubertus, RV. | H31: 218 | I31: 234.5 | J31: =H31+I31 -> 452.5 | M31: =VLOOKUP(N31,Blad1!A:C,2,0) -> 5 | N31: 12 | O31: 1 | P31: 218,5 | Q31: 222 | R31: =P31+Q31 -> 440.5 | U31: =VLOOKUP(V31,Blad1!A:C,2,0) -> 3 | V31: 14 | X31: 231 | Y31: 237,5 | Z31: =X31+Y31 -> 468.5 | AC31: =VLOOKUP(AD31,Blad1!A:C,2,0) -> 15 | AD31: 3 | BC31: =M31+U31+AC31+AL31+AT31+BB31 -> 23 | BD31: =J31+R31+Z31+AH31+AP31+AX31 -> 1361.5 | BE31: =IF($O$4>0,(SMALL(($M31,$U31,$AC31),1)),"0") -> 3 | BI31: =BC31-BE31-BF31 -> 20 | BJ31: 1361.5 | BL31: 6 | BO31: ja
B32: 786394DL | C32: Corinda Luttjeboer | D32: Da Vinci Sollenburg DC | E32: ZZZ | F32: Schaapskooiruiters, RV. | H32: 227.5 | I32: 235.5 | J32: =H32+I32 -> 463 | M32: =VLOOKUP(N32,Blad1!A:C,2,0) -> 9 | N32: 8 | O32: 1 | P32: 237 | Q32: 234 | R32: =P32+Q32 -> 471 | U32: =VLOOKUP(V32,Blad1!A:C,2,0) -> 10 | V32: 7 | X32: 223,5 | Y32: 228 | Z32: =X32+Y32 -> 451.5 | AC32: =VLOOKUP(AD32,Blad1!A:C,2,0) -> 7 | AD32: 10 | BC32: =M32+U32+AC32+AL32+AT32+BB32 -> 26 | BD32: =J32+R32+Z32+AH32+AP32+AX32 -> 1385.5 | BE32: =IF($O$4>0,(SMALL(($M32,$U32,$AC32),1)),"0") -> 7 | BI32: =BC32-BE32-BF32 -> 19 | BJ32: 1385.5 | BL32: 7 | BO32: ja
B33: 683505CH | C33: Patty Hanssen | D33: Cliff | E33: ZZZ | F33: Wittenhorst, RV. | H33: 219.5 | I33: 216.5 | J33: =H33+I33 -> 436 | M33: =VLOOKUP(N33,Blad1!A:C,2,0) -> 0 | N33: 26 | O33: 1 | P33: 215 | Q33: 233 | R33: =P33+Q33 -> 448 | U33: =VLOOKUP(V33,Blad1!A:C,2,0) -> 5 | V33: 12 | X33: 230,5 | Y33: 238 | Z33: =X33+Y33 -> 468.5 | AC33: =VLOOKUP(AD33,Blad1!A:C,2,0) -> 13 | AD33: 4 | BC33: =M33+U33+AC33+AL33+AT33+BB33 -> 18 | BD33: =J33+R33+Z33+AH33+AP33+AX33 -> 1352.5 | BE33: =IF($O$4>0,(SMALL(($M33,$U33,$AC33),1)),"0") -> 0 | BI33: =BC33-BE33-BF33 -> 18 | BJ33: 1352.5 | BL33: 8 | BO33: ja
B34: 705515FZ | C34: Zoë Zwiggelaar | D34: Fidarsi Rossi | E34: ZZZ | F34: Drentse Hooglanden, RV. | H34: 213.5 | I34: 228.5 | J34: =H34+I34 -> 442 | M34: =VLOOKUP(N34,Blad1!A:C,2,0) -> 11 | N34: 6 | P34: 214,5 | Q34: 203 | R34: =P34+Q34 -> 417.5 | U34: =VLOOKUP(V34,Blad1!A:C,2,0) -> 1 | V34: 16 | X34: 222 | Y34: 218,5 | Z34: =X34+Y34 -> 440.5 | AC34: =VLOOKUP(AD34,Blad1!A:C,2,0) -> 7 | AD34: 10 | BC34: =M34+U34+AC34+AL34+AT34+BB34 -> 19 | BD34: =J34+R34+Z34+AH34+AP34+AX34 -> 1300 | BE34: =IF($O$4>0,(SMALL(($M34,$U34,$AC34),1)),"0") -> 1 | BI34: =BC34-BE34-BF34 -> 18 | BJ34: 1300 | BL34: 9 | BO34: ja
B35: 765016FW | C35: Wenda Welten | D35: Firefly | E35: ZZZ | F35: PPH Horstdravers, RV. | H35: 225 | I35: 224 | J35: =H35+I35 -> 449 | M35: =VLOOKUP(N35,Blad1!A:C,2,0) -> 2 | N35: 15 | O35: 1 | P35: 220 | Q35: 230 | R35: =P35+Q35 -> 450 | U35: =VLOOKUP(V35,Blad1!A:C,2,0) -> 6 | V35: 11 | X35: 235 | Y35: 221,5 | Z35: =X35+Y35 -> 456.5 | AC35: =VLOOKUP(AD35,Blad1!A:C,2,0) -> 9 | AD35: 8 | BC35: =M35+U35+AC35+AL35+AT35+BB35 -> 17 | BD35: =J35+R35+Z35+AH35+AP35+AX35 -> 1355.5 | BE35: =IF($O$4>0,(SMALL(($M35,$U35,$AC35),1)),"0") -> 2 | BI35: =BC35-BE35-BF35 -> 15 | BJ35: 1355.5 | BL35: 10 | BO35: ja
B36: 786595PM | C36: Loes Mars | D36: Pablo's Henry | E36: ZZZ | F36: Laarhoeveruiters, RV. | J36: =H36+I36 -> 0 | M36: 0 | N36: 99 | P36: 231,5 | Q36: 210 | R36: =P36+Q36 -> 441.5 | U36: =VLOOKUP(V36,Blad1!A:C,2,0) -> 9 | V36: 8 | X36: 221 | Y36: 215 | Z36: =X36+Y36 -> 436 | AC36: =VLOOKUP(AD36,Blad1!A:C,2,0) -> 5 | AD36: 12 | BC36: =M36+U36+AC36+AL36+AT36+BB36 -> 14 | BD36: =J36+R36+Z36+AH36+AP36+AX36 -> 877.5 | BE36: =IF($O$4>0,(SMALL(($M36,$U36,$AC36),1)),"0") -> 0 | BI36: =BC36-BE36-BF36 -> 14 | BJ36: 877.5 | BO36: ja
B37: 713778BS | C37: Rommie Stegeman | D37: Brenna | E37: ZZZ | F37: Stegeman, PSC | H37: 210 | I37: 219.5 | J37: =H37+I37 -> 429.5 | M37: =VLOOKUP(N37,Blad1!A:C,2,0) -> 8 | N37: 9 | P37: 222,5 | Q37: 211 | R37: =P37+Q37 -> 433.5 | U37: =VLOOKUP(V37,Blad1!A:C,2,0) -> 6 | V37: 11 | X37: 220 | Y37: 215 | Z37: =X37+Y37 -> 435 | AC37: =VLOOKUP(AD37,Blad1!A:C,2,0) -> 3 | AD37: 14 | BC37: =M37+U37+AC37+AL37+AT37+BB37 -> 17 | BD37: =J37+R37+Z37+AH37+AP37+AX37 -> 1298 | BE37: =IF($O$4>0,(SMALL(($M37,$U37,$AC37),1)),"0") -> 3 | BI37: =BC37-BE37-BF37 -> 14 | BJ37: 1298 | BO37: ja
B38: 745414GK | C38: Carola Kral | D38: Gentleman f | E38: ZZZ | F38: Hoeve Westland Ruiters, RV. | H38: 224,5 | I38: 224,5 | J38: =H38+I38 -> 449 | M38: =VLOOKUP(N38,Blad1!A:C,2,0) -> 6 | N38: 11 | O38: 1 | P38: 220,5 | Q38: 222 | R38: =P38+Q38 -> 442.5 | U38: =VLOOKUP(V38,Blad1!A:C,2,0) -> 8 | V38: 9 | Z38: =X38+Y38 -> 0 | AC38: 0 | BC38: =M38+U38+AC38+AL38+AT38+BB38 -> 14 | BD38: =J38+R38+Z38+AH38+AP38+AX38 -> 891.5 | BE38: =IF($O$4>0,(SMALL(($M38,$U38,$AC38),1)),"0") -> 0 | BI38: =BC38-BE38-BF38 -> 14 | BJ38: 891.5 | BO38: ja
B39: 720875ZW | C39: Celeste Weima | D39: Zambrano CZ | E39: ZZZ | F39: Argonaut, RV. | H39: 220.5 | I39: 238.5 | J39: =H39+I39 -> 459 | M39: =VLOOKUP(N39,Blad1!A:C,2,0) -> 8 | N39: 9 | O39: 1 | P39: 210,5 | Q39: 226 | R39: =P39+Q39 -> 436.5 | U39: =VLOOKUP(V39,Blad1!A:C,2,0) -> 6 | V39: 11 | Z39: =X39+Y39 -> 0 | AC39: 0 | BC39: =M39+U39+AC39+AL39+AT39+BB39 -> 14 | BD39: =J39+R39+Z39+AH39+AP39+AX39 -> 895.5 | BE39: =IF($O$4>0,(SMALL(($M39,$U39,$AC39),1)),"0") -> 0 | BI39: =BC39-BE39-BF39 -> 14 | BJ39: 895.5 | BO39: ja
B40: 675836IM | C40: Britt Muis | D40: It's Britt's Corlando | E40: ZZZ | F40: Veendam e.o., RV. | H40: 205.5 | I40: 209.5 | J40: =H40+I40 -> 415 | M40: =VLOOKUP(N40,Blad1!A:C,2,0) -> 6 | N40: 11 | P40: 222 | Q40: 213,5 | R40: =P40+Q40 -> 435.5 | U40: =VLOOKUP(V40,Blad1!A:C,2,0) -> 7 | V40: 10 | Z40: =X40+Y40 -> 0 | AC40: 0 | BC40: =M40+U40+AC40+AL40+AT40+BB40 -> 13 | BD40: =J40+R40+Z40+AH40+AP40+AX40 -> 850.5 | BE40: =IF($O$4>0,(SMALL(($M40,$U40,$AC40),1)),"0") -> 0 | BI40: =BC40-BE40-BF40 -> 13 | BJ40: 850.5 | BO40: ja
B41: 756741AH | C41: Roger Hambuckers | D41: Armani | E41: ZZZ | F41: Edele Ros, RV. | J41: =H41+I41 -> 0 | M41: 0 | N41: 99 | O41: 1 | P41: 218,5 | Q41: 235,5 | R41: =P41+Q41 -> 454 | U41: =VLOOKUP(V41,Blad1!A:C,2,0) -> 7 | V41: 10 | X41: 218 | Y41: 227 | Z41: =X41+Y41 -> 445 | AC41: =VLOOKUP(AD41,Blad1!A:C,2,0) -> 6 | AD41: 11 | BC41: =M41+U41+AC41+AL41+AT41+BB41 -> 13 | BD41: =J41+R41+Z41+AH41+AP41+AX41 -> 899 | BE41: =IF($O$4>0,(SMALL(($M41,$U41,$AC41),1)),"0") -> 0 | BI41: =BC41-BE41-BF41 -> 13 | BJ41: =BD41-BG41-BH41 -> 899 | BO41: ja
B42: 642627DL | C42: Lisa Van de Laar | D42: Dropshot | E42: ZZZ | F42: Thielen, RV. | H42: 215.5 | I42: 226.5 | J42: =H42+I42 -> 442 | M42: =VLOOKUP(N42,Blad1!A:C,2,0) -> 0 | N42: 22 | O42: 1 | P42: 212,5 | Q42: 221,5 | R42: =P42+Q42 -> 434 | U42: =VLOOKUP(V42,Blad1!A:C,2,0) -> 2 | V42: 15 | X42: 225,5 | Y42: 232 | Z42: =X42+Y42 -> 457.5 | AC42: =VLOOKUP(AD42,Blad1!A:C,2,0) -> 10 | AD42: 7 | BC42: =M42+U42+AC42+AL42+AT42+BB42 -> 12 | BD42: =J42+R42+Z42+AH42+AP42+AX42 -> 1333.5 | BE42: =IF($O$4>0,(SMALL(($M42,$U42,$AC42),1)),"0") -> 0 | BI42: =BC42-BE42-BF42 -> 12 | BJ42: 1333.5 | BO42: ja
B43: 567003BH | C43: Marije Heuvel | D43: Belana | E43: ZZZ | F43: Z.E.O., RV. | H43: 213 | I43: 221.5 | J43: =H43+I43 -> 434.5 | M43: =VLOOKUP(N43,Blad1!A:C,2,0) -> 10 | N43: 7 | P43: 221 | Q43: 200,5 | R43: =P43+Q43 -> 421.5 | U43: =VLOOKUP(V43,Blad1!A:C,2,0) -> 2 | V43: 15 | Z43: =X43+Y43 -> 0 | AC43: 0 | BC43: =M43+U43+AC43+AL43+AT43+BB43 -> 12 | BD43: =J43+R43+Z43+AH43+AP43+AX43 -> 856 | BE43: =IF($O$4>0,(SMALL(($M43,$U43,$AC43),1)),"0") -> 0 | BI43: =BC43-BE43-BF43 -> 12 | BJ43: 856 | BO43: ja
B44: 781887GS | C44: Joyce Van Schaick | D44: Glendale | E44: ZZZ | F44: Sportpaarden Amsterdam (SPA), RV. | H44: 216 | I44: 228.5 | J44: =H44+I44 -> 444.5 | M44: =VLOOKUP(N44,Blad1!A:C,2,0) -> 0 | N44: 18 | P44: 210 | Q44: 212,5 | R44: =P44+Q44 -> 422.5 | U44: =VLOOKUP(V44,Blad1!A:C,2,0) -> 3 | V44: 14 | X44: 226,5 | Y44: 226 | Z44: =X44+Y44 -> 452.5 | AC44: =VLOOKUP(AD44,Blad1!A:C,2,0) -> 8 | AD44: 9 | BC44: =M44+U44+AC44+AL44+AT44+BB44 -> 11 | BD44: =J44+R44+Z44+AH44+AP44+AX44 -> 1319.5 | BE44: =IF($O$4>0,(SMALL(($M44,$U44,$AC44),1)),"0") -> 0 | BI44: =BC44-BE44-BF44 -> 11 | BJ44: 1319.5 | BO44: ja
B45: 761477FR | C45: Yael Reijnders | D45: Ferrari | E45: ZZZ | F45: Braanjenhoek, RV. | H45: 201 | I45: 220 | J45: =H45+I45 -> 421 | M45: =VLOOKUP(N45,Blad1!A:C,2,0) -> 0 | N45: 22 | R45: =P45+Q45 -> 0 | U45: 0 | V45: 99 | W45: 1 | X45: 219,5 | Y45: 210,5 | Z45: =X45+Y45 -> 430 | AC45: =VLOOKUP(AD45,Blad1!A:C,2,0) -> 9 | AD45: 8 | BC45: =M45+U45+AC45+AL45+AT45+BB45 -> 9 | BD45: =J45+R45+Z45+AH45+AP45+AX45 -> 851 | BE45: =IF($O$4>0,(SMALL(($M45,$U45,$AC45),1)),"0") -> 0 | BI45: =BC45-BE45-BF45 -> 9 | BJ45: 851 | BO45: ja
B46: 787334BH | C46: Fleur Hovers | D46: Bolero Dvb | E46: ZZZ | F46: Trouwe Kameraden, RV. | H46: 210.5 | I46: 233 | J46: =H46+I46 -> 443.5 | M46: =VLOOKUP(N46,Blad1!A:C,2,0) -> 0 | N46: 21 | O46: 1 | P46: 222 | Q46: 225 | R46: =P46+Q46 -> 447 | U46: =VLOOKUP(V46,Blad1!A:C,2,0) -> 9 | V46: 8 | Z46: =X46+Y46 -> 0 | AC46: 0 | BC46: =M46+U46+AC46+AL46+AT46+BB46 -> 9 | BD46: =J46+R46+Z46+AH46+AP46+AX46 -> 890.5 | BE46: =IF($O$4>0,(SMALL(($M46,$U46,$AC46),1)),"0") -> 0 | BI46: =BC46-BE46-BF46 -> 9 | BJ46: 890.5 | BO46: ja
B47: 702339DB | C47: Maartje Te Braak | D47: Dizzy Tika | E47: ZZZ | F47: Steegh, RV. De | H47: 225.5 | I47: 214.5 | J47: =H47+I47 -> 440 | M47: =VLOOKUP(N47,Blad1!A:C,2,0) -> 0 | N47: 23 | O47: 1 | P47: 224 | Q47: 233 | R47: =P47+Q47 -> 457 | U47: =VLOOKUP(V47,Blad1!A:C,2,0) -> 8 | V47: 9 | Z47: =X47+Y47 -> 0 | AC47: 0 | BC47: =M47+U47+AC47+AL47+AT47+BB47 -> 8 | BD47: =J47+R47+Z47+AH47+AP47+AX47 -> 897 | BE47: =IF($O$4>0,(SMALL(($M47,$U47,$AC47),1)),"0") -> 0 | BI47: =BC47-BE47-BF47 -> 8 | BJ47: 897 | BO47: ja
B48: 651260DD | C48: Amy Van Dijk | D48: Django Van De Wateringhoeve | E48: ZZZ | F48: Door Wilskracht Sterk, RV. | H48: 220 | I48: 230.5 | J48: =H48+I48 -> 450.5 | M48: =VLOOKUP(N48,Blad1!A:C,2,0) -> 4 | N48: 13 | O48: 1 | P48: 223 | Q48: 220,5 | R48: =P48+Q48 -> 443.5 | U48: =VLOOKUP(V48,Blad1!A:C,2,0) -> 4 | V48: 13 | Z48: =X48+Y48 -> 0 | AC48: 0 | BC48: =M48+U48+AC48+AL48+AT48+BB48 -> 8 | BD48: =J48+R48+Z48+AH48+AP48+AX48 -> 894 | BE48: =IF($O$4>0,(SMALL(($M48,$U48,$AC48),1)),"0") -> 0 | BI48: =BC48-BE48-BF48 -> 8 | BJ48: 894 | BO48: ja
B49: 673446ES | C49: Manouk Steijn | D49: Evy | E49: ZZZ | F49: Zeewolder Ruiters, RV. | H49: 205 | I49: 209 | J49: =H49+I49 -> 414 | M49: =VLOOKUP(N49,Blad1!A:C,2,0) -> 5 | N49: 12 | R49: =P49+Q49 -> 0 | U49: 0 | V49: 99 | X49: 222,5 | Y49: 212 | Z49: =X49+Y49 -> 434.5 | AC49: =VLOOKUP(AD49,Blad1!A:C,2,0) -> 2 | AD49: 15 | BC49: =M49+U49+AC49+AL49+AT49+BB49 -> 7 | BD49: =J49+R49+Z49+AH49+AP49+AX49 -> 848.5 | BE49: =IF($O$4>0,(SMALL(($M49,$U49,$AC49),1)),"0") -> 0 | BI49: =BC49-BE49-BF49 -> 7 | BJ49: 848.5 | BO49: ja
B50: 678129EE | C50: Britt Van Egmond | D50: Engie Sollenburg | E50: ZZZ | F50: Noord-Hollandse, RV. | H50: 205,5 | I50: 215,5 | J50: =H50+I50 -> 421 | M50: =VLOOKUP(N50,Blad1!A:C,2,0) -> 0 | N50: 21 | O50: 1 | P50: 218 | Q50: 221 | R50: =P50+Q50 -> 439 | U50: =VLOOKUP(V50,Blad1!A:C,2,0) -> 7 | V50: 10 | X50: 200 | Y50: 201 | Z50: =X50+Y50 -> 401 | AC50: =VLOOKUP(AD50,Blad1!A:C,2,0) -> 0 | AD50: 20 | BC50: =M50+U50+AC50+AL50+AT50+BB50 -> 7 | BD50: =J50+R50+Z50+AH50+AP50+AX50 -> 1261 | BE50: =IF($O$4>0,(SMALL(($M50,$U50,$AC50),1)),"0") -> 0 | BI50: =BC50-BE50-BF50 -> 7 | BJ50: 1261 | BO50: ja
B51: 766782BM | C51: Eva Mion | D51: Btw | E51: ZZZ | F51: Jagers, RV. | H51: 224.5 | I51: 229 | J51: =H51+I51 -> 453.5 | M51: =VLOOKUP(N51,Blad1!A:C,2,0) -> 7 | N51: 10 | O51: 1 | P51: 197,5 | Q51: 204 | R51: =P51+Q51 -> 401.5 | U51: =VLOOKUP(V51,Blad1!A:C,2,0) -> 0 | V51: 19 | Z51: =X51+Y51 -> 0 | AC51: 0 | BC51: =M51+U51+AC51+AL51+AT51+BB51 -> 7 | BD51: =J51+R51+Z51+AH51+AP51+AX51 -> 855 | BE51: =IF($O$4>0,(SMALL(($M51,$U51,$AC51),1)),"0") -> 0 | BI51: =BC51-BE51-BF51 -> 7 | BJ51: 855 | BO51: ja
B52: 549382BV | C52: Crystal Van Vliet | D52: Boyd | E52: ZZZ | F52: Hekelingen, RV. | H52: 224,5 | I52: 215,5 | J52: =H52+I52 -> 440 | M52: =VLOOKUP(N52,Blad1!A:C,2,0) -> 4 | N52: 13 | O52: 1 | P52: 208 | Q52: 208 | R52: =P52+Q52 -> 416 | U52: =VLOOKUP(V52,Blad1!A:C,2,0) -> 3 | V52: 14 | Z52: =X52+Y52 -> 0 | AC52: 0 | BC52: =M52+U52+AC52+AL52+AT52+BB52 -> 7 | BD52: =J52+R52+Z52+AH52+AP52+AX52 -> 856 | BE52: =IF($O$4>0,(SMALL(($M52,$U52,$AC52),1)),"0") -> 0 | BI52: =BC52-BE52-BF52 -> 7 | BJ52: 856 | BO52: ja
B53: 680094ES | C53: Danique Schnellenberg | D53: Everton | E53: ZZZ | F53: Zilfia's Hoeve, RV. | H53: 213 | I53: 240.5 | J53: =H53+I53 -> 453.5 | M53: =VLOOKUP(N53,Blad1!A:C,2,0) -> 6 | N53: 11 | P53: 208 | Q53: 203 | R53: =P53+Q53 -> 411 | U53: =VLOOKUP(V53,Blad1!A:C,2,0) -> 0 | V53: 19 | Z53: =X53+Y53 -> 0 | AC53: 0 | BC53: =M53+U53+AC53+AL53+AT53+BB53 -> 6 | BD53: =J53+R53+Z53+AH53+AP53+AX53 -> 864.5 | BE53: =IF($O$4>0,(SMALL(($M53,$U53,$AC53),1)),"0") -> 0 | BI53: =BC53-BE53-BF53 -> 6 | BJ53: 864.5 | BO53: ja
B54: 683514GG | C54: Debby De Graaf | D54: Beltsjeblom Galloper | E54: ZZZ | F54: s-Gravenhof, RV. | H54: 220.5 | I54: 210.5 | J54: =H54+I54 -> 431 | M54: =VLOOKUP(N54,[1]Blad1!A:C,2,0) -> 0 | N54: 28 | O54: 1 | P54: 213,5 | Q54: 212 | R54: =P54+Q54 -> 425.5 | U54: =VLOOKUP(V54,Blad1!A:C,2,0) -> 4 | V54: 13 | Z54: =X54+Y54 -> 0 | AC54: 0 | BC54: =M54+U54+AC54+AL54+AT54+BB54 -> 4 | BD54: =J54+R54+Z54+AH54+AP54+AX54 -> 856.5 | BE54: =IF($O$4>0,(SMALL(($M54,$U54,$AC54),1)),"0") -> 0 | BI54: =BC54-BE54-BF54 -> 4 | BJ54: 856.5 | BO54: ja
B55: 756175CV | C55: Kees Verheij | D55: Cypress-hill | E55: ZZZ | F55: Bernisse, RV. | H55: 208 | I55: 215 | J55: =H55+I55 -> 423 | M55: =VLOOKUP(N55,Blad1!A:C,2,0) -> 0 | N55: 17 | O55: 1 | P55: 208 | Q55: 207,5 | R55: =P55+Q55 -> 415.5 | U55: =VLOOKUP(V55,Blad1!A:C,2,0) -> 2 | V55: 15 | Z55: =X55+Y55 -> 0 | AC55: 0 | BC55: =M55+U55+AC55+AL55+AT55+BB55 -> 2 | BD55: =J55+R55+Z55+AH55+AP55+AX55 -> 838.5 | BE55: =IF($O$4>0,(SMALL(($M55,$U55,$AC55),1)),"0") -> 0 | BI55: =BC55-BE55-BF55 -> 2 | BJ55: 838.5 | BO55: ja
B56: 534173AZ | C56: Annemarie Zuijdwegt | D56: Atomic | E56: ZZZ | F56: Capelse R.j.v., RV. | H56: 201 | I56: 206 | J56: =H56+I56 -> 407 | M56: =VLOOKUP(N56,Blad1!A:C,2,0) -> 0 | N56: 25 | O56: 1 | P56: 193 | Q56: 199 | R56: =P56+Q56 -> 392 | U56: =VLOOKUP(V56,Blad1!A:C,2,0) -> 0 | V56: 21 | Z56: =X56+Y56 -> 0 | AC56: 0 | BC56: =M56+U56+AC56+AL56+AT56+BB56 -> 0 | BD56: =J56+R56+Z56+AH56+AP56+AX56 -> 799 | BE56: =IF($O$4>0,(SMALL(($M56,$U56,$AC56),1)),"0") -> 0 | BI56: =BC56-BE56-BF56 -> 0 | BJ56: 799 | BO56: ja
B57: 723995BA | C57: Zinzi Aegten | D57: Black Diamond | E57: ZZZ | F57: Jasmijnruiters, RV. | J57: =H57+I57 -> 0 | M57: 0 | N57: 99 | R57: =P57+Q57 -> 0 | U57: 0 | V57: 99 | X57: 230,5 | Y57: 223,5 | Z57: =X57+Y57 -> 454 | AC57: =VLOOKUP(AD57,Blad1!A:C,2,0) -> 8 | AD57: 9 | BC57: =M57+U57+AC57+AL57+AT57+BB57 -> 8 | BD57: =J57+R57+Z57+AH57+AP57+AX57 -> 454 | BE57: =IF($O$4>0,(SMALL(($M57,$U57,$AC57),1)),"0") -> 0 | BI57: =BC57-BE57-BF57 -> 8 | BJ57: 454
B58: 654467LS | C58: Hilde Smits | D58: Luka | E58: ZZZ | F58: Hubertus, RV. | J58: 0 | M58: 0 | N58: 99 | R58: 0 | U58: 0 | V58: 99 | X58: 229 | Y58: 232,5 | Z58: 461.5 | AC58: =VLOOKUP(AD58,Blad1!A:C,2,0) -> 11 | AD58: 6 | BC58: 11 | BD58: 461.5 | BE58: =IF($O$4>0,(SMALL(($M58,$U58,$AC58),1)),"0") -> 0 | BI58: 11 | BJ58: 461.5
B59: 650867ES | C59: Lotte Somers | D59: Elmondo | E59: ZZZ | F59: Sint Michaël (RSV), RV. | J59: 0 | M59: 0 | N59: 99 | R59: 0 | U59: 0 | V59: 99 | X59: 205 | Y59: 210 | Z59: 415 | AC59: =VLOOKUP(AD59,Blad1!A:C,2,0) -> 4 | AD59: 13 | BC59: 4 | BD59: 415 | BE59: =IF($O$4>0,(SMALL(($M59,$U59,$AC59),1)),"0") -> 0 | BI59: 4 | BJ59: 415
B60: 652570DO | C60: Maartje Overweel | D60: Don Benito | E60: ZZZ | F60: Schouwse Ruiters, RV. De | J60: 0 | M60: 0 | N60: 99 | R60: 0 | U60: 0 | V60: 99 | W60: 1 | X60: 224 | Y60: 222,5 | Z60: 446.5 | AC60: =VLOOKUP(AD60,Blad1!A:C,2,0) -> 10 | AD60: 7 | BC60: 10 | BD60: 446.5 | BE60: =IF($O$4>0,(SMALL(($M60,$U60,$AC60),1)),"0") -> 0 | BI60: 10 | BJ60: 446.5
B61: 766397HP | C61: Veronique Van der Panne | D61: Hexagons Feno | E61: ZZZ | F61: Benschopper Ruiters, RV. | J61: 0 | M61: 0 | N61: 99 | R61: 0 | U61: 0 | V61: 99 | W61: 1 | X61: 215,5 | Y61: 213,5 | Z61: 429 | AC61: =VLOOKUP(AD61,Blad1!A:C,2,0) -> 8 | AD61: 9 | BC61: 8 | BD61: 429 | BE61: =IF($O$4>0,(SMALL(($M61,$U61,$AC61),1)),"0") -> 0 | BI61: 8 | BJ61: 429
B62: 705501ZG | C62: Bianca Gorter | D62: Zonnaleone | E62: ZZZ | F62: Sé-ros, RV. | J62: 0 | N62: 99 | R62: 0 | V62: 99 | W62: 1 | X62: 208 | Y62: 208 | Z62: 416 | AC62: =VLOOKUP(AD62,Blad1!A:C,2,0) -> 7 | AD62: 10 | BC62: 7 | BD62: 416 | BE62: =IF($O$4>0,(SMALL(($M62,$U62,$AC62),1)),"0") -> 7 | BI62: 0 | BJ62: 416
B63: 673258ED | C63: Jose Dingemanse - Van de Velde | D63: Edison | E63: ZZZ | F63: Scheldestad (RSV), RV. De | J63: 0 | M63: 0 | N63: 99 | R63: 0 | U63: 0 | V63: 99 | W63: 1 | X63: 205 | Y63: 199 | Z63: 404 | AC63: =VLOOKUP(AD63,Blad1!A:C,2,0) -> 6 | AD63: 11 | BC63: 6 | BD63: 404 | BE63: =IF($O$4>0,(SMALL(($M63,$U63,$AC63),1)),"0") -> 0 | BI63: 6 | BJ63: 404
B64: 644998DS | C64: Iris Schunselaar | D64: Dalila Imani | E64: ZZZ | F64: Sé-ros, RV. | J64: 0 | M64: 0 | N64: 99 | R64: 0 | U64: 0 | V64: 99 | W64: 1 | X64: 203,5 | Y64: 198,5 | Z64: 402 | AC64: =VLOOKUP(AD64,Blad1!A:C,2,0) -> 5 | AD64: 12 | BC64: 5 | BD64: 402 | BE64: =IF($O$4>0,(SMALL(($M64,$U64,$AC64),1)),"0") -> 0 | BI64: 5 | BJ64: 402
B65: 243085ND | C65: Jolanda Van Dijke | D65: Nick A | E65: ZZZ | F65: Scheldestad (RSV), RV. De | J65: 0 | M65: 0 | N65: 99 | R65: 0 | U65: 0 | V65: 99 | W65: 1 | X65: 205 | Y65: 195 | Z65: 400 | AC65: =VLOOKUP(AD65,Blad1!A:C,2,0) -> 4 | AD65: 13 | BC65: 4 | BD65: 400 | BE65: =IF($O$4>0,(SMALL(($M65,$U65,$AC65),1)),"0") -> 0 | BI65: 4 | BJ65: 400
B66: 521167ZM | C66: Bo De Muynck | D66: Zicolda | E66: ZZZ | F66: Weelruiters, RV. | J66: 0 | M66: 0 | N66: 99 | R66: 0 | U66: 0 | V66: 99 | W66: 1 | X66: 200,5 | Y66: 190 | Z66: 390.5 | AC66: =VLOOKUP(AD66,Blad1!A:C,2,0) -> 3 | AD66: 14 | BC66: 3 | BD66: 390.5 | BE66: =IF($O$4>0,(SMALL(($M66,$U66,$AC66),1)),"0") -> 0 | BI66: 3 | BJ66: 390.5
B67: 724864FD | C67: Rianne Van Dulst - De Lange | D67: Fontainebleau | E67: ZZZ | F67: Veluws Ros, RV. | J67: 0 | M67: 0 | N67: 99 | R67: 0 | U67: 0 | V67: 99 | X67: 220,5 | Y67: 216,5 | Z67: 437 | AC67: =VLOOKUP(AD67,Blad1!A:C,2,0) -> 6 | AD67: 11 | BC67: 6 | BD67: 437 | BE67: =IF($O$4>0,(SMALL(($M67,$U67,$AC67),1)),"0") -> 0 | BI67: 6 | BJ67: 437
B68: 808171DK | C68: Iris Klaassen | D68: Denzel B | E68: ZZZ | F68: Berkenruiters, RV. | J68: 0 | M68: 0 | N68: 99 | R68: 0 | U68: 0 | V68: 99 | X68: 215,5 | Y68: 219,5 | Z68: 435 | AC68: =VLOOKUP(AD68,Blad1!A:C,2,0) -> 4 | AD68: 13 | BC68: 4 | BD68: 435 | BE68: =IF($O$4>0,(SMALL(($M68,$U68,$AC68),1)),"0") -> 0 | BI68: 4 | BJ68: 435
B69: 599232AK | C69: Rob Kuijper | D69: Anky V.d. T. | E69: ZZZ | F69: Srjv Groenendaal, RV. | J69: 0 | M69: 0 | N69: 99 | R69: 0 | U69: 0 | V69: 99 | X69: 213,5 | Y69: 211,5 | Z69: 425 | AC69: =VLOOKUP(AD69,Blad1!A:C,2,0) -> 1 | AD69: 16 | BC69: 1 | BD69: 425 | BE69: =IF($O$4>0,(SMALL(($M69,$U69,$AC69),1)),"0") -> 0 | BI69: 1 | BJ69: 425
B70: 652296DM | C70: Kelly Maijoor | D70: Donar V | E70: ZZZ | F70: Ronde Venen, RV. | J70: 0 | M70: 0 | N70: 99 | R70: 0 | U70: 0 | V70: 99 | X70: 217 | Y70: 207,5 | Z70: 424.5 | AC70: =VLOOKUP(AD70,Blad1!A:C,2,0) -> 0 | AD70: 17 | BC70: 0 | BD70: 424.5 | BE70: =IF($O$4>0,(SMALL(($M70,$U70,$AC70),1)),"0") -> 0 | BI70: 0 | BJ70: 424.5
B71: 683863EC | C71: Janet Castricium | D71: Easy Khan | E71: ZZZ | F71: Heerhugowaard, RV. | J71: 0 | M71: 0 | N71: 99 | R71: 0 | U71: 0 | V71: 99 | X71: 211 | Y71: 209,5 | Z71: 420.5 | AC71: =VLOOKUP(AD71,Blad1!A:C,2,0) -> 0 | AD71: 18 | BC71: 0 | BD71: 420.5 | BE71: =IF($O$4>0,(SMALL(($M71,$U71,$AC71),1)),"0") -> 0 | BI71: 0 | BJ71: 420.5
B72: 765944BS | C72: Claudia Scheeres - Roos | D72: Biotelli's Empereur | E72: ZZZ | F72: Noord-Hollandse, RV. | J72: 0 | M72: 0 | N72: 99 | R72: 0 | U72: 0 | V72: 99 | X72: 199,5 | Y72: 211,5 | Z72: 411 | AC72: =VLOOKUP(AD72,Blad1!A:C,2,0) -> 0 | AD72: 19 | BC72: 0 | BD72: 411 | BE72: =IF($O$4>0,(SMALL(($M72,$U72,$AC72),1)),"0") -> 0 | BI72: 0 | BJ72: 411
B73: 778062GF | C73: Stephanie De Frel | D73: Vmf Gladiator | E73: ZZZ | F73: Hulst, RV. | H73: 231 | I73: 240.5 | J73: =H73+I73 -> 471.5 | M73: =VLOOKUP(N73,Blad1!A:C,2,0) -> 12 | N73: 5 | R73: =P73+Q73 -> 0 | V73: 99 | Z73: =X73+Y73 -> 0 | BC73: =M73+U73+AC73+AL73+AT73+BB73 -> 12 | BD73: =J73+R73+Z73+AH73+AP73+AX73 -> 471.5 | BE73: =IF($O$4>0,(SMALL(($M73,$U73,$AC73),1)),"0") -> 12 | BI73: =BC73-BE73-BF73 -> 0 | BJ73: =BD73-BG73-BH73 -> 471.5
B74: 810485LH | C74: Hergen Van Hall | D74: Love For You | E74: ZZZ | F74: Molenruiters, RV. | H74: 212 | I74: 208.5 | J74: 420.5 | M74: =VLOOKUP(N74,Blad1!A:C,2,0) -> 7 | N74: 10 | R74: 0 | V74: 99 | Z74: 0 | BC74: 7 | BD74: 420.5 | BE74: =IF($O$4>0,(SMALL(($M74,$U74,$AC74),1)),"0") -> 7 | BI74: 0 | BJ74: 420.5
B75: 801890FK | C75: Annemieke Vincourt - Krom | D75: Fimosa | E75: ZZZ | F75: Millenniumruiters (RSV), RV. | J75: 0 | M75: 0 | N75: 99 | P75: 232 | Q75: 224 | R75: 456 | U75: =VLOOKUP(V75,Blad1!A:C,2,0) -> 11 | V75: 6 | Z75: 0 | BC75: 11 | BD75: 456 | BE75: =IF($O$4>0,(SMALL(($M75,$U75,$AC75),1)),"0") -> 0 | BI75: 11 | BJ75: 456
B76: 719724BB | C76: Cindy Boere | D76: Brown Sugar | E76: ZZZ | F76: Giessenruiters, RV. | J76: 0 | M76: 0 | N76: 99 | O76: 1 | P76: 220,5 | Q76: 228,5 | R76: 449 | U76: =VLOOKUP(V76,Blad1!A:C,2,0) -> 10 | V76: 7 | Z76: 0 | BC76: 10 | BD76: 449 | BE76: =IF($O$4>0,(SMALL(($M76,$U76,$AC76),1)),"0") -> 0 | BI76: 10 | BJ76: 449
B77: 810822FK | C77: Carola Kral | D77: Fearless | E77: ZZZ | F77: Hoeve Westland Ruiters, RV. | H77: 232 | I77: 228,5 | J77: 460.5 | M77: =VLOOKUP(N77,Blad1!A:C,2,0) -> 10 | N77: 7 | R77: 0 | U77: 0 | V77: 99 | Z77: 0 | BC77: 10 | BD77: 460.5 | BE77: =IF($O$4>0,(SMALL(($M77,$U77,$AC77),1)),"0") -> 0 | BI77: 10 | BJ77: 460.5
B78: 836481DW | C78: Steve Van der Woude | D78: Dasookwat | E78: ZZZ | F78: Vrije Passage (HRV), RV. | H78: 231,5 | I78: 226,5 | J78: 458 | M78: =VLOOKUP(N78,Blad1!A:C,2,0) -> 8 | N78: 9 | R78: 0 | U78: 0 | V78: 99 | Z78: 0 | BC78: 8 | BD78: 458 | BE78: =IF($O$4>0,(SMALL(($M78,$U78,$AC78),1)),"0") -> 0 | BI78: 8 | BJ78: 458
B79: 500798WL | C79: Roel Van Lenthe | D79: Watouche | E79: ZZZ | F79: Nieuwleusen, RV. | J79: 0 | M79: 0 | N79: 99 | P79: 225,5 | Q79: 206,5 | R79: 432 | U79: =VLOOKUP(V79,Blad1!A:C,2,0) -> 5 | V79: 12 | Z79: 0 | BC79: 5 | BD79: 432 | BE79: =IF($O$4>0,(SMALL(($M79,$U79,$AC79),1)),"0") -> 0 | BI79: 5 | BJ79: 432
B80: 755161GN | C80: Jeanine Nieuwenhuis | D80: Great Lady TC | E80: ZZZ | F80: Oud-beijerland, RV. | H80: 220 | I80: 220,5 | J80: 440.5 | M80: =VLOOKUP(N80,[1]Blad1!A:C,2,0) -> 5 | N80: 12 | R80: 0 | U80: 0 | V80: 99 | Z80: 0 | BC80: 5 | BD80: 440.5 | BE80: =IF($O$4>0,(SMALL(($M80,$U80,$AC80),1)),"0") -> 0 | BI80: 5 | BJ80: 440.5
B81: 802686ZS | C81: Anouk Slabbers | D81: Zülle | E81: ZZZ | F81: Any Dale, RV. | J81: 0 | M81: 0 | N81: 99 | P81: 218 | Q81: 205 | R81: 423 | U81: =VLOOKUP(V81,Blad1!A:C,2,0) -> 4 | V81: 13 | Z81: 0 | BC81: 4 | BD81: 423 | BE81: =IF($O$4>0,(SMALL(($M81,$U81,$AC81),1)),"0") -> 0 | BI81: 4 | BJ81: 423
B82: 554558SI | C82: Janet Yntema | D82: Sybrich Fan 'e Koai | E82: ZZZ | F82: Ruterwille, RV. | H82: 199 | I82: 205 | J82: 404 | M82: =VLOOKUP(N82,Blad1!A:C,2,0) -> 4 | N82: 13 | R82: 0 | U82: 0 | V82: 99 | Z82: 0 | BC82: 4 | BD82: 404 | BE82: =IF($O$4>0,(SMALL(($M82,$U82,$AC82),1)),"0") -> 0 | BI82: 4 | BJ82: 404
B83: 785359TA | C83: Elles Van Asseldonk | D83: Tjello | E83: ZZZ | F83: Hubertus, RV. | H83: 224.5 | I83: 225.5 | J83: 450 | M83: =VLOOKUP(N83,Blad1!A:C,2,0) -> 3 | N83: 14 | O83: 1 | P83: 0 | Q83: 0 | R83: 0 | U83: 0 | V83: 99 | Z83: 0 | BC83: 3 | BD83: 450 | BE83: =IF($O$4>0,(SMALL(($M83,$U83,$AC83),1)),"0") -> 0 | BI83: 3 | BJ83: 450
B84: 783801ZV | C84: Serena Vergunst | D84: Zigeuner | E84: ZZZ | F84: Palensteynruiters, RV. | H84: 206 | I84: 221 | J84: 427 | M84: =VLOOKUP(N84,Blad1!A:C,2,0) -> 3 | N84: 14 | R84: 0 | U84: 0 | V84: 99 | Z84: 0 | BC84: 3 | BD84: 427 | BE84: =IF($O$4>0,(SMALL(($M84,$U84,$AC84),1)),"0") -> 0 | BI84: 3 | BJ84: 427
B85: 631587AS | C85: Marsha Smits | D85: Actie W | E85: ZZZ | F85: Niop, RV. | H85: 198 | I85: 196 | J85: 394 | M85: =VLOOKUP(N85,Blad1!A:C,2,0) -> 3 | N85: 14 | R85: 0 | U85: 0 | V85: 99 | Z85: 0 | BC85: 3 | BD85: 394 | BE85: =IF($O$4>0,(SMALL(($M85,$U85,$AC85),1)),"0") -> 0 | BI85: 3 | BJ85: 394
B86: 546014BJ | C86: Nicole Jurriens | D86: Bas | E86: ZZZ | F86: La Grande, RV. | H86: 209 | I86: 217,5 | J86: 426.5 | M86: =VLOOKUP(N86,Blad1!A:C,2,0) -> 2 | N86: 15 | R86: 0 | U86: 0 | V86: 99 | Z86: 0 | BC86: 2 | BD86: 426.5 | BE86: =IF($O$4>0,(SMALL(($M86,$U86,$AC86),1)),"0") -> 0 | BI86: 2 | BJ86: 426.5
B87: 666881EB | C87: Ina Beuving | D87: Erona Utopia | E87: ZZZ | F87: Exloo, RV. | H87: 189.5 | I87: 195.5 | J87: 385 | M87: =VLOOKUP(N87,Blad1!A:C,2,0) -> 2 | N87: 15 | R87: 0 | U87: 0 | V87: 99 | Z87: 0 | BC87: 2 | BD87: 385 | BE87: =IF($O$4>0,(SMALL(($M87,$U87,$AC87),1)),"0") -> 0 | BI87: 2 | BJ87: 385
B88: 609752DE | C88: Fiona Van Es | D88: Donna | E88: ZZZ | F88: Gelderse Boys, RV. | J88: 0 | M88: 0 | N88: 99 | O88: 1 | P88: 202,5 | Q88: 218 | R88: 420.5 | U88: =VLOOKUP(V88,Blad1!A:C,2,0) -> 1 | V88: 16 | Z88: 0 | BC88: 1 | BD88: 420.5 | BE88: =IF($O$4>0,(SMALL(($M88,$U88,$AC88),1)),"0") -> 0 | BI88: 1 | BJ88: 420.5
B89: 718954EW | C89: Maike Wiebelitz | D89: Empire | E89: ZZZ | F89: Hoeve Westland Ruiters, RV. | J89: 0 | M89: 0 | N89: 99 | O89: 1 | P89: 201 | Q89: 214,5 | R89: 415.5 | U89: =VLOOKUP(V89,Blad1!A:C,2,0) -> 1 | V89: 16 | Z89: 0 | BC89: 1 | BD89: 415.5 | BE89: =IF($O$4>0,(SMALL(($M89,$U89,$AC89),1)),"0") -> 0 | BI89: 1 | BJ89: 415.5
B90: 545322BL | C90: Saskia Lacroix | D90: Berlita | E90: ZZZ | F90: Nootdorp, RV. | H90: 211 | I90: 212 | J90: 423 | M90: =VLOOKUP(N90,Blad1!A:C,2,0) -> 1 | N90: 16 | R90: 0 | U90: 0 | V90: 99 | Z90: 0 | BC90: 1 | BD90: 423 | BE90: =IF($O$4>0,(SMALL(($M90,$U90,$AC90),1)),"0") -> 0 | BI90: 1 | BJ90: 423
B91: 781510FO | C91: Marlies Ottevanger | D91: Fernando | E91: ZZZ | F91: Westland, RV. | H91: 217.5 | I91: 231.5 | J91: 449 | M91: =VLOOKUP(N91,Blad1!A:C,2,0) -> 1 | N91: 16 | R91: 0 | U91: 0 | V91: 99 | Z91: 0 | BC91: 1 | BD91: 449 | BE91: =IF($O$4>0,(SMALL(($M91,$U91,$AC91),1)),"0") -> 0 | BI91: 1 | BJ91: 449
B92: 738716DM | C92: Simone Meilink | D92: Delana T | E92: ZZZ | F92: Spijkerboor (RSV), RV. | H92: 182 | I92: 187 | J92: 369 | M92: =VLOOKUP(N92,Blad1!A:C,2,0) -> 1 | N92: 16 | R92: 0 | U92: 0 | V92: 99 | Z92: 0 | BC92: 1 | BD92: 369 | BE92: =IF($O$4>0,(SMALL(($M92,$U92,$AC92),1)),"0") -> 0 | BI92: 1 | BJ92: 369
B93: 781458AS | C93: Marijke van Schaik | D93: Aramis | E93: ZZZ | F93: Ronde Venen, RV. | H93: 201.5 | I93: 194.5 | J93: 396 | M93: =VLOOKUP(N93,Blad1!A:C,2,0) -> 0 | N93: 31 | R93: 0 | U93: 0 | V93: 99 | Z93: 0 | BC93: 0 | BD93: 396 | BE93: =IF($O$4>0,(SMALL(($M93,$U93,$AC93),1)),"0") -> 0 | BI93: 0 | BJ93: 396
B94: 817432GK | C94: Danielle Keur | D94: Forever | E94: ZZZ | F94: Noord-Hollandse, RV. | H94: 204.5 | I94: 214.5 | J94: 419 | M94: =VLOOKUP(N94,Blad1!A:C,2,0) -> 0 | N94: 30 | R94: 0 | U94: 0 | V94: 99 | Z94: 0 | BC94: 0 | BD94: 419 | BE94: =IF($O$4>0,(SMALL(($M94,$U94,$AC94),1)),"0") -> 0 | BI94: 0 | BJ94: 419
B95: 815984FN | C95: Albert Nap | D95: Future | E95: ZZZ | F95: Hoge Devel (RSV), RV. | H95: 200.5 | I95: 226.5 | J95: 427 | M95: =VLOOKUP(N95,Blad1!A:C,2,0) -> 0 | N95: 29 | R95: 0 | U95: 0 | V95: 99 | Z95: 0 | BC95: 0 | BD95: 427 | BE95: =IF($O$4>0,(SMALL(($M95,$U95,$AC95),1)),"0") -> 0 | BI95: 0 | BJ95: 427
B96: 838080DV | C96: Evert Veenstra | D96: Divaldi | E96: ZZZ | F96: Zoetermeer, RV. | H96: 192,5 | I96: 180 | J96: 372.5 | M96: =VLOOKUP(N96,Blad1!A:C,2,0) -> 0 | N96: 28 | R96: 0 | U96: 0 | V96: 99 | Z96: 0 | BC96: 0 | BD96: 372.5 | BE96: =IF($O$4>0,(SMALL(($M96,$U96,$AC96),1)),"0") -> 0 | BI96: 0 | BJ96: 372.5
B97: 602072DS | C97: Isabelle Spinhoven | D97: Domingo | E97: ZZZ | F97: Plantageruiters, RV. De | H97: 201 | I97: 191 | J97: 392 | M97: =VLOOKUP(N97,Blad1!A:C,2,0) -> 0 | N97: 27 | R97: 0 | U97: 0 | V97: 99 | Z97: 0 | BC97: 0 | BD97: 392 | BE97: =IF($O$4>0,(SMALL(($M97,$U97,$AC97),1)),"0") -> 0 | BI97: 0 | BJ97: 392
B98: 738833DM | C98: Merel Massop | D98: MS Duchateau | E98: ZZZ | F98: Voornruiters, RV. De | H98: 210.5 | I98: 223 | J98: 433.5 | M98: =VLOOKUP(N98,Blad1!A:C,2,0) -> 0 | N98: 27 | R98: 0 | U98: 0 | V98: 99 | Z98: 0 | BC98: 0 | BD98: 433.5 | BE98: =IF($O$4>0,(SMALL(($M98,$U98,$AC98),1)),"0") -> 0 | BI98: 0 | BJ98: 433.5
B99: 569901ZA | C99: Merel Ahles | D99: Zadinsky | E99: ZZZ | F99: Prestige Ruiters, RV. De | H99: 203 | I99: 201 | J99: 404 | M99: =VLOOKUP(N99,Blad1!A:C,2,0) -> 0 | N99: 26 | R99: 0 | U99: 0 | V99: 99 | Z99: 0 | BC99: 0 | BD99: 404 | BE99: =IF($O$4>0,(SMALL(($M99,$U99,$AC99),1)),"0") -> 0 | BI99: 0 | BJ99: 404
B100: 402089VT | C100: Jasmijn Timmermans | D100: Vaduz Jt | E100: ZZZ | F100: Duyksehoef, RV. | H100: 216.5 | I100: 222 | J100: 438.5 | M100: =VLOOKUP(N100,Blad1!A:C,2,0) -> 0 | N100: 25 | R100: 0 | U100: 0 | V100: 99 | Z100: 0 | BC100: 0 | BD100: 438.5 | BE100: =IF($O$4>0,(SMALL(($M100,$U100,$AC100),1)),"0") -> 0 | BI100: 0 | BJ100: 438.5
B101: 687931HM | C101: Sharina Mandemakers | D101: Superhorse Hawar W. | E101: ZZZ | F101: Bommelerwaard, RV. De | H101: 217 | I101: 222 | J101: 439 | M101: =VLOOKUP(N101,Blad1!A:C,2,0) -> 0 | N101: 24 | R101: 0 | U101: 0 | V101: 99 | Z101: 0 | BC101: 0 | BD101: 439 | BE101: =IF($O$4>0,(SMALL(($M101,$U101,$AC101),1)),"0") -> 0 | BI101: 0 | BJ101: 439
B102: 799960FK | C102: Mariëtte Kunz | D102: Daylight | E102: ZZZ | F102: s-Gravenhof, RV. | H102: 201 | I102: 208,5 | J102: 409.5 | M102: =VLOOKUP(N102,Blad1!A:C,2,0) -> 0 | N102: 24 | R102: 0 | U102: 0 | V102: 99 | Z102: 0 | BC102: 0 | BD102: 409.5 | BE102: =IF($O$4>0,(SMALL(($M102,$U102,$AC102),1)),"0") -> 0 | BI102: 0 | BJ102: 409.5
B103: 640166DL | C103: Daphne Van Leeuwen | D103: Salve Daijiro | E103: ZZZ | F103: Jeanne D'arc, RV. | H103: 206 | I103: 211,5 | J103: 417.5 | M103: =VLOOKUP(N103,Blad1!A:C,2,0) -> 0 | N103: 23 | R103: 0 | U103: 0 | V103: 99 | Z103: 0 | BC103: 0 | BD103: 417.5 | BE103: =IF($O$4>0,(SMALL(($M103,$U103,$AC103),1)),"0") -> 0 | BI103: 0 | BJ103: 417.5
B104: 552527BB | C104: Monique Byl | D104: Bing | E104: ZZZ | F104: Noblesse, RV. | J104: 0 | M104: 0 | N104: 99 | O104: 1 | P104: 172,5 | Q104: 179 | R104: 351.5 | U104: =VLOOKUP(V104,Blad1!A:C,2,0) -> 0 | V104: 22 | Z104: 0 | BC104: 0 | BD104: 351.5 | BE104: =IF($O$4>0,(SMALL(($M104,$U104,$AC104),1)),"0") -> 0 | BI104: 0 | BJ104: 351.5
B105: 789404DR | C105: Maikel De Reuver | D105: Don Sonador | E105: ZZZ | F105: Heer Jan's Ruiters, RV. | J105: =H105+I105 -> 0 | M105: 0 | N105: 99 | O105: 1 | P105: 189,5 | Q105: 192,5 | R105: =P105+Q105 -> 382 | U105: =VLOOKUP(V105,Blad1!A:C,2,0) -> 0 | V105: 21 | Z105: =X105+Y105 -> 0 | BC105: =M105+U105+AC105+AL105+AT105+BB105 -> 0 | BD105: =J105+R105+Z105+AH105+AP105+AX105 -> 382 | BE105: =IF($O$4>0,(SMALL(($M105,$U105,$AC105),1)),"0") -> 0 | BI105: =BC105-BE105-BF105 -> 0 | BJ105: =BD105-BG105-BH105 -> 382
B106: 547286TW | C106: Edith De Wild | D106: Teunis Atsje | E106: ZZZ | F106: Hippos, RV. | J106: 0 | M106: 0 | N106: 99 | O106: 1 | P106: 196 | Q106: 202,5 | R106: 398.5 | U106: =VLOOKUP(V106,Blad1!A:C,2,0) -> 0 | V106: 20 | Z106: 0 | BC106: 0 | BD106: 398.5 | BE106: =IF($O$4>0,(SMALL(($M106,$U106,$AC106),1)),"0") -> 0 | BI106: 0 | BJ106: 398.5
B107: 583609KR | C107: Esther Van Rijswijk | D107: Kirow | E107: ZZZ | F107: Delflandruiters, RV. | J107: 0 | M107: 0 | N107: 99 | O107: 1 | P107: 200 | Q107: 198 | R107: 398 | U107: =VLOOKUP(V107,Blad1!A:C,2,0) -> 0 | V107: 20 | Z107: 0 | BC107: 0 | BD107: 398 | BE107: =IF($O$4>0,(SMALL(($M107,$U107,$AC107),1)),"0") -> 0 | BI107: 0 | BJ107: 398
B108: 719404BR | C108: Marrit Reusien | D108: Brinkhof's Filius Apache | E108: ZZZ | F108: Dwingeloo, RV. | J108: 0 | M108: 0 | N108: 99 | P108: 205 | Q108: 204 | R108: 409 | U108: =VLOOKUP(V108,Blad1!A:C,2,0) -> 0 | V108: 20 | Z108: 0 | BC108: 0 | BD108: 409 | BE108: =IF($O$4>0,(SMALL(($M108,$U108,$AC108),1)),"0") -> 0 | BI108: 0 | BJ108: 409
B109: 668140EK | C109: Leonie Van der Kooij | D109: Egbert | E109: ZZZ | F109: Hippische Sportvereniging Prometheus | H109: 205,5 | I109: 216,5 | J109: 422 | M109: =VLOOKUP(N109,Blad1!A:C,2,0) -> 0 | N109: 20 | R109: 0 | U109: 0 | V109: 99 | Z109: 0 | BC109: 0 | BD109: 422 | BE109: =IF($O$4>0,(SMALL(($M109,$U109,$AC109),1)),"0") -> 0 | BI109: 0 | BJ109: 422
B110: 584864CM | C110: Deborah Van Mook | D110: Calvin Klein | E110: ZZZ | F110: Eendracht, RV. | H110: 214.5 | I110: 229.5 | J110: 444 | M110: =VLOOKUP(N110,Blad1!A:C,2,0) -> 0 | N110: 20 | R110: 0 | U110: 0 | V110: 99 | Z110: 0 | BC110: 0 | BD110: 444 | BE110: =IF($O$4>0,(SMALL(($M110,$U110,$AC110),1)),"0") -> 0 | BI110: 0 | BJ110: 444
B111: 677187DH | C111: Laila Hanzouli | D111: Disco Danaë | E111: ZZZ | F111: t Einde, RV. | J111: 0 | M111: 0 | N111: 99 | O111: 1 | P111: 200,5 | Q111: 207,5 | R111: 408 | U111: =VLOOKUP(V111,Blad1!A:C,2,0) -> 0 | V111: 19 | Z111: 0 | BC111: 0 | BD111: 408 | BE111: =IF($O$4>0,(SMALL(($M111,$U111,$AC111),1)),"0") -> 0 | BI111: 0 | BJ111: 408
B112: 412748TT | C112: Sanne Tazelaar | D112: Totilas | E112: ZZZ | F112: Hoeve Westland Ruiters, RV. | H112: 206 | I112: 216,5 | J112: 422.5 | M112: =VLOOKUP(N112,Blad1!A:C,2,0) -> 0 | N112: 19 | R112: 0 | U112: 0 | V112: 99 | Z112: 0 | BC112: 0 | BD112: 422.5 | BE112: =IF($O$4>0,(SMALL(($M112,$U112,$AC112),1)),"0") -> 0 | BI112: 0 | BJ112: 422.5
B113: 820956ZV | C113: Michelle Vacquier | D113: Zhara - Obertje | E113: ZZZ | F113: Sint Michaël (RSV), RV. | H113: 221 | I113: 223 | J113: 444 | M113: =VLOOKUP(N113,Blad1!A:C,2,0) -> 0 | N113: 19 | R113: 0 | U113: 0 | V113: 99 | Z113: 0 | BC113: 0 | BD113: 444 | BE113: =IF($O$4>0,(SMALL(($M113,$U113,$AC113),1)),"0") -> 0 | BI113: 0 | BJ113: 444
B114: 753646EB | C114: Michelle Van Berkum | D114: Enjoy | E114: ZZZ | F114: Steegh, RV. De | J114: 0 | M114: 0 | N114: 99 | O114: 1 | P114: 200,5 | Q114: 205,5 | R114: 406 | U114: =VLOOKUP(V114,Blad1!A:C,2,0) -> 0 | V114: 18 | Z114: 0 | BC114: 0 | BD114: 406 | BE114: =IF($O$4>0,(SMALL(($M114,$U114,$AC114),1)),"0") -> 0 | BI114: 0 | BJ114: 406
B115: 756368LV | C115: Lisanne Veenje | D115: Loadewyk 431 | E115: ZZZ | F115: Nienoord, RV. | J115: 0 | M115: 0 | N115: 99 | P115: 205 | Q115: 207 | R115: 412 | U115: =VLOOKUP(V115,Blad1!A:C,2,0) -> 0 | V115: 18 | Z115: 0 | BC115: 0 | BD115: 412 | BE115: =IF($O$4>0,(SMALL(($M115,$U115,$AC115),1)),"0") -> 0 | BI115: 0 | BJ115: 412
B116: 598025CM | C116: Latoya Van der Meer | D116: Cheyenne | E116: ZZZ | F116: s-Gravenhof, RV. | H116: 210 | I116: 212,5 | J116: 422.5 | M116: =VLOOKUP(N116,Blad1!A:C,2,0) -> 0 | N116: 18 | R116: 0 | U116: 0 | V116: 99 | Z116: 0 | BC116: 0 | BD116: 422.5 | BE116: =IF($O$4>0,(SMALL(($M116,$U116,$AC116),1)),"0") -> 0 | BI116: 0 | BJ116: 422.5
B117: 655544EG | C117: Manon Van 't Goor | D117: Emanda | E117: ZZZ | F117: Sint Anthonis (Martinus), RV. | J117: 0 | M117: 0 | N117: 99 | O117: 1 | P117: 203,5 | Q117: 203 | R117: 406.5 | U117: =VLOOKUP(V117,Blad1!A:C,2,0) -> 0 | V117: 17 | Z117: 0 | BC117: 0 | BD117: 406.5 | BE117: =IF($O$4>0,(SMALL(($M117,$U117,$AC117),1)),"0") -> 0 | BI117: 0 | BJ117: 406.5
B118: 660101DH | C118: Milou De Haan | D118: De Keizer | E118: ZZZ | F118: Aa-ruiters, RV. | J118: 0 | M118: 0 | N118: 99 | O118: 1 | P118: 198 | Q118: 216 | R118: 414 | U118: =VLOOKUP(V118,Blad1!A:C,2,0) -> 0 | V118: 17 | Z118: 0 | BC118: 0 | BD118: 414 | BE118: =IF($O$4>0,(SMALL(($M118,$U118,$AC118),1)),"0") -> 0 | BI118: 0 | BJ118: 414
B119: 664981SO | C119: Wendy Okkema | D119: Stal Okkema's Eos | E119: ZZZ | F119: Raerderhimrúters, RV. | J119: 0 | M119: 0 | N119: 99 | P119: 213 | Q119: 203,5 | R119: 416.5 | U119: =VLOOKUP(V119,Blad1!A:C,2,0) -> 0 | V119: 17 | Z119: 0 | BC119: 0 | BD119: 416.5 | BE119: =IF($O$4>0,(SMALL(($M119,$U119,$AC119),1)),"0") -> 0 | BI119: 0 | BJ119: 416.5

Sheet Lichte Tour
A1: Selectie uitslagen
C2: 1 | D2: =FLOOR((C2+3)/4,1) -> 1 | H2: 192 | I2: 190 | J2: =H2+I2 -> 382 | N2: 1 | P2: 193 | Q2: 193 | R2: =P2+Q2 -> 386 | V2: 2 | X2: 198 | Y2: 198 | Z2: =X2+Y2 -> 396 | AD2: 3 | AF2: 177 | AG2: 177 | AH2: =AF2+AG2 -> 354 | AL2: 4 | AN2: 178 | AO2: 178 | AP2: =AN2+AO2 -> 356 | AT2: 5 | AV2: 179 | AW2: 179 | AX2: =AV2+AW2 -> 358 | BB2: 6 | BC2: =N2+V2+AD2+AL2+AT2+BB2 -> 21 | BD2: =J2+R2+Z2+AH2+AP2+AX2 -> 2232 | BE2: =IF($O$4>0,(LARGE(($N2,$V2,$AD2,$AL2,$AT2,$BB2),1)),"0") -> 6 | BF2: =IF($O$4>0,(LARGE(($N2,$V2,$AD2,$AL2,$AT2,$BB2),2)),"0") -> 5 | BG2: 354 | BH2: 354 | BI2: =BC2-BE2-BF2 -> 10 | BJ2: =BD2-BG2-BH2 -> 1524
A3: Kring: | C3: =Instellingen!B3 -> Selectie Subtop | F3: Aantal afvaardiging Indoorkampioenschappen: | O3: 20 | BC3: Aantal wedstrijden: | BL3: =Instellingen!B6 -> 3
A4: Klasse: | C4: LT | F4: Aantal afval resultaten: | O4: =Instellingen!B7 -> 1
A5: Cat.: | F5: Plaatsingspunten niet gestart: | O5: =Instellingen!B5 -> 99 | BC5: Aantal reserves: | BL5: 10
F6: Lokatie: | G6: =Instellingen!B36 -> Delft/Werkendam/Harich | O6: =Instellingen!B37 -> uden/Emmeloord/Den Hoorn | W6: =Instellingen!B38 -> Nw. en St. Joosland/Boxtel/Bunschoten-Spakenburg | AE6: =Instellingen!B39 ->  | AM6: =Instellingen!B40 ->  | AU6: =Instellingen!B41 ->  | BC6: Dressuur | BI6: Pnt. 60% regel | BL6: 228
F7: Datum: | G7: =Instellingen!C36 -> 18 & 19 -11-2017 | O7: =Instellingen!C37 -> 16 & 17 -12 -2017 | W7: =Instellingen!C38 -> 20 en 21-1-2018 | AE7: =Instellingen!C39 ->  | AM7: =Instellingen!C40 ->  | AU7: =Instellingen!C41 ->  | BC7: Tot. | BD7: Tot. | BE7: afval | BF7: afval | BG7: afval | BH7: afval | BI7: Beste | BJ7: Beste
A8: Pl. | B8: Comb.nr. | C8: Ruiter/amazone | D8: Paard/pony | E8: kl. | F8: vereniging | G8: Ring | H8: pnt.C | I8: pnt.H | J8: pnt.tot | K8: ex 1 | L8: ex 2 | M8: pl. | N8: pl.p. | O8: Ring | P8: pnt.C | Q8: pnt.H | R8: pnt.tot. | S8: ex 1 | T8: ex 2 | U8: pl. | V8: pl.p. | W8: Ring | X8: pnt.C | Y8: pnt. H | Z8: pnt.tot. | AA8: ex 1 | AB8: ex 2 | AC8: pl. | AD8: pl.p. | AE8: Ring | AF8: pnt.C | AG8: pnt.H | AH8: pnt.tot. | AI8: ex 1 | AJ8: ex 2 | AK8: pl. | AL8: pl.p. | AM8: Ring | AN8: pnt.C | AO8: pnt.H | AP8: pnt.tot. | AQ8: ex 1 | AR8: ex 2 | AS8: pl. | AT8: pl.p. | AU8: Ring | AV8: pnt.C | AW8: pnt.H | AX8: pnt.tot. | AY8: ex 1 | AZ8: ex 2 | BA8: pl. | BB8: pl.p. | BC8: pl.pnt | BD8: punten | BE8: pl.pnt | BF8: pl.pnt | BG8: punten | BH8: punten | BI8: pl.pnt | BJ8: punten | BK8: Afv. | BL8: Res. | BM8: Afv. Regio | BN8: opmerking
B9: 725894RL | C9: Robin Van Lierop | D9: Finja | E9: LT | F9: Ewijk, RV. | H9: 280,5 | I9: 275 | J9: =H9+I9 -> 555.5 | M9: =VLOOKUP(N9,Blad1!A:C,2,0) -> 17 | N9: 2 | O9: 1 | P9: 282 | Q9: 283 | R9: =P9+Q9 -> 565 | U9: =VLOOKUP(V9,Blad1!A:C,2,0) -> 20 | V9: 1 | W9: 2 | X9: 251 | Y9: 253 | Z9: =X9+Y9 -> 504 | AC9: =VLOOKUP(AD9,Blad1!A:C,2,0) -> 20 | AD9: 1 | BC9: =M9+U9+AC9 -> 57 | BD9: =J9+R9+Z9+AH9+AP9+AX9 -> 1624.5 | BE9: =IF($O$4>0,(SMALL(($M9,$U9,$AC9,$AL9,$AT9,$BB9),1)),"0") -> 17 | BI9: =BC9-BE9-BF9 -> 40 | BJ9: =BD9-BG9-BH9 -> 1624.5 | BK9: 1 | BO9: =IF(COUNT(M9,U9,AC9)>1,"ja","nee") -> ja
B10: 765172FC | C10: Adelinde Cornelissen | D10: Fleau de Baian | E10: LT | F10: Stroomruiters, RV. | H10: 287 | I10: 275 | J10: 562 | M10: =VLOOKUP(N10,Blad1!A:C,2,0) -> 20 | N10: 1 | P10: 290 | Q10: 279 | R10: 569 | U10: =VLOOKUP(V10,Blad1!A:C,2,0) -> 20 | V10: 1 | W10: 3 | X10: 257,5 | Y10: 248,5 | Z10: 506 | AC10: =VLOOKUP(AD10,Blad1!A:C,2,0) -> 20 | AD10: 1 | BC10: 60 | BD10: 1637 | BE10: =IF($O$4>0,(SMALL(($M10,$U10,$AC10,$AL10,$AT10,$BB10),1)),"0") -> 20 | BI10: 40 | BJ10: 1637 | BK10: 2 | BO10: =IF(COUNT(M10,U10,AC10)>1,"ja","nee") -> ja
B11: 660566EC | C11: Ilse Van Cranenbroek | D11: Emerald S | E11: LT | F11: Molenhorst, RV. De | H11: 280,5 | I11: 284 | J11: 564.5 | M11: =VLOOKUP(N11,Blad1!A:C,2,0) -> 20 | N11: 1 | O11: 1 | P11: 280,5 | Q11: 284 | R11: 564.5 | U11: =VLOOKUP(V11,Blad1!A:C,2,0) -> 17 | V11: 2 | Z11: 0 | AC11: 0 | AD11: 99 | BC11: 37 | BD11: 1129 | BE11: =IF($O$4>0,(SMALL(($M11,$U11,$AC11,$AL11,$AT11,$BB11),1)),"0") -> 0 | BI11: 37 | BJ11: 1129 | BK11: 3 | BO11: ja
B12: 808868DH | C12: Danielle Heijkoop | D12: Daula II | E12: LT | F12: Zwethruiters, RV. | H12: 269,5 | I12: 272,5 | J12: 542 | M12: =VLOOKUP(N12,Blad1!A:C,2,0) -> 17 | N12: 2 | O12: 1 | P12: 269,5 | Q12: 269 | R12: 538.5 | U12: =VLOOKUP(V12,Blad1!A:C,2,0) -> 20 | V12: 1 | Z12: 0 | AC12: 0 | AD12: 99 | BC12: 37 | BD12: 1080.5 | BE12: =IF($O$4>0,(SMALL(($M12,$U12,$AC12,$AL12,$AT12,$BB12),1)),"0") -> 0 | BI12: 37 | BJ12: 1080.5 | BK12: 4 | BO12: ja
B13: 783238FV | C13: Mara De Vries | D13: Farzana G | E13: LT | F13: Biesboschruiters, RV. | H13: 269 | I13: 275,5 | J13: 544.5 | M13: =VLOOKUP(N13,Blad1!A:C,2,0) -> 15 | N13: 3 | O13: 1 | P13: 261 | Q13: 256 | R13: 517 | U13: =VLOOKUP(V13,Blad1!A:C,2,0) -> 11 | V13: 6 | W13: 1 | X13: 262,5 | Y13: 248 | Z13: 510.5 | AC13: =VLOOKUP(AD13,Blad1!A:C,2,0) -> 20 | AD13: 1 | BC13: 46 | BD13: 1572 | BE13: =IF($O$4>0,(SMALL(($M13,$U13,$AC13,$AL13,$AT13,$BB13),1)),"0") -> 11 | BI13: 35 | BJ13: 1572 | BK13: 5 | BO13: ja
B14: 743085EK | C14: Jasmien De Koeyer | D14: Esperanza | E14: LT | F14: Oud-beijerland, RV. | H14: 264 | I14: 273,5 | J14: 537.5 | M14: =VLOOKUP(N14,Blad1!A:C,2,0) -> 12 | N14: 5 | O14: 1 | P14: 268 | Q14: 269,5 | R14: 537.5 | U14: =VLOOKUP(V14,Blad1!A:C,2,0) -> 17 | V14: 2 | W14: 1 | X14: 251 | Y14: 243,5 | Z14: 494.5 | AC14: =VLOOKUP(AD14,Blad1!A:C,2,0) -> 17 | AD14: 2 | BC14: 46 | BD14: 1569.5 | BE14: =IF($O$4>0,(SMALL(($M14,$U14,$AC14,$AL14,$AT14,$BB14),1)),"0") -> 12 | BI14: 34 | BJ14: 1569.5 | BK14: 6 | BO14: ja
B15: 675384SS | C15: Jennifer Sekreve | D15: San Siro | E15: LT | F15: Oost-Veluwse R.J.V., RV. | H15: 271,5 | I15: 284 | J15: 555.5 | M15: =VLOOKUP(N15,Blad1!A:C,2,0) -> 17 | N15: 2 | P15: 273,5 | Q15: 272 | R15: 545.5 | U15: =VLOOKUP(V15,Blad1!A:C,2,0) -> 17 | V15: 2 | Z15: 0 | AC15: 0 | AD15: 99 | BC15: 34 | BD15: 1101 | BE15: =IF($O$4>0,(SMALL(($M15,$U15,$AC15,$AL15,$AT15,$BB15),1)),"0") -> 0 | BI15: 34 | BJ15: 1101 | BK15: 7 | BO15: ja
B16: 807344DV | C16: Mara De Vries | D16: Dornenstern | E16: LT | F16: Biesboschruiters, RV. | J16: 0 | M16: 0 | N16: 99 | O16: 1 | P16: 264,5 | Q16: 264,5 | R16: 529 | U16: =VLOOKUP(V16,Blad1!A:C,2,0) -> 15 | V16: 3 | W16: 2 | X16: 246,5 | Y16: 247,5 | Z16: 494 | AC16: =VLOOKUP(AD16,Blad1!A:C,2,0) -> 17 | AD16: 2 | BC16: 32 | BD16: 1023 | BE16: =IF($O$4>0,(SMALL(($M16,$U16,$AC16,$AL16,$AT16,$BB16),1)),"0") -> 0 | BI16: 32 | BJ16: 1023 | BK16: 8 | BO16: ja
B17: 805186DS | C17: Diederik Van Silfhout | D17: Dahlhoff | E17: LT | F17: Valouwe, RV. | J17: 0 | M17: 0 | N17: 99 | O17: 1 | P17: 282 | Q17: 282 | R17: 564 | U17: =VLOOKUP(V17,Blad1!A:C,2,0) -> 15 | V17: 3 | W17: 3 | X17: 252,5 | Y17: 249 | Z17: 501.5 | AC17: =VLOOKUP(AD17,Blad1!A:C,2,0) -> 17 | AD17: 2 | BC17: 32 | BD17: 1065.5 | BE17: =IF($O$4>0,(SMALL(($M17,$U17,$AC17,$AL17,$AT17,$BB17),1)),"0") -> 0 | BI17: 32 | BJ17: 1065.5 | BK17: 9 | BO17: ja
B18: 703415FR | C18: Veronique Roerink | D18: Flanell | E18: LT | F18: Drentse Hooglanden, RV. | H18: 275 | I18: 261 | J18: 536 | M18: =VLOOKUP(N18,Blad1!A:C,2,0) -> 15 | N18: 3 | P18: 269,5 | Q18: 251,5 | R18: 521 | U18: =VLOOKUP(V18,Blad1!A:C,2,0) -> 15 | V18: 3 | Z18: 0 | AC18: 0 | AD18: 99 | BC18: 30 | BD18: 1057 | BE18: =IF($O$4>0,(SMALL(($M18,$U18,$AC18,$AL18,$AT18,$BB18),1)),"0") -> 0 | BI18: 30 | BJ18: 1057 | BK18: 10 | BO18: ja
B19: 732828EB | C19: Sandy Van Boxmeer - Westerhuis | D19: Earth Wind and Fire | E19: LT | F19: Hoefslag, RV. | H19: 267,5 | I19: 268,5 | J19: 536 | M19: =VLOOKUP(N19,Blad1!A:C,2,0) -> 11 | N19: 6 | O19: 1 | P19: 266 | Q19: 271 | R19: 537 | U19: =VLOOKUP(V19,Blad1!A:C,2,0) -> 12 | V19: 5 | W19: 2 | X19: 242,5 | Y19: 240 | Z19: 482.5 | AC19: =VLOOKUP(AD19,Blad1!A:C,2,0) -> 15 | AD19: 3 | BC19: 38 | BD19: 1555.5 | BE19: =IF($O$4>0,(SMALL(($M19,$U19,$AC19,$AL19,$AT19,$BB19),1)),"0") -> 11 | BI19: 27 | BJ19: 1555.5 | BK19: 11 | BO19: ja
B20: 829992EZ | C20: Thamar Zweistra | D20: Erina | E20: LT | F20: Hexagon B.V., Stal | H20: 264,5 | I20: 259 | J20: 523.5 | M20: =VLOOKUP(N20,Blad1!A:C,2,0) -> 15 | N20: 3 | P20: 256 | Q20: 260,5 | R20: 516.5 | U20: =VLOOKUP(V20,Blad1!A:C,2,0) -> 12 | V20: 5 | W20: 1 | X20: 244 | Y20: 222,5 | Z20: 466.5 | AC20: =VLOOKUP(AD20,Blad1!A:C,2,0) -> 12 | AD20: 5 | BC20: 39 | BD20: 1506.5 | BE20: =IF($O$4>0,(SMALL(($M20,$U20,$AC20,$AL20,$AT20,$BB20),1)),"0") -> 12 | BI20: 27 | BJ20: 1506.5 | BK20: 12 | BO20: ja
B21: 812924DH | C21: Kebie Van der Heijden | D21: Don Diego | E21: LT | F21: Equinus Stramproy, RV. | H21: 255,5 | I21: 265 | J21: 520.5 | M21: =VLOOKUP(N21,Blad1!A:C,2,0) -> 13 | N21: 4 | O21: 1 | P21: 276,5 | Q21: 267,5 | R21: 544 | U21: =VLOOKUP(V21,Blad1!A:C,2,0) -> 13 | V21: 4 | W21: 2 | X21: 227,5 | Y21: 233,5 | Z21: 461 | AC21: =VLOOKUP(AD21,Blad1!A:C,2,0) -> 11 | AD21: 6 | BC21: 37 | BD21: 1525.5 | BE21: =IF($O$4>0,(SMALL(($M21,$U21,$AC21,$AL21,$AT21,$BB21),1)),"0") -> 11 | BI21: 26 | BJ21: 1525.5 | BK21: 13 | BO21: ja
B22: 825460FM | C22: Lynne Maas | D22: Fantastique | E22: LT | F22: t Einde, RV. | J22: 0 | M22: 0 | N22: 99 | O22: 1 | P22: 266 | Q22: 262 | R22: 528 | U22: =VLOOKUP(V22,Blad1!A:C,2,0) -> 13 | V22: 4 | W22: 3 | X22: 244 | Y22: 241,5 | Z22: 485.5 | AC22: =VLOOKUP(AD22,Blad1!A:C,2,0) -> 13 | AD22: 4 | BC22: 26 | BD22: 1013.5 | BE22: =IF($O$4>0,(SMALL(($M22,$U22,$AC22,$AL22,$AT22,$BB22),1)),"0") -> 0 | BI22: 26 | BJ22: 1013.5 | BK22: 14 | BO22: ja
B23: 732829FB | C23: Sandy Van Boxmeer - Westerhuis | D23: Figaro | E23: LT | F23: Hoefslag, RV. | H23: 269,5 | I23: 274,5 | J23: 544 | M23: =VLOOKUP(N23,Blad1!A:C,2,0) -> 13 | N23: 4 | O23: 1 | P23: 270,5 | Q23: 263 | R23: 533.5 | U23: =VLOOKUP(V23,Blad1!A:C,2,0) -> 10 | V23: 7 | W23: 2 | X23: 227,5 | Y23: 234 | Z23: 461.5 | AC23: =VLOOKUP(AD23,Blad1!A:C,2,0) -> 12 | AD23: 5 | BC23: 35 | BD23: 1539 | BE23: =IF($O$4>0,(SMALL(($M23,$U23,$AC23,$AL23,$AT23,$BB23),1)),"0") -> 10 | BI23: 25 | BJ23: 1539 | BK23: 15 | BO23: ja
B24: 817045EH | C24: Danielle Houtvast | D24: Entertainer | E24: LT | F24: Katsbekruiters, RV. | H24: 262 | I24: 270 | J24: 532 | M24: =VLOOKUP(N24,Blad1!A:C,2,0) -> 9 | N24: 8 | O24: 1 | P24: 269 | Q24: 266,5 | R24: 535.5 | U24: =VLOOKUP(V24,Blad1!A:C,2,0) -> 11 | V24: 6 | W24: 1 | X24: 243,5 | Y24: 228,5 | Z24: 472 | AC24: =VLOOKUP(AD24,Blad1!A:C,2,0) -> 13 | AD24: 4 | BC24: 33 | BD24: 1539.5 | BE24: =IF($O$4>0,(SMALL(($M24,$U24,$AC24,$AL24,$AT24,$BB24),1)),"0") -> 9 | BI24: 24 | BJ24: 1539.5 | BK24: 16 | BO24: ja
B25: 800786SS | C25: Diederik Van Silfhout | D25: Scenario 2 | E25: LT | F25: Valouwe, RV. | J25: 0 | M25: 0 | N25: 99 | O25: 1 | P25: 261 | Q25: 265 | R25: 526 | U25: =VLOOKUP(V25,Blad1!A:C,2,0) -> 9 | V25: 8 | W25: 3 | X25: 249,5 | Y25: 241 | Z25: 490.5 | AC25: =VLOOKUP(AD25,Blad1!A:C,2,0) -> 15 | AD25: 3 | BC25: 24 | BD25: 1016.5 | BE25: =IF($O$4>0,(SMALL(($M25,$U25,$AC25,$AL25,$AT25,$BB25),1)),"0") -> 0 | BI25: 24 | BJ25: 1016.5 | BK25: 17 | BO25: ja
B26: 681336DB | C26: Vai Bruntink | D26: Darabel | E26: LT | F26: Neta, RV. | J26: 0 | M26: 0 | N26: 99 | O26: 1 | P26: 263,5 | Q26: 257,5 | R26: 521 | U26: =VLOOKUP(V26,Blad1!A:C,2,0) -> 12 | V26: 5 | W26: 3 | X26: 237 | Y26: 238 | Z26: 475 | AC26: =VLOOKUP(AD26,Blad1!A:C,2,0) -> 12 | AD26: 5 | BC26: 24 | BD26: 996 | BE26: =IF($O$4>0,(SMALL(($M26,$U26,$AC26,$AL26,$AT26,$BB26),1)),"0") -> 0 | BI26: 24 | BJ26: 996 | BK26: 18 | BO26: ja
B27: 789483JV | C27: Linda Verwaal | D27: Jakari 2 | E27: LT | F27: Horstlinde, RV. | H27: 251 | I27: 249 | J27: 500 | M27: =VLOOKUP(N27,Blad1!A:C,2,0) -> 8 | N27: 9 | P27: 260 | Q27: 258 | R27: 518 | U27: =VLOOKUP(V27,Blad1!A:C,2,0) -> 13 | V27: 4 | W27: 3 | X27: 229 | Y27: 219,5 | Z27: 448.5 | AC27: =VLOOKUP(AD27,Blad1!A:C,2,0) -> 10 | AD27: 7 | BC27: 31 | BD27: 1466.5 | BE27: =IF($O$4>0,(SMALL(($M27,$U27,$AC27,$AL27,$AT27,$BB27),1)),"0") -> 8 | BI27: 23 | BJ27: 1466.5 | BK27: 19 | BO27: ja
B28: 832061PO | C28: Philip Van Ommen | D28: President's Denver | E28: LT | F28: Hoeve Westland Ruiters, RV. | J28: 0 | M28: 0 | N28: 99 | O28: 1 | P28: 259 | Q28: 254 | R28: 513 | U28: =VLOOKUP(V28,Blad1!A:C,2,0) -> 10 | V28: 7 | W28: 2 | X28: 232 | Y28: 237,5 | Z28: 469.5 | AC28: =VLOOKUP(AD28,Blad1!A:C,2,0) -> 13 | AD28: 4 | BC28: 23 | BD28: 982.5 | BE28: =IF($O$4>0,(SMALL(($M28,$U28,$AC28,$AL28,$AT28,$BB28),1)),"0") -> 0 | BI28: 23 | BJ28: 982.5 | BK28: 20 | BO28: ja
B29: 754413OZ | C29: Thamar Zweistra | D29: Oldi 67 | E29: LT | F29: Hexagon B.V., Stal | H29: 260 | I29: 257 | J29: 517 | M29: =VLOOKUP(N29,Blad1!A:C,2,0) -> 10 | N29: 7 | P29: 256,5 | Q29: 253,5 | R29: 510 | U29: =VLOOKUP(V29,Blad1!A:C,2,0) -> 11 | V29: 6 | Z29: 0 | AC29: 0 | AD29: 99 | BC29: 21 | BD29: 1027 | BE29: =IF($O$4>0,(SMALL(($M29,$U29,$AC29,$AL29,$AT29,$BB29),1)),"0") -> 0 | BI29: 21 | BJ29: 1027 | BL29: 1 | BO29: ja
B30: 666136DE | C30: Eline Van Egmond | D30: Duvall | E30: LT | F30: Zuid-Hollandsche J.V., RV. | H30: 235 | I30: 236 | J30: 471 | M30: =VLOOKUP(N30,Blad1!A:C,2,0) -> 0 | N30: 26 | P30: 255 | Q30: 248 | R30: 503 | U30: =VLOOKUP(V30,Blad1!A:C,2,0) -> 9 | V30: 8 | W30: 1 | X30: 226 | Y30: 235,5 | Z30: 461.5 | AC30: =VLOOKUP(AD30,Blad1!A:C,2,0) -> 11 | AD30: 6 | BC30: 20 | BD30: 1435.5 | BE30: =IF($O$4>0,(SMALL(($M30,$U30,$AC30,$AL30,$AT30,$BB30),1)),"0") -> 0 | BI30: 20 | BJ30: 1435.5 | BL30: 2 | BO30: ja
B31: 766811DV | C31: Sanne Voets | D31: Demantur N.O.P. | E31: LT | F31: St. Martinus, RV. | H31: 257 | I31: 260,5 | J31: 517.5 | M31: =VLOOKUP(N31,Blad1!A:C,2,0) -> 11 | N31: 6 | O31: 1 | P31: 251 | Q31: 256,5 | R31: 507.5 | U31: =VLOOKUP(V31,Blad1!A:C,2,0) -> 8 | V31: 9 | W31: 2 | X31: 225 | Y31: 223 | Z31: 448 | AC31: =VLOOKUP(AD31,Blad1!A:C,2,0) -> 9 | AD31: 8 | BC31: 28 | BD31: 1473 | BE31: =IF($O$4>0,(SMALL(($M31,$U31,$AC31,$AL31,$AT31,$BB31),1)),"0") -> 8 | BI31: 20 | BJ31: 1473 | BL31: 3 | BO31: ja
B32: 799045BD | C32: Mark Van de Donk | D32: Belcanto | E32: LT | F32: Srjv Groenendaal, RV. | H32: 264 | I32: 245,5 | J32: 509.5 | M32: =VLOOKUP(N32,Blad1!A:C,2,0) -> 5 | N32: 12 | P32: 249 | Q32: 252 | R32: 501 | U32: =VLOOKUP(V32,Blad1!A:C,2,0) -> 8 | V32: 9 | W32: 3 | X32: 234,5 | Y32: 231,5 | Z32: 466 | AC32: =VLOOKUP(AD32,Blad1!A:C,2,0) -> 11 | AD32: 6 | BC32: 24 | BD32: 1476.5 | BE32: =IF($O$4>0,(SMALL(($M32,$U32,$AC32,$AL32,$AT32,$BB32),1)),"0") -> 5 | BI32: 19 | BJ32: 1476.5 | BL32: 4 | BO32: ja
B33: 721458DW | C33: Myrthe Wedda | D33: Diamond Geezer | E33: LT | F33: Voornruiters, RV. De | H33: 257 | I33: 262 | J33: 519 | M33: =VLOOKUP(N33,Blad1!A:C,2,0) -> 8 | N33: 9 | O33: 1 | P33: 251 | Q33: 239,5 | R33: 490.5 | U33: =VLOOKUP(V33,Blad1!A:C,2,0) -> 1 | V33: 16 | W33: 3 | X33: 216 | Y33: 214 | Z33: 430 | AC33: =VLOOKUP(AD33,Blad1!A:C,2,0) -> 9 | AD33: 8 | BC33: 18 | BD33: 1439.5 | BE33: =IF($O$4>0,(SMALL(($M33,$U33,$AC33,$AL33,$AT33,$BB33),1)),"0") -> 1 | BI33: 17 | BJ33: 1439.5 | BL33: 5 | BO33: ja
B34: 644523BB | C34: Vincent Bol | D34: Baltimore | E34: LT | F34: Walcheren, RV. | J34: 0 | M34: 0 | N34: 99 | O34: 1 | P34: 250 | Q34: 254,5 | R34: 504.5 | U34: =VLOOKUP(V34,Blad1!A:C,2,0) -> 7 | V34: 10 | W34: 1 | X34: 231,5 | Y34: 227,5 | Z34: 459 | AC34: =VLOOKUP(AD34,Blad1!A:C,2,0) -> 10 | AD34: 7 | BC34: 17 | BD34: 963.5 | BE34: =IF($O$4>0,(SMALL(($M34,$U34,$AC34,$AL34,$AT34,$BB34),1)),"0") -> 0 | BI34: 17 | BJ34: 963.5 | BL34: 6 | BO34: ja
B35: 640138WS | C35: Jenny Schreven | D35: Wings H | E35: LT | F35: Jasmijnruiters, RV. | J35: 0 | M35: 0 | N35: 99 | O35: 1 | P35: 262 | Q35: 251 | R35: 513 | U35: =VLOOKUP(V35,Blad1!A:C,2,0) -> 7 | V35: 10 | W35: 2 | X35: 233 | Y35: 228 | Z35: 461 | AC35: =VLOOKUP(AD35,Blad1!A:C,2,0) -> 10 | AD35: 7 | BC35: 17 | BD35: 974 | BE35: =IF($O$4>0,(SMALL(($M35,$U35,$AC35,$AL35,$AT35,$BB35),1)),"0") -> 0 | BI35: 17 | BJ35: 974 | BL35: 7 | BO35: ja
B36: 675747EW | C36: Wilma Wernsen | D36: Estupendo | E36: LT | F36: Srjv Groenendaal, RV. | H36: 242,5 | I36: 266 | J36: 508.5 | M36: =VLOOKUP(N36,Blad1!A:C,2,0) -> 9 | N36: 8 | R36: 0 | U36: 0 | V36: 99 | W36: 2 | X36: 221 | Y36: 223,5 | Z36: 444.5 | AC36: =VLOOKUP(AD36,Blad1!A:C,2,0) -> 7 | AD36: 10 | BC36: 16 | BD36: 953 | BE36: =IF($O$4>0,(SMALL(($M36,$U36,$AC36,$AL36,$AT36,$BB36),1)),"0") -> 0 | BI36: 16 | BJ36: 953 | BL36: 8 | BO36: ja
B37: 598024BH | C37: Jacinta Hemmen | D37: Burghgraef | E37: LT | F37: Bathmen e.o., RV. | H37: 249,5 | I37: 245,5 | J37: 495 | M37: =VLOOKUP(N37,Blad1!A:C,2,0) -> 11 | N37: 6 | P37: 239,5 | Q37: 236 | R37: 475.5 | U37: =VLOOKUP(V37,Blad1!A:C,2,0) -> 0 | V37: 18 | W37: 2 | X37: 219,5 | Y37: 213 | Z37: 432.5 | AC37: =VLOOKUP(AD37,Blad1!A:C,2,0) -> 4 | AD37: 13 | BC37: 15 | BD37: 1403 | BE37: =IF($O$4>0,(SMALL(($M37,$U37,$AC37,$AL37,$AT37,$BB37),1)),"0") -> 0 | BI37: 15 | BJ37: 1403 | BL37: 9 | BO37: ja
B38: 639242BR | C38: Gabrielle Röst - de Groot | D38: Bibi Vita | E38: LT | F38: Stroe, RV. | H38: 253,5 | I38: 250,5 | J38: 504 | M38: =VLOOKUP(N38,Blad1!A:C,2,0) -> 1 | N38: 16 | P38: 243,5 | Q38: 253 | R38: 496.5 | U38: =VLOOKUP(V38,Blad1!A:C,2,0) -> 7 | V38: 10 | W38: 3 | X38: 212 | Y38: 212,5 | Z38: 424.5 | AC38: =VLOOKUP(AD38,Blad1!A:C,2,0) -> 8 | AD38: 9 | BC38: 16 | BD38: 1425 | BE38: =IF($O$4>0,(SMALL(($M38,$U38,$AC38,$AL38,$AT38,$BB38),1)),"0") -> 1 | BI38: 15 | BJ38: 1425 | BL38: 10 | BO38: ja
B39: 637625LZ | C39: Laura Zwart | D39: Lumen Dylan | E39: LT | F39: Hynstewille, RV. | H39: 245 | I39: 244,5 | J39: 489.5 | M39: =VLOOKUP(N39,Blad1!A:C,2,0) -> 10 | N39: 7 | R39: 0 | U39: 0 | V39: 99 | W39: 2 | X39: 215,5 | Y39: 221,5 | Z39: 437 | AC39: =VLOOKUP(AD39,Blad1!A:C,2,0) -> 5 | AD39: 12 | BC39: 15 | BD39: 926.5 | BE39: =IF($O$4>0,(SMALL(($M39,$U39,$AC39,$AL39,$AT39,$BB39),1)),"0") -> 0 | BI39: 15 | BJ39: 926.5 | BO39: ja
B40: 675603EP | C40: Kiki Pols | D40: Esprit | E40: LT | F40: Heuvelruiters, RV. | H40: 250,5 | I40: 232 | J40: 482.5 | M40: =VLOOKUP(N40,Blad1!A:C,2,0) -> 7 | N40: 10 | P40: 252 | Q40: 240,5 | R40: 492.5 | U40: =VLOOKUP(V40,Blad1!A:C,2,0) -> 6 | V40: 11 | W40: 3 | X40: 214 | Y40: 208 | Z40: 422 | AC40: =VLOOKUP(AD40,Blad1!A:C,2,0) -> 6 | AD40: 11 | BC40: 19 | BD40: 1397 | BE40: =IF($O$4>0,(SMALL(($M40,$U40,$AC40,$AL40,$AT40,$BB40),1)),"0") -> 6 | BI40: 13 | BJ40: 1397 | BO40: ja
B41: 731871EM | C41: Marie louise Moerings | D41: Esplanade | E41: LT | F41: Heer Jan's Ruiters, RV. | H41: 256,5 | I41: 256,5 | J41: =H41+I41 -> 513 | M41: =VLOOKUP(N41,Blad1!A:C,2,0) -> 7 | N41: 10 | O41: 1 | P41: 252,5 | Q41: 251,5 | R41: =P41+Q41 -> 504 | U41: =VLOOKUP(V41,Blad1!A:C,2,0) -> 6 | V41: 11 | Z41: =X41+Y41 -> 0 | AC41: 0 | AD41: 99 | BC41: =M41+U41+AC41 -> 13 | BD41: =J41+R41+Z41+AH41+AP41+AX41 -> 1017 | BE41: =IF($O$4>0,(SMALL(($M41,$U41,$AC41,$AL41,$AT41,$BB41),1)),"0") -> 0 | BI41: =BC41-BE41-BF41 -> 13 | BJ41: =BD41-BG41-BH41 -> 1017 | BO41: ja
B42: 669437LZ | C42: Laura Zwart | D42: Lumen Express | E42: LT | F42: Hynstewille, RV. | H42: 232 | I42: 237,5 | J42: 469.5 | M42: =VLOOKUP(N42,Blad1!A:C,2,0) -> 0 | N42: 17 | P42: 246,5 | Q42: 244 | R42: 490.5 | U42: =VLOOKUP(V42,Blad1!A:C,2,0) -> 5 | V42: 12 | W42: 2 | X42: 217,5 | Y42: 221 | Z42: 438.5 | AC42: =VLOOKUP(AD42,Blad1!A:C,2,0) -> 6 | AD42: 11 | BC42: 11 | BD42: 1398.5 | BE42: =IF($O$4>0,(SMALL(($M42,$U42,$AC42,$AL42,$AT42,$BB42),1)),"0") -> 0 | BI42: 11 | BJ42: 1398.5 | BO42: ja
B43: 584996CW | C43: Ellen Wynia | D43: Chakakahn | E43: LT | F43: Mensinghe Roden, RV. | H43: 245 | I43: 238 | J43: 483 | M43: =VLOOKUP(N43,Blad1!A:C,2,0) -> 8 | N43: 9 | P43: 244 | Q43: 241,5 | R43: 485.5 | U43: =VLOOKUP(V43,Blad1!A:C,2,0) -> 3 | V43: 14 | Z43: 0 | AC43: 0 | AD43: 99 | BC43: 11 | BD43: 968.5 | BE43: =IF($O$4>0,(SMALL(($M43,$U43,$AC43,$AL43,$AT43,$BB43),1)),"0") -> 0 | BI43: 11 | BJ43: 968.5 | BO43: ja
B44: 779994PR | C44: Geert-jan Raateland | D44: Painted RDH | E44: LT | F44: Oud-beijerland, RV. | H44: 240,5 | I44: 247 | J44: 487.5 | M44: =VLOOKUP(N44,Blad1!A:C,2,0) -> 6 | N44: 11 | O44: 1 | P44: 246 | Q44: 249 | R44: 495 | U44: =VLOOKUP(V44,Blad1!A:C,2,0) -> 4 | V44: 13 | W44: 1 | X44: 209,5 | Y44: 215,5 | Z44: 425 | AC44: =VLOOKUP(AD44,Blad1!A:C,2,0) -> 2 | AD44: 15 | BC44: 12 | BD44: 1407.5 | BE44: =IF($O$4>0,(SMALL(($M44,$U44,$AC44,$AL44,$AT44,$BB44),1)),"0") -> 2 | BI44: 10 | BJ44: 1407.5 | BO44: ja
B45: 837703FV | C45: Rob van Puijenbroek - Visser | D45: Fabiola Begijnhoeve | E45: LT | F45: Goirle, RV. | H45: 260,5 | I45: 251,5 | J45: 512 | M45: =VLOOKUP(N45,Blad1!A:C,2,0) -> 6 | N45: 11 | O45: 1 | P45: 249 | Q45: 261,5 | R45: 510.5 | U45: =VLOOKUP(V45,Blad1!A:C,2,0) -> 4 | V45: 13 | Z45: 0 | AC45: 0 | AD45: 99 | BC45: 10 | BD45: 1022.5 | BE45: =IF($O$4>0,(SMALL(($M45,$U45,$AC45,$AL45,$AT45,$BB45),1)),"0") -> 0 | BI45: 10 | BJ45: 1022.5 | BO45: ja
B46: 713722EO | C46: Maxime Osse | D46: HemCell Estados | E46: LT | F46: Weelruiters, RV. | H46: 247 | I46: 244,5 | J46: 491.5 | M46: =VLOOKUP(N46,Blad1!A:C,2,0) -> 0 | N46: 20 | O46: 1 | P46: 247,5 | Q46: 246,5 | R46: 494 | U46: =VLOOKUP(V46,Blad1!A:C,2,0) -> 3 | V46: 14 | W46: 1 | X46: 220 | Y46: 214,5 | Z46: 434.5 | AC46: =VLOOKUP(AD46,Blad1!A:C,2,0) -> 6 | AD46: 11 | BC46: 9 | BD46: 1420 | BE46: =IF($O$4>0,(SMALL(($M46,$U46,$AC46,$AL46,$AT46,$BB46),1)),"0") -> 0 | BI46: 9 | BJ46: 1420 | BO46: ja
B47: 674437EK | C47: Kyra Klinkers | D47: Equirelle W | E47: LT | F47: Katsbekruiters, RV. | H47: 255 | I47: 250 | J47: 505 | M47: =VLOOKUP(N47,Blad1!A:C,2,0) -> 3 | N47: 14 | O47: 1 | P47: 256 | Q47: 257 | R47: 513 | U47: =VLOOKUP(V47,Blad1!A:C,2,0) -> 6 | V47: 11 | Z47: 0 | AC47: 0 | AD47: 99 | BC47: 9 | BD47: 1018 | BE47: =IF($O$4>0,(SMALL(($M47,$U47,$AC47,$AL47,$AT47,$BB47),1)),"0") -> 0 | BI47: 9 | BJ47: 1018 | BO47: ja
B48: 523789AP | C48: Marie louise Philipsen - Wynhoven | D48: Andreo | E48: LT | F48: Wittenhorst, RV. | J48: 0 | M48: 0 | N48: 99 | O48: 1 | P48: 249 | Q48: 241 | R48: 490 | U48: =VLOOKUP(V48,Blad1!A:C,2,0) -> 0 | V48: 17 | W48: 2 | X48: 222,5 | Y48: 222,5 | Z48: 445 | AC48: =VLOOKUP(AD48,Blad1!A:C,2,0) -> 8 | AD48: 9 | BC48: 8 | BD48: 935 | BE48: =IF($O$4>0,(SMALL(($M48,$U48,$AC48,$AL48,$AT48,$BB48),1)),"0") -> 0 | BI48: 8 | BJ48: 935 | BO48: ja
B49: 585315AG | C49: Christianne Goes | D49: Accountancy Bellissimo | E49: LT | F49: Voornruiters, RV. De | H49: 230,5 | I49: 240,5 | J49: 471 | M49: =VLOOKUP(N49,Blad1!A:C,2,0) -> 0 | N49: 25 | P49: 216 | Q49: 225 | R49: 441 | U49: =VLOOKUP(V49,Blad1!A:C,2,0) -> 0 | V49: 25 | W49: 3 | X49: 211 | Y49: 212 | Z49: 423 | AC49: =VLOOKUP(AD49,Blad1!A:C,2,0) -> 7 | AD49: 10 | BC49: 7 | BD49: 1335 | BE49: =IF($O$4>0,(SMALL(($M49,$U49,$AC49,$AL49,$AT49,$BB49),1)),"0") -> 0 | BI49: 7 | BJ49: 1335 | BO49: ja
B50: 815807FN | C50: Jeanine Nekeman | D50: Ferrari | E50: LT | F50: Hasselt, RV. | H50: 242 | I50: 234 | J50: 476 | M50: =VLOOKUP(N50,Blad1!A:C,2,0) -> 3 | N50: 14 | P50: 241,5 | Q50: 247,5 | R50: 489 | U50: =VLOOKUP(V50,Blad1!A:C,2,0) -> 4 | V50: 13 | Z50: 0 | AC50: 0 | AD50: 99 | BC50: 7 | BD50: 965 | BE50: =IF($O$4>0,(SMALL(($M50,$U50,$AC50,$AL50,$AT50,$BB50),1)),"0") -> 0 | BI50: 7 | BJ50: 965 | BO50: ja
B51: 632302DK | C51: Jolien Van Kollenburg | D51: Da Vinci Svk | E51: LT | F51: PPH Horstdravers, RV. | H51: 255,5 | I51: 251 | J51: 506.5 | M51: =VLOOKUP(N51,Blad1!A:C,2,0) -> 4 | N51: 13 | O51: 1 | P51: 249 | Q51: 249 | R51: 498 | U51: =VLOOKUP(V51,Blad1!A:C,2,0) -> 2 | V51: 15 | Z51: 0 | AC51: 0 | AD51: 99 | BC51: 6 | BD51: 1004.5 | BE51: =IF($O$4>0,(SMALL(($M51,$U51,$AC51,$AL51,$AT51,$BB51),1)),"0") -> 0 | BI51: 6 | BJ51: 1004.5 | BO51: ja
B52: 609530RV | C52: Arnold Veldhoen | D52: Ravel | E52: LT | F52: Zuidwijk, RV. | H52: 222 | I52: 243,5 | J52: 465.5 | M52: =VLOOKUP(N52,Blad1!A:C,2,0) -> 0 | N52: 19 | P52: 243,5 | Q52: 238 | R52: 481.5 | U52: =VLOOKUP(V52,Blad1!A:C,2,0) -> 2 | V52: 15 | W52: 3 | X52: 199 | Y52: 199,5 | Z52: 398.5 | AC52: =VLOOKUP(AD52,Blad1!A:C,2,0) -> 3 | AD52: 14 | BC52: 5 | BD52: 1345.5 | BE52: =IF($O$4>0,(SMALL(($M52,$U52,$AC52,$AL52,$AT52,$BB52),1)),"0") -> 0 | BI52: 5 | BJ52: 1345.5 | BO52: ja
B53: 723790EC | C53: Larissa Van Craaikamp | D53: Elvira Oase | E53: LT | F53: Hs Heiloo e.o., RV. | H53: 243,5 | I53: 243 | J53: 486.5 | M53: =VLOOKUP(N53,Blad1!A:C,2,0) -> 5 | N53: 12 | O53: 1 | P53: 232 | Q53: 229 | R53: 461 | U53: =VLOOKUP(V53,Blad1!A:C,2,0) -> 0 | V53: 19 | Z53: 0 | AC53: 0 | AD53: 99 | BC53: 5 | BD53: 947.5 | BE53: =IF($O$4>0,(SMALL(($M53,$U53,$AC53,$AL53,$AT53,$BB53),1)),"0") -> 0 | BI53: 5 | BJ53: 947.5 | BO53: ja
B54: 731807EH | C54: Andre Houben | D54: Empelaer's Dante | E54: LT | F54: Thull, RV. | H54: 241 | I54: 232,5 | J54: 473.5 | M54: =VLOOKUP(N54,Blad1!A:C,2,0) -> 0 | N54: 24 | O54: 1 | P54: 240 | Q54: 233,5 | R54: 473.5 | U54: =VLOOKUP(V54,Blad1!A:C,2,0) -> 0 | V54: 22 | W54: 2 | X54: 213 | Y54: 217 | Z54: 430 | AC54: =VLOOKUP(AD54,Blad1!A:C,2,0) -> 3 | AD54: 14 | BC54: 3 | BD54: 1377 | BE54: =IF($O$4>0,(SMALL(($M54,$U54,$AC54,$AL54,$AT54,$BB54),1)),"0") -> 0 | BI54: 3 | BJ54: 1377 | BO54: ja
B55: 697116EB | C55: Jeske Bouwman | D55: Enterprice | E55: LT | F55: Schouwse Ruiters, RV. De | H55: 245 | I55: 229,5 | J55: 474.5 | M55: =VLOOKUP(N55,Blad1!A:C,2,0) -> 3 | N55: 14 | O55: 1 | P55: 241 | Q55: 236,5 | R55: 477.5 | U55: =VLOOKUP(V55,Blad1!A:C,2,0) -> 0 | V55: 18 | W55: 1 | X55: 200,5 | Y55: 208 | Z55: 408.5 | AC55: =VLOOKUP(AD55,Blad1!A:C,2,0) -> 0 | AD55: 18 | BC55: 3 | BD55: 1360.5 | BE55: =IF($O$4>0,(SMALL(($M55,$U55,$AC55,$AL55,$AT55,$BB55),1)),"0") -> 0 | BI55: 3 | BJ55: 1360.5 | BO55: ja
B56: 673557DG | C56: Mariska Van Groningen | D56: Dutch Dandy | E56: LT | F56: Rockanje (RPC), RV. | H56: 220,5 | I56: 221,5 | J56: 442 | M56: =VLOOKUP(N56,Blad1!A:C,2,0) -> 0 | N56: 33 | R56: 0 | U56: 0 | V56: 99 | W56: 1 | X56: 216,5 | Y56: 214 | Z56: 430.5 | AC56: =VLOOKUP(AD56,Blad1!A:C,2,0) -> 3 | AD56: 14 | BC56: 3 | BD56: 872.5 | BE56: =IF($O$4>0,(SMALL(($M56,$U56,$AC56,$AL56,$AT56,$BB56),1)),"0") -> 0 | BI56: 3 | BJ56: 872.5 | BO56: ja
B57: 676693BR | C57: Jeannette Rijksen | D57: Baltimore | E57: LT | F57: Grote Brug, RV. | H57: 220,5 | I57: 221,5 | J57: 442 | M57: =VLOOKUP(N57,Blad1!A:C,2,0) -> 0 | N57: 33 | R57: 0 | U57: 0 | V57: 99 | W57: 3 | X57: 194 | Y57: 194,5 | Z57: 388.5 | AC57: =VLOOKUP(AD57,Blad1!A:C,2,0) -> 2 | AD57: 15 | BC57: 2 | BD57: 830.5 | BE57: =IF($O$4>0,(SMALL(($M57,$U57,$AC57,$AL57,$AT57,$BB57),1)),"0") -> 0 | BI57: 2 | BJ57: 830.5 | BO57: ja
B58: 565327BB | C58: Vivienne Bos | D58: Baronijke-l | E58: LT | F58: Hoeve Westland Ruiters, RV. | H58: 224,5 | I58: 219,5 | J58: 444 | M58: =VLOOKUP(N58,Blad1!A:C,2,0) -> 0 | N58: 21 | O58: 1 | P58: 243,5 | Q58: 243 | R58: 486.5 | U58: =VLOOKUP(V58,Blad1!A:C,2,0) -> 2 | V58: 15 | Z58: 0 | AC58: 0 | AD58: 99 | BC58: 2 | BD58: 930.5 | BE58: =IF($O$4>0,(SMALL(($M58,$U58,$AC58,$AL58,$AT58,$BB58),1)),"0") -> 0 | BI58: 2 | BJ58: 930.5 | BO58: ja
B59: 756994RH | C59: Lisanne De Haas | D59: Bruëll | E59: LT | F59: Bosch En Duin, RV. | H59: 230,5 | I59: 236,5 | J59: 467 | M59: =VLOOKUP(N59,Blad1!A:C,2,0) -> 0 | N59: 27 | R59: 0 | U59: 0 | V59: 99 | W59: 3 | X59: 190 | Y59: 194 | Z59: 384 | AC59: =VLOOKUP(AD59,Blad1!A:C,2,0) -> 1 | AD59: 16 | BC59: 1 | BD59: 851 | BE59: =IF($O$4>0,(SMALL(($M59,$U59,$AC59,$AL59,$AT59,$BB59),1)),"0") -> 0 | BI59: 1 | BJ59: 851 | BO59: ja
B60: 690575DB | C60: Ina Beuving | D60: Dinant B | E60: LT | F60: Exloo, RV. | H60: 232,5 | I60: 240 | J60: 472.5 | M60: =VLOOKUP(N60,Blad1!A:C,2,0) -> 1 | N60: 16 | P60: 230 | Q60: 226 | R60: 456 | U60: =VLOOKUP(V60,Blad1!A:C,2,0) -> 0 | V60: 20 | Z60: 0 | AC60: 0 | AD60: 99 | BC60: 1 | BD60: 928.5 | BE60: =IF($O$4>0,(SMALL(($M60,$U60,$AC60,$AL60,$AT60,$BB60),1)),"0") -> 0 | BI60: 1 | BJ60: 928.5 | BO60: ja
B61: 687361VB | C61: Clarissa Van Biezen | D61: Vancouver | E61: LT | F61: Prins Bernhard, RV. | H61: 215,5 | I61: 235,5 | J61: 451 | M61: =VLOOKUP(N61,Blad1!A:C,2,0) -> 0 | N61: 31 | O61: 1 | P61: 226 | Q61: 201 | R61: 427 | U61: =VLOOKUP(V61,Blad1!A:C,2,0) -> 0 | V61: 28 | Z61: 0 | AC61: 0 | AD61: 99 | BC61: 0 | BD61: 878 | BE61: =IF($O$4>0,(SMALL(($M61,$U61,$AC61,$AL61,$AT61,$BB61),1)),"0") -> 0 | BI61: 0 | BJ61: 878 | BO61: ja
B62: 695800GG | C62: Debby De Graaf | D62: Gerrit Galloper | E62: LT | F62: s-Gravenhof, RV. | H62: 228 | I62: 237 | J62: 465 | M62: =VLOOKUP(N62,Blad1!A:C,2,0) -> 0 | N62: 28 | O62: 1 | P62: 231 | Q62: 215 | R62: 446 | U62: =VLOOKUP(V62,Blad1!A:C,2,0) -> 0 | V62: 21 | Z62: 0 | AC62: 0 | AD62: 99 | BC62: 0 | BD62: 911 | BE62: =IF($O$4>0,(SMALL(($M62,$U62,$AC62,$AL62,$AT62,$BB62),1)),"0") -> 0 | BI62: 0 | BJ62: 911 | BO62: ja
B63: 828571MM | C63: Nienke Van der Muil | D63: Molenkoning Zanzibar | E63: LT | F63: St. Martinus, RV. | H63: 230 | I63: 231 | J63: 461 | M63: =VLOOKUP(N63,Blad1!A:C,2,0) -> 0 | N63: 30 | O63: 1 | P63: 236,5 | Q63: 248,5 | R63: 485 | U63: =VLOOKUP(V63,Blad1!A:C,2,0) -> 0 | V63: 18 | Z63: 0 | AC63: 0 | AD63: 99 | BC63: 0 | BD63: 946 | BE63: =IF($O$4>0,(SMALL(($M63,$U63,$AC63,$AL63,$AT63,$BB63),1)),"0") -> 0 | BI63: 0 | BJ63: 946 | BO63: ja
B64: 798863EA | C64: Jordy Andeweg | D64: Elvita | E64: LT | F64: Zuid-Veluwse Jachtvereniging, RV. | H64: 244 | I64: 240 | J64: 484 | M64: =VLOOKUP(N64,Blad1!A:C,2,0) -> 0 | N64: 21 | O64: 1 | P64: 238,5 | Q64: 238,5 | R64: 477 | U64: =VLOOKUP(V64,Blad1!A:C,2,0) -> 0 | V64: 20 | Z64: 0 | AC64: 0 | AD64: 99 | BC64: 0 | BD64: 961 | BE64: =IF($O$4>0,(SMALL(($M64,$U64,$AC64,$AL64,$AT64,$BB64),1)),"0") -> 0 | BI64: 0 | BJ64: 961 | BO64: ja
B65: 744957CH | C65: Rensche De Haan | D65: Callucci HR | E65: LT | F65: Fjildruters Hemrik e.o., RV. | H65: 225 | I65: 244,5 | J65: 469.5 | M65: =VLOOKUP(N65,Blad1!A:C,2,0) -> 0 | N65: 18 | P65: 230,5 | Q65: 223,5 | R65: 454 | U65: =VLOOKUP(V65,Blad1!A:C,2,0) -> 0 | V65: 21 | Z65: 0 | AC65: 0 | AD65: 99 | BC65: 0 | BD65: 923.5 | BE65: =IF($O$4>0,(SMALL(($M65,$U65,$AC65,$AL65,$AT65,$BB65),1)),"0") -> 0 | BI65: 0 | BJ65: 923.5 | BO65: ja
B66: 713767SW | C66: Amey Wagenaar | D66: El Macho Malo | E66: LT | F66: Hoge Devel (RSV), RV. | H66: 220,5 | I66: 232,5 | J66: 453 | M66: =VLOOKUP(N66,Blad1!A:C,2,0) -> 0 | N66: 18 | P66: 241,5 | Q66: 238 | R66: 479.5 | U66: =VLOOKUP(V66,Blad1!A:C,2,0) -> 0 | V66: 17 | Z66: 0 | AC66: 0 | AD66: 99 | BC66: 0 | BD66: 932.5 | BE66: =IF($O$4>0,(SMALL(($M66,$U66,$AC66,$AL66,$AT66,$BB66),1)),"0") -> 0 | BI66: 0 | BJ66: 932.5 | BO66: ja
B67: 663776EW | C67: Angelique Van Dijk | D67: Eastpoint Vdw | E67: LT | F67: Ottersum e.o., RV. | H67: 213,5 | I67: 233 | J67: 446.5 | M67: =VLOOKUP(N67,Blad1!A:C,2,0) -> 0 | N67: 32 | R67: 0 | V67: 99 | Z67: 0 | AD67: 99 | BC67: 0 | BD67: 446.5 | BE67: =IF($O$4>0,(SMALL(($M67,$U67,$AC67,$AL67,$AT67,$BB67),1)),"0") -> 0 | BI67: 0 | BJ67: 446.5 | BO67: nee
B68: 799502CG | C68: Ingrid Gerritsen | D68: Cantano-tetti | E68: LT | F68: Voornruiters, RV. De | H68: 231 | I68: 232 | J68: 463 | M68: =VLOOKUP(N68,Blad1!A:C,2,0) -> 0 | N68: 29 | R68: 0 | V68: 99 | Z68: 0 | AD68: 99 | BC68: 0 | BD68: 463 | BE68: =IF($O$4>0,(SMALL(($M68,$U68,$AC68,$AL68,$AT68,$BB68),1)),"0") -> 0 | BI68: 0 | BJ68: 463 | BO68: nee
B69: 589577CR | C69: Lieke Van Rixtel | D69: Cupido | E69: LT | F69: Sint Anthonis (Martinus), RV. | J69: 0 | N69: 99 | O69: 1 | P69: 219 | Q69: 210,5 | R69: 429.5 | U69: =VLOOKUP(V69,Blad1!A:C,2,0) -> 0 | V69: 27 | Z69: 0 | AD69: 99 | BC69: 0 | BD69: 429.5 | BE69: =IF($O$4>0,(SMALL(($M69,$U69,$AC69,$AL69,$AT69,$BB69),1)),"0") -> 0 | BI69: 0 | BJ69: 429.5 | BO69: nee
B70: 645921DH | C70: Heleen De Haas | D70: Dwk-leen | E70: LT | F70: Postruters, RV. | J70: 0 | N70: 99 | P70: 220 | Q70: 204 | R70: 424 | U70: =VLOOKUP(V70,Blad1!A:C,2,0) -> 0 | V70: 27 | Z70: 0 | AD70: 99 | BC70: 0 | BD70: 424 | BE70: =IF($O$4>0,(SMALL(($M70,$U70,$AC70,$AL70,$AT70,$BB70),1)),"0") -> 0 | BI70: 0 | BJ70: 424 | BO70: nee
B71: 547187BH | C71: Diane Heymans | D71: Bailando | E71: LT | F71: Heemskinderen, RV. | J71: 0 | N71: 99 | O71: 1 | P71: 230 | Q71: 217 | R71: 447 | U71: =VLOOKUP(V71,Blad1!A:C,2,0) -> 0 | V71: 26 | Z71: 0 | AD71: 99 | BC71: 0 | BD71: 447 | BE71: =IF($O$4>0,(SMALL(($M71,$U71,$AC71,$AL71,$AT71,$BB71),1)),"0") -> 0 | BI71: 0 | BJ71: 447 | BO71: nee
B72: 698212VF | C72: Cindy Feld | D72: Sweet Sensation Dcf | E72: LT | F72: Berkenruiters, RV. | J72: 0 | N72: 99 | P72: 214 | Q72: 212,5 | R72: 426.5 | U72: =VLOOKUP(V72,Blad1!A:C,2,0) -> 0 | V72: 26 | Z72: 0 | AD72: 99 | BC72: 0 | BD72: 426.5 | BE72: =IF($O$4>0,(SMALL(($M72,$U72,$AC72,$AL72,$AT72,$BB72),1)),"0") -> 0 | BI72: 0 | BJ72: 426.5 | BO72: nee
B73: 534714EL | C73: Iris Lamers | D73: Eyecatcher | E73: LT | F73: Kroenekranen (PSV), RV. de | J73: =H73+I73 -> 0 | N73: 99 | O73: 1 | P73: 233 | Q73: 222 | R73: =P73+Q73 -> 455 | U73: =VLOOKUP(V73,Blad1!A:C,2,0) -> 0 | V73: 25 | Z73: =X73+Y73 -> 0 | AD73: 99 | BC73: =M73+U73+AC73 -> 0 | BD73: =J73+R73+Z73+AH73+AP73+AX73 -> 455 | BE73: =IF($O$4>0,(SMALL(($M73,$U73,$AC73,$AL73,$AT73,$BB73),1)),"0") -> 0 | BI73: =BC73-BE73-BF73 -> 0 | BJ73: =BD73-BG73-BH73 -> 455 | BO73: nee
B74: 510765AW | C74: Michelle Westerdijk | D74: Approval T | E74: LT | F74: Nijnselse Ruiters, RV. | J74: 0 | N74: 99 | O74: 1 | P74: 231 | Q74: 230,5 | R74: 461.5 | U74: =VLOOKUP(V74,Blad1!A:C,2,0) -> 0 | V74: 24 | Z74: 0 | AD74: 99 | BC74: 0 | BD74: 461.5 | BE74: =IF($O$4>0,(SMALL(($M74,$U74,$AC74,$AL74,$AT74,$BB74),1)),"0") -> 0 | BI74: 0 | BJ74: 461.5 | BO74: =IF(COUNT(M74,U74,AC74)>1,"ja","nee") -> nee
B75: 815118DB | C75: Ina Beuving | D75: Duc | E75: LT | F75: Exloo, RV. | J75: 0 | N75: 99 | P75: 217 | Q75: 224,5 | R75: 441.5 | U75: =VLOOKUP(V75,Blad1!A:C,2,0) -> 0 | V75: 24 | Z75: 0 | AD75: 99 | BC75: 0 | BD75: 441.5 | BE75: =IF($O$4>0,(SMALL(($M75,$U75,$AC75,$AL75,$AT75,$BB75),1)),"0") -> 0 | BI75: 0 | BJ75: 441.5 | BO75: nee
B76: 615944DP | C76: Laura Petersen | D76: Divident.l | E76: LT | F76: Rooyse Ruiters En Ponyruiters, RV. | J76: 0 | N76: 99 | O76: 1 | P76: 235,5 | Q76: 233,5 | R76: 469 | U76: =VLOOKUP(V76,Blad1!A:C,2,0) -> 0 | V76: 23 | Z76: 0 | AD76: 99 | BC76: 0 | BD76: 469 | BE76: =IF($O$4>0,(SMALL(($M76,$U76,$AC76,$AL76,$AT76,$BB76),1)),"0") -> 0 | BI76: 0 | BJ76: 469 | BO76: nee
B77: 480731WH | C77: Leonie Holleman | D77: Washington B | E77: LT | F77: Voorne-putten, RV. | J77: 0 | N77: 99 | O77: 1 | P77: 215 | Q77: 202 | R77: 417 | U77: =VLOOKUP(V77,Blad1!A:C,2,0) -> 0 | V77: 23 | Z77: 0 | AD77: 99 | BC77: 0 | BD77: 417 | BE77: =IF($O$4>0,(SMALL(($M77,$U77,$AC77,$AL77,$AT77,$BB77),1)),"0") -> 0 | BI77: 0 | BJ77: 417 | BO77: nee
B78: 729324AH | C78: Heleen De Haas | D78: Alger T fan 'e Boppelannen | E78: LT | F78: Postruters, RV. | J78: 0 | N78: 99 | P78: 221,5 | Q78: 221 | R78: 442.5 | U78: =VLOOKUP(V78,Blad1!A:C,2,0) -> 0 | V78: 23 | Z78: 0 | AD78: 99 | BC78: 0 | BD78: 442.5 | BE78: =IF($O$4>0,(SMALL(($M78,$U78,$AC78,$AL78,$AT78,$BB78),1)),"0") -> 0 | BI78: 0 | BJ78: 442.5 | BO78: nee
B79: 678697EO | C79: Kelly Outhuijse | D79: Empaire W | E79: LT | F79: Prins Bernhard, RV. | H79: 238,5 | I79: 241 | J79: 479.5 | M79: =VLOOKUP(N79,Blad1!A:C,2,0) -> 0 | N79: 23 | R79: 0 | V79: 99 | Z79: 0 | AD79: 99 | BC79: 0 | BD79: 479.5 | BE79: =IF($O$4>0,(SMALL(($M79,$U79,$AC79,$AL79,$AT79,$BB79),1)),"0") -> 0 | BI79: 0 | BJ79: 479.5 | BO79: nee
B80: 809720CK | C80: Tessa Koning | D80: Cote D'or | E80: LT | F80: Belckmeer, RV. | H80: 209 | I80: 206,5 | J80: 415.5 | M80: =VLOOKUP(N80,Blad1!A:C,2,0) -> 0 | N80: 23 | R80: 0 | V80: 99 | Z80: 0 | AD80: 99 | BC80: 0 | BD80: 415.5 | BE80: =IF($O$4>0,(SMALL(($M80,$U80,$AC80,$AL80,$AT80,$BB80),1)),"0") -> 0 | BI80: 0 | BJ80: 415.5 | BO80: nee
B81: 546014BJ | C81: Nicole Jurriens | D81: Bas | E81: LT | F81: La Grande, RV. | J81: 0 | N81: 99 | O81: 1 | P81: 224 | Q81: 210,5 | R81: 434.5 | U81: =VLOOKUP(V81,Blad1!A:C,2,0) -> 0 | V81: 22 | Z81: 0 | AD81: 99 | BC81: 0 | BD81: 434.5 | BE81: =IF($O$4>0,(SMALL(($M81,$U81,$AC81,$AL81,$AT81,$BB81),1)),"0") -> 0 | BI81: 0 | BJ81: 434.5 | BO81: nee
B82: 594452CS | C82: Annelon Schermer | D82: Casimier | E82: LT | F82: Oostelijk West Friesland, RV. | J82: 0 | N82: 99 | P82: 224,5 | Q82: 228,5 | R82: 453 | U82: =VLOOKUP(V82,Blad1!A:C,2,0) -> 0 | V82: 22 | Z82: 0 | AD82: 99 | BC82: 0 | BD82: 453 | BE82: =IF($O$4>0,(SMALL(($M82,$U82,$AC82,$AL82,$AT82,$BB82),1)),"0") -> 0 | BI82: 0 | BJ82: 453 | BO82: nee
B83: 836899WD | C83: Mark Van de Donk | D83: Wonderboy DC | E83: LT | H83: 242 | I83: 239 | J83: 481 | M83: =VLOOKUP(N83,Blad1!A:C,2,0) -> 0 | N83: 22 | R83: 0 | V83: 99 | Z83: 0 | AD83: 99 | BC83: 0 | BD83: 481 | BE83: =IF($O$4>0,(SMALL(($M83,$U83,$AC83,$AL83,$AT83,$BB83),1)),"0") -> 0 | BI83: 0 | BJ83: 481 | BO83: nee
B84: 657914GH | C84: Lianne Van der Horst | D84: Golden Eagle's Envoy | E84: LT | F84: Raalte, RV. | H84: 221 | I84: 225,5 | J84: 446.5 | M84: =VLOOKUP(N84,Blad1!A:C,2,0) -> 0 | N84: 22 | R84: 0 | V84: 99 | Z84: 0 | AD84: 99 | BC84: 0 | BD84: 446.5 | BE84: =IF($O$4>0,(SMALL(($M84,$U84,$AC84,$AL84,$AT84,$BB84),1)),"0") -> 0 | BI84: 0 | BJ84: 446.5 | BO84: nee
B85: 789686ED | C85: Jacobine Bijl - Dijkshoorn | D85: Ebony Sollenburg SD | E85: LT | F85: Boreftse Ruiters, RV. | H85: 224,5 | I85: 210,5 | J85: 435 | M85: =VLOOKUP(N85,Blad1!A:C,2,0) -> 0 | N85: 22 | R85: 0 | V85: 99 | Z85: 0 | AD85: 99 | BC85: 0 | BD85: 435 | BE85: =IF($O$4>0,(SMALL(($M85,$U85,$AC85,$AL85,$AT85,$BB85),1)),"0") -> 0 | BI85: 0 | BJ85: 435 | BO85: nee
B86: 837217DL | C86: Jean-rené Luijmes | D86: Disney | E86: LT | F86: Sylawald, RV. | J86: 0 | N86: 99 | O86: 1 | P86: 246 | Q86: 228 | R86: 474 | U86: =VLOOKUP(V86,Blad1!A:C,2,0) -> 0 | V86: 21 | Z86: 0 | AD86: 99 | BC86: 0 | BD86: 474 | BE86: =IF($O$4>0,(SMALL(($M86,$U86,$AC86,$AL86,$AT86,$BB86),1)),"0") -> 0 | BI86: 0 | BJ86: 474 | BO86: nee
B87: 824146BS | C87: Daniella Smit | D87: Bommelsteyn's Tymon | E87: LT | F87: Waldruters, RV. | H87: 232 | I87: 230,5 | J87: 462.5 | M87: =VLOOKUP(N87,Blad1!A:C,2,0) -> 0 | N87: 21 | R87: 0 | V87: 99 | Z87: 0 | AD87: 99 | BC87: 0 | BD87: 462.5 | BE87: =IF($O$4>0,(SMALL(($M87,$U87,$AC87,$AL87,$AT87,$BB87),1)),"0") -> 0 | BI87: 0 | BJ87: 462.5 | BO87: nee
B88: 693311ZB | C88: Lisanne De Braal | D88: Ztoefzand | E88: LT | F88: Oranjeruiters, RV. | J88: 0 | N88: 99 | R88: 0 | V88: 99 | W88: 1 | X88: 183 | Y88: 196,5 | Z88: 379.5 | AC88: =VLOOKUP(AD88,Blad1!A:C,2,0) -> 0 | AD88: 20 | BC88: 0 | BD88: 379.5 | BE88: =IF($O$4>0,(SMALL(($M88,$U88,$AC88,$AL88,$AT88,$BB88),1)),"0") -> 0 | BI88: 0 | BJ88: 379.5 | BO88: nee
B89: 496574VT | C89: Anne-marie Telkamp | D89: Voque Of Class | E89: LT | F89: Zoetermeer, RV. | J89: 0 | N89: 99 | O89: 1 | P89: 223,5 | Q89: 223 | R89: 446.5 | U89: =VLOOKUP(V89,Blad1!A:C,2,0) -> 0 | V89: 20 | Z89: 0 | AD89: 99 | BC89: 0 | BD89: 446.5 | BE89: =IF($O$4>0,(SMALL(($M89,$U89,$AC89,$AL89,$AT89,$BB89),1)),"0") -> 0 | BI89: 0 | BJ89: 446.5 | BO89: nee
B90: 644776BS | C90: Wytske Schuth | D90: Bandiet | E90: LT | F90: Veendam e.o., RV. | H90: 229,5 | I90: 233 | J90: 462.5 | M90: =VLOOKUP(N90,Blad1!A:C,2,0) -> 0 | N90: 20 | R90: 0 | V90: 99 | Z90: 0 | AD90: 99 | BC90: 0 | BD90: 462.5 | BE90: =IF($O$4>0,(SMALL(($M90,$U90,$AC90,$AL90,$AT90,$BB90),1)),"0") -> 0 | BI90: 0 | BJ90: 462.5 | BO90: nee
B91: 657789DA | C91: Inge Agterberg - Heymans | D91: Dressboy | E91: LT | F91: Capelse R.j.v., RV. | H91: 230,5 | I91: 213,5 | J91: 444 | M91: =VLOOKUP(N91,Blad1!A:C,2,0) -> 0 | N91: 20 | R91: 0 | V91: 99 | Z91: 0 | AD91: 99 | BC91: 0 | BD91: 444 | BE91: =IF($O$4>0,(SMALL(($M91,$U91,$AC91,$AL91,$AT91,$BB91),1)),"0") -> 0 | BI91: 0 | BJ91: 444 | BO91: nee
B92: 529774AO | C92: Debbie Offermans | D92: Avec Espoir | E92: LT | F92: Sé-ros, RV. | J92: 0 | N92: 99 | R92: 0 | V92: 99 | W92: 1 | X92: 210 | Y92: 198 | Z92: 408 | AC92: =VLOOKUP(AD92,Blad1!A:C,2,0) -> 0 | AD92: 19 | BC92: 0 | BD92: 408 | BE92: =IF($O$4>0,(SMALL(($M92,$U92,$AC92,$AL92,$AT92,$BB92),1)),"0") -> 0 | BI92: 0 | BJ92: 408 | BO92: nee
B93: 805383DV | C93: Bart Veeze | D93: Devito Van De Kempenhoeve | E93: LT | F93: Hummelo, RV. | J93: 0 | N93: 99 | O93: 1 | P93: 237,5 | Q93: 244 | R93: 481.5 | U93: =VLOOKUP(V93,Blad1!A:C,2,0) -> 0 | V93: 19 | Z93: 0 | AD93: 99 | BC93: 0 | BD93: 481.5 | BE93: =IF($O$4>0,(SMALL(($M93,$U93,$AC93,$AL93,$AT93,$BB93),1)),"0") -> 0 | BI93: 0 | BJ93: 481.5 | BO93: nee
B94: 667513FH | C94: Heleen De Haas | D94: Fonger T. Fan 'e Boppelannen | E94: LT | F94: Postruters, RV. | J94: 0 | N94: 99 | P94: 232 | Q94: 225 | R94: 457 | U94: =VLOOKUP(V94,Blad1!A:C,2,0) -> 0 | V94: 19 | Z94: 0 | AD94: 99 | BC94: 0 | BD94: 457 | BE94: =IF($O$4>0,(SMALL(($M94,$U94,$AC94,$AL94,$AT94,$BB94),1)),"0") -> 0 | BI94: 0 | BJ94: 457 | BO94: nee
B95: 676130BS | C95: Melissa Stikkelorum | D95: Baruch | E95: LT | F95: Katsbekruiters, RV. | H95: 243,5 | I95: 248 | J95: 491.5 | M95: =VLOOKUP(N95,Blad1!A:C,2,0) -> 0 | N95: 19 | R95: 0 | V95: 99 | Z95: 0 | AD95: 99 | BC95: 0 | BD95: 491.5 | BE95: =IF($O$4>0,(SMALL(($M95,$U95,$AC95,$AL95,$AT95,$BB95),1)),"0") -> 0 | BI95: 0 | BJ95: 491.5 | BO95: nee
B96: 794162EK | C96: Johan Kral | D96: Eugene | E96: LT | F96: Hoeve Westland Ruiters, RV. | H96: 222 | I96: 223 | J96: 445 | M96: =VLOOKUP(N96,Blad1!A:C,2,0) -> 0 | N96: 19 | R96: 0 | V96: 99 | Z96: 0 | AD96: 99 | BC96: 0 | BD96: 445 | BE96: =IF($O$4>0,(SMALL(($M96,$U96,$AC96,$AL96,$AT96,$BB96),1)),"0") -> 0 | BI96: 0 | BJ96: 445 | BO96: nee
B97: 668222SB | C97: Sylvia Van den Broek | D97: Selevia's Champion | E97: LT | F97: Biesboschruiters, RV. | H97: 248 | I97: 249,5 | J97: 497.5 | M97: =VLOOKUP(N97,Blad1!A:C,2,0) -> 0 | N97: 18 | R97: 0 | V97: 99 | Z97: 0 | AD97: 99 | BC97: 0 | BD97: 497.5 | BE97: =IF($O$4>0,(SMALL(($M97,$U97,$AC97,$AL97,$AT97,$BB97),1)),"0") -> 0 | BI97: 0 | BJ97: 497.5 | BO97: nee
B98: 700613EB | C98: Janine Boudens | D98: Eternal Flame | E98: LT | F98: Paardebloem, RV. | J98: 0 | N98: 99 | R98: 0 | V98: 99 | W98: 1 | X98: 200 | Y98: 214 | Z98: 414 | AC98: =VLOOKUP(AD98,Blad1!A:C,2,0) -> 0 | AD98: 17 | BC98: 0 | BD98: 414 | BE98: =IF($O$4>0,(SMALL(($M98,$U98,$AC98,$AL98,$AT98,$BB98),1)),"0") -> 0 | BI98: 0 | BJ98: 414 | BO98: nee
B99: 655354CV | C99: Fréderique Vermaat | D99: Captein | E99: LT | F99: Rockanje (RPC), RV. | J99: 0 | N99: 99 | O99: 1 | P99: 240 | Q99: 238,5 | R99: 478.5 | U99: =VLOOKUP(V99,Blad1!A:C,2,0) -> 0 | V99: 17 | Z99: 0 | AD99: 99 | BC99: 0 | BD99: 478.5 | BE99: =IF($O$4>0,(SMALL(($M99,$U99,$AC99,$AL99,$AT99,$BB99),1)),"0") -> 0 | BI99: 0 | BJ99: 478.5 | BO99: nee
B100: 667834TV | C100: Amber Vermeer | D100: Farinelli | E100: LT | F100: PPH Horstdravers, RV. | H100: 252 | I100: 248 | J100: 500 | M100: =VLOOKUP(N100,Blad1!A:C,2,0) -> 0 | N100: 17 | R100: 0 | V100: 99 | Z100: 0 | AD100: 99 | BC100: 0 | BD100: 500 | BE100: =IF($O$4>0,(SMALL(($M100,$U100,$AC100,$AL100,$AT100,$BB100),1)),"0") -> 0 | BI100: 0 | BJ100: 500 | BO100: nee
B101: 529366AV | C101: Yoni De Vette | D101: Alonso | E101: LT | F101: Argonaut, RV. | H101: 231 | I101: 233,5 | J101: 464.5 | M101: =VLOOKUP(N101,Blad1!A:C,2,0) -> 0 | N101: 17 | R101: 0 | V101: 99 | Z101: 0 | AD101: 99 | BC101: 0 | BD101: 464.5 | BE101: =IF($O$4>0,(SMALL(($M101,$U101,$AC101,$AL101,$AT101,$BB101),1)),"0") -> 0 | BI101: 0 | BJ101: 464.5 | BO101: nee
B102: 834037EB | C102: Zoe De Booij | D102: Esther de Jeu SVN | E102: LT | F102: Oranjeruiters, RV. | J102: 0 | N102: 99 | R102: 0 | V102: 99 | W102: 1 | X102: 211,5 | Y102: 208 | Z102: 419.5 | AC102: =VLOOKUP(AD102,Blad1!A:C,2,0) -> 1 | AD102: 16 | BC102: 1 | BD102: 419.5 | BE102: =IF($O$4>0,(SMALL(($M102,$U102,$AC102,$AL102,$AT102,$BB102),1)),"0") -> 1 | BI102: 0 | BJ102: 419.5 | BO102: nee
B103: 836224VK | C103: Maarten Koppejan | D103: Vivaldi Vdl | E103: LT | F103: Grote Brug, RV. | J103: 0 | N103: 99 | R103: 0 | V103: 99 | W103: 2 | X103: 190,5 | Y103: 191,5 | Z103: 382 | AC103: =VLOOKUP(AD103,Blad1!A:C,2,0) -> 1 | AD103: 16 | BC103: 1 | BD103: 382 | BE103: =IF($O$4>0,(SMALL(($M103,$U103,$AC103,$AL103,$AT103,$BB103),1)),"0") -> 1 | BI103: 0 | BJ103: 382 | BO103: nee
B104: 687720TM | C104: Carmen Mulrain | D104: Essen's Elino | E104: LT | F104: Hoge Devel (RSV), RV. | J104: 0 | N104: 99 | O104: 1 | P104: 247 | Q104: 233,5 | R104: 480.5 | U104: =VLOOKUP(V104,Blad1!A:C,2,0) -> 1 | V104: 16 | Z104: 0 | AD104: 99 | BC104: 1 | BD104: 480.5 | BE104: =IF($O$4>0,(SMALL(($M104,$U104,$AC104,$AL104,$AT104,$BB104),1)),"0") -> 1 | BI104: 0 | BJ104: 480.5 | BO104: nee
B105: 669062DL | C105: Anne Lehmann | D105: Don Juan | E105: LT | F105: Millenniumruiters (RSV), RV. | J105: =H105+I105 -> 0 | N105: 99 | P105: 243 | Q105: 238 | R105: =P105+Q105 -> 481 | U105: =VLOOKUP(V105,Blad1!A:C,2,0) -> 1 | V105: 16 | Z105: =X105+Y105 -> 0 | AD105: 99 | BC105: =M105+U105+AC105 -> 1 | BD105: =J105+R105+Z105+AH105+AP105+AX105 -> 481 | BE105: =IF($O$4>0,(SMALL(($M105,$U105,$AC105,$AL105,$AT105,$BB105),1)),"0") -> 1 | BI105: =BC105-BE105-BF105 -> 0 | BJ105: =BD105-BG105-BH105 -> 481 | BO105: nee
B106: 825216RL | C106: Emma Laarkamp | D106: Remmits Detroit | E106: LT | F106: Kennemerruiters, RV. | H106: 240,5 | I106: 225,5 | J106: 466 | M106: =VLOOKUP(N106,Blad1!A:C,2,0) -> 1 | N106: 16 | R106: 0 | V106: 99 | Z106: 0 | AD106: 99 | BC106: 1 | BD106: 466 | BE106: =IF($O$4>0,(SMALL(($M106,$U106,$AC106,$AL106,$AT106,$BB106),1)),"0") -> 1 | BI106: 0 | BJ106: 466 | BO106: nee
B107: 565502UF | C107: Tessa Fleskens | D107: Unique D | E107: LT | F107: Lekzoomruiters, RV. | J107: 0 | N107: 99 | R107: 0 | V107: 99 | W107: 2 | X107: 207 | Y107: 206 | Z107: 413 | AC107: =VLOOKUP(AD107,Blad1!A:C,2,0) -> 2 | AD107: 15 | BC107: 2 | BD107: 413 | BE107: =IF($O$4>0,(SMALL(($M107,$U107,$AC107,$AL107,$AT107,$BB107),1)),"0") -> 2 | BI107: 0 | BJ107: 413 | BO107: nee
B108: 760192VV | C108: Renate Van Vliet | D108: Axia's Victory U.S. | E108: LT | F108: Westland, RV. | H108: 254 | I108: 250,5 | J108: 504.5 | M108: =VLOOKUP(N108,Blad1!A:C,2,0) -> 2 | N108: 15 | R108: 0 | V108: 99 | Z108: 0 | AD108: 99 | BC108: 2 | BD108: 504.5 | BE108: =IF($O$4>0,(SMALL(($M108,$U108,$AC108,$AL108,$AT108,$BB108),1)),"0") -> 2 | BI108: 0 | BJ108: 504.5 | BO108: nee
B109: 596626CG | C109: Joey Van de Grijp | D109: Cayenne JC | E109: LT | F109: Radboudruiters, RV. | H109: 238,5 | I109: 237 | J109: 475.5 | M109: =VLOOKUP(N109,Blad1!A:C,2,0) -> 2 | N109: 15 | R109: 0 | V109: 99 | Z109: 0 | AD109: 99 | BC109: 2 | BD109: 475.5 | BE109: =IF($O$4>0,(SMALL(($M109,$U109,$AC109,$AL109,$AT109,$BB109),1)),"0") -> 2 | BI109: 0 | BJ109: 475.5 | BO109: nee
B110: 833708DB | C110: Robin Beekink | D110: Diamond | E110: LT | F110: Lambertus, RV. | H110: 239,5 | I110: 231,5 | J110: 471 | M110: =VLOOKUP(N110,Blad1!A:C,2,0) -> 2 | N110: 15 | R110: 0 | V110: 99 | Z110: 0 | AD110: 99 | BC110: 2 | BD110: 471 | BE110: =IF($O$4>0,(SMALL(($M110,$U110,$AC110,$AL110,$AT110,$BB110),1)),"0") -> 2 | BI110: 0 | BJ110: 471 | BO110: nee
B111: 753785DK | C111: Mischa Koot | D111: Don Quichot | E111: LT | F111: Grevelingen, RV. De | J111: 0 | N111: 99 | O111: 1 | P111: 253 | Q111: 252,5 | R111: 505.5 | U111: =VLOOKUP(V111,Blad1!A:C,2,0) -> 3 | V111: 14 | Z111: 0 | AD111: 99 | BC111: 3 | BD111: 505.5 | BE111: =IF($O$4>0,(SMALL(($M111,$U111,$AC111,$AL111,$AT111,$BB111),1)),"0") -> 3 | BI111: 0 | BJ111: 505.5 | BO111: nee
B112: 811944DK | C112: Sharon De Kok | D112: Daydreamer | E112: LT | F112: Walcheren, RV. | J112: 0 | N112: 99 | R112: 0 | V112: 99 | W112: 1 | X112: 218,5 | Y112: 214,5 | Z112: 433 | AC112: =VLOOKUP(AD112,Blad1!A:C,2,0) -> 4 | AD112: 13 | BC112: 4 | BD112: 433 | BE112: =IF($O$4>0,(SMALL(($M112,$U112,$AC112,$AL112,$AT112,$BB112),1)),"0") -> 4 | BI112: 0 | BJ112: 433 | BO112: nee
B113: 820425AD | C113: Gerald Drent | D113: Arriant | E113: LT | F113: Oost-Veluwse R.J.V., RV. | J113: 0 | N113: 99 | R113: 0 | V113: 99 | W113: 3 | X113: 200 | Y113: 200 | Z113: 400 | AC113: =VLOOKUP(AD113,Blad1!A:C,2,0) -> 4 | AD113: 13 | BC113: 4 | BD113: 400 | BE113: =IF($O$4>0,(SMALL(($M113,$U113,$AC113,$AL113,$AT113,$BB113),1)),"0") -> 4 | BI113: 0 | BJ113: 400 | BO113: nee
B114: 800589BD | C114: Trea Mulder - Dolsma | D114: Brinkhof's EnVogue | E114: LT | F114: Dwingeloo, RV. | H114: 233 | I114: 243,5 | J114: 476.5 | M114: =VLOOKUP(N114,Blad1!A:C,2,0) -> 4 | N114: 13 | R114: 0 | V114: 99 | Z114: 0 | AD114: 99 | BC114: 4 | BD114: 476.5 | BE114: =IF($O$4>0,(SMALL(($M114,$U114,$AC114,$AL114,$AT114,$BB114),1)),"0") -> 4 | BI114: 0 | BJ114: 476.5 | BO114: nee
B115: 535070VR | C115: Laura Van Rijswijk | D115: Valentino | E115: LT | F115: Elzen, RV. | H115: 244 | I115: 231,5 | J115: 475.5 | M115: =VLOOKUP(N115,Blad1!A:C,2,0) -> 4 | N115: 13 | R115: 0 | V115: 99 | Z115: 0 | AD115: 99 | BC115: 4 | BD115: 475.5 | BE115: =IF($O$4>0,(SMALL(($M115,$U115,$AC115,$AL115,$AT115,$BB115),1)),"0") -> 4 | BI115: 0 | BJ115: 475.5 | BO115: nee
B116: 721603ZL | C116: Jessica Leijser | D116: Zazou | E116: LT | F116: Zelden Rust, RV. | J116: 0 | N116: 99 | R116: 0 | V116: 99 | W116: 1 | X116: 215,5 | Y116: 218,5 | Z116: 434 | AC116: =VLOOKUP(AD116,Blad1!A:C,2,0) -> 5 | AD116: 12 | BC116: 5 | BD116: 434 | BE116: =IF($O$4>0,(SMALL(($M116,$U116,$AC116,$AL116,$AT116,$BB116),1)),"0") -> 5 | BI116: 0 | BJ116: 434 | BO116: nee
B117: 725184DB | C117: Anouk Beelen | D117: Derrel | E117: LT | F117: R.s.v. Stal Rodeo, RV. | J117: 0 | N117: 99 | R117: 0 | V117: 99 | W117: 3 | X117: 210,5 | Y117: 210,5 | Z117: 421 | AC117: =VLOOKUP(AD117,Blad1!A:C,2,0) -> 5 | AD117: 12 | BC117: 5 | BD117: 421 | BE117: =IF($O$4>0,(SMALL(($M117,$U117,$AC117,$AL117,$AT117,$BB117),1)),"0") -> 5 | BI117: 0 | BJ117: 421 | BO117: nee
B118: 723474FL | C118: Dinja Van Liere | D118: For Gribaldi | E118: LT | F118: Veldhuisen Stables Nigtevecht | J118: 0 | N118: 99 | O118: 1 | P118: 258,5 | Q118: 252,5 | R118: 511 | U118: =VLOOKUP(V118,Blad1!A:C,2,0) -> 5 | V118: 12 | Z118: 0 | AD118: 99 | BC118: 5 | BD118: 511 | BE118: =IF($O$4>0,(SMALL(($M118,$U118,$AC118,$AL118,$AT118,$BB118),1)),"0") -> 5 | BI118: 0 | BJ118: 511 | BO118: nee
B119: 616255BR | C119: Caroline Rijnders | D119: Baya | E119: LT | F119: St. Clemens, RV | J119: 0 | N119: 99 | O119: 1 | P119: 252,5 | Q119: 243 | R119: 495.5 | U119: =VLOOKUP(V119,Blad1!A:C,2,0) -> 5 | V119: 12 | Z119: 0 | AD119: 99 | BC119: 5 | BD119: 495.5 | BE119: =IF($O$4>0,(SMALL(($M119,$U119,$AC119,$AL119,$AT119,$BB119),1)),"0") -> 5 | BI119: 0 | BJ119: 495.5 | BO119: nee
B120: 602238CM | C120: Dominique Marijnissen | D120: C'est Liza | E120: LT | F120: Oostzanerveld, RV. | H120: 239 | I120: 241 | J120: 480 | M120: =VLOOKUP(N120,Blad1!A:C,2,0) -> 5 | N120: 12 | R120: 0 | V120: 99 | Z120: 0 | AD120: 99 | BC120: 5 | BD120: 480 | BE120: =IF($O$4>0,(SMALL(($M120,$U120,$AC120,$AL120,$AT120,$BB120),1)),"0") -> 5 | BI120: 0 | BJ120: 480 | BO120: nee
B121: 751346BZ | C121: Laura Zwart | D121: Bingo | E121: LT | F121: Hynstewille, RV. | H121: 239 | I121: 243 | J121: 482 | M121: =VLOOKUP(N121,Blad1!A:C,2,0) -> 6 | N121: 11 | R121: 0 | V121: 99 | Z121: 0 | AD121: 99 | BC121: 6 | BD121: 482 | BE121: =IF($O$4>0,(SMALL(($M121,$U121,$AC121,$AL121,$AT121,$BB121),1)),"0") -> 6 | BI121: 0 | BJ121: 482 | BO121: nee
B122: 527543AW | C122: Emily Wiskerke | D122: Aristocraat | E122: LT | F122: Zuid-Beveland, RV. | J122: 0 | N122: 99 | R122: 0 | V122: 99 | W122: 1 | X122: 220,5 | Y122: 216 | Z122: 436.5 | AC122: =VLOOKUP(AD122,Blad1!A:C,2,0) -> 7 | AD122: 10 | BC122: 7 | BD122: 436.5 | BE122: =IF($O$4>0,(SMALL(($M122,$U122,$AC122,$AL122,$AT122,$BB122),1)),"0") -> 7 | BI122: 0 | BJ122: 436.5 | BO122: nee
B123: 559960AW | C123: Wilma Wernsen | D123: Apretado | E123: LT | F123: Srjv Groenendaal, RV. | H123: 246,5 | I123: 243 | J123: 489.5 | M123: =VLOOKUP(N123,Blad1!A:C,2,0) -> 7 | N123: 10 | R123: 0 | V123: 99 | Z123: 0 | AD123: 99 | BC123: 7 | BD123: 489.5 | BE123: =IF($O$4>0,(SMALL(($M123,$U123,$AC123,$AL123,$AT123,$BB123),1)),"0") -> 7 | BI123: 0 | BJ123: 489.5 | BO123: nee
B124: 841314RB | C124: Zoe De Booij | D124: Rohdante | E124: LT | F124: Oranjeruiters, RV. | J124: 0 | N124: 99 | R124: 0 | V124: 99 | W124: 1 | X124: 223,5 | Y124: 218,5 | Z124: 442 | AC124: =VLOOKUP(AD124,Blad1!A:C,2,0) -> 8 | AD124: 9 | BC124: 8 | BD124: 442 | BE124: =IF($O$4>0,(SMALL(($M124,$U124,$AC124,$AL124,$AT124,$BB124),1)),"0") -> 8 | BI124: 0 | BJ124: 442 | BO124: nee
B125: 838408LL | C125: Dinja Van Liere | D125: Lollypop | E125: LT | F125: Veldhuisen Stables Nigtevecht | J125: 0 | N125: 99 | O125: 1 | P125: 262 | Q125: 253,5 | R125: 515.5 | U125: =VLOOKUP(V125,Blad1!A:C,2,0) -> 8 | V125: 9 | Z125: 0 | AD125: 99 | BC125: 8 | BD125: 515.5 | BE125: =IF($O$4>0,(SMALL(($M125,$U125,$AC125,$AL125,$AT125,$BB125),1)),"0") -> 8 | BI125: 0 | BJ125: 515.5 | BO125: nee
B126: 600472DB | C126: Vincent Bol | D126: Vip | E126: LT | F126: Walcheren, RV. | J126: 0 | N126: 99 | R126: 0 | V126: 99 | W126: 1 | X126: 226,5 | Y126: 232 | Z126: 458.5 | AC126: =VLOOKUP(AD126,Blad1!A:C,2,0) -> 9 | AD126: 8 | BC126: 9 | BD126: 458.5 | BE126: =IF($O$4>0,(SMALL(($M126,$U126,$AC126,$AL126,$AT126,$BB126),1)),"0") -> 9 | BI126: 0 | BJ126: 458.5 | BO126: nee
B127: 839097FN | C127: Jeanine Nieuwenhuis | D127: Flying Dutchman TC | E127: LT | F127: Oud-beijerland, RV. | J127: 0 | N127: 99 | O127: 1 | P127: 256,5 | Q127: 255,5 | R127: 512 | U127: =VLOOKUP(V127,Blad1!A:C,2,0) -> 9 | V127: 8 | Z127: 0 | AD127: 99 | BC127: 9 | BD127: 512 | BE127: =IF($O$4>0,(SMALL(($M127,$U127,$AC127,$AL127,$AT127,$BB127),1)),"0") -> 9 | BI127: 0 | BJ127: 512 | BO127: nee
B128: 680305AV | C128: Nathalie Vorenhout | D128: Anna Van De 'haffriehoeve' | E128: LT | F128: Generaal Van Den Bosch, RV. | H128: 243,5 | I128: 243 | J128: 486.5 | M128: =VLOOKUP(N128,Blad1!A:C,2,0) -> 9 | N128: 8 | R128: 0 | V128: 99 | Z128: 0 | AD128: 99 | BC128: 9 | BD128: 486.5 | BE128: =IF($O$4>0,(SMALL(($M128,$U128,$AC128,$AL128,$AT128,$BB128),1)),"0") -> 9 | BI128: 0 | BJ128: 486.5 | BO128: nee
B129: 649055DK | C129: Stephanie Kooyman | D129: Dibert L | E129: LT | F129: Oud-beijerland, RV. | H129: 264 | I129: 271,5 | J129: 535.5 | M129: =VLOOKUP(N129,Blad1!A:C,2,0) -> 10 | N129: 7 | R129: 0 | V129: 99 | Z129: 0 | AD129: 99 | BC129: 10 | BD129: 535.5 | BE129: =IF($O$4>0,(SMALL(($M129,$U129,$AC129,$AL129,$AT129,$BB129),1)),"0") -> 10 | BI129: 0 | BJ129: 535.5 | BO129: nee
B130: 729053DL | C130: Astrid Langeberg | D130: Downtown | E130: LT | F130: Soc. Rijvereniging Vennen, RV. | J130: 0 | N130: 99 | P130: 260,5 | Q130: 246 | R130: 506.5 | U130: =VLOOKUP(V130,Blad1!A:C,2,0) -> 10 | V130: 7 | Z130: 0 | AD130: 99 | BC130: 10 | BD130: 506.5 | BE130: =IF($O$4>0,(SMALL(($M130,$U130,$AC130,$AL130,$AT130,$BB130),1)),"0") -> 10 | BI130: 0 | BJ130: 506.5 | BO130: nee
B131: 819264DB | C131: Hester Bischot | D131: Dancer Again | E131: LT | F131: Hce Ruiters, RV. | H131: 249 | I131: 249 | J131: 498 | M131: =VLOOKUP(N131,Blad1!A:C,2,0) -> 12 | N131: 5 | R131: 0 | V131: 99 | Z131: 0 | AD131: 99 | BC131: 12 | BD131: 498 | BE131: =IF($O$4>0,(SMALL(($M131,$U131,$AC131,$AL131,$AT131,$BB131),1)),"0") -> 12 | BI131: 0 | BJ131: 498 | BO131: nee
B132: 816379AB | C132: Kirsten Beckers | D132: Aladin | E132: LT | F132: Oud-beijerland, RV. | H132: 253,5 | I132: 264,5 | J132: 518 | M132: =VLOOKUP(N132,Blad1!A:C,2,0) -> 12 | N132: 5 | R132: 0 | V132: 99 | Z132: 0 | AD132: 99 | BC132: 12 | BD132: 518 | BE132: =IF($O$4>0,(SMALL(($M132,$U132,$AC132,$AL132,$AT132,$BB132),1)),"0") -> 12 | BI132: 0 | BJ132: 518 | BO132: nee
B133: 806892WB | C133: Femke Beljon | D133: Winningmood | E133: LT | F133: Raalte, RV. | H133: 263 | I133: 257,5 | J133: 520.5 | M133: =VLOOKUP(N133,Blad1!A:C,2,0) -> 13 | N133: 4 | R133: 0 | V133: 99 | Z133: 0 | AD133: 99 | BC133: 13 | BD133: 520.5 | BE133: =IF($O$4>0,(SMALL(($M133,$U133,$AC133,$AL133,$AT133,$BB133),1)),"0") -> 13 | BI133: 0 | BJ133: 520.5 | BO133: nee
B134: 785919FF | C134: Charlotte Fry | D134: Fendi T | E134: LT | F134: Ons Genoegen, RV. | J134: 0 | N134: 99 | R134: 0 | V134: 99 | W134: 1 | X134: 244,5 | Y134: 232 | Z134: 476.5 | AC134: =VLOOKUP(AD134,Blad1!A:C,2,0) -> 15 | AD134: 3 | BC134: 15 | BD134: 476.5 | BE134: =IF($O$4>0,(SMALL(($M134,$U134,$AC134,$AL134,$AT134,$BB134),1)),"0") -> 15 | BI134: 0 | BJ134: 476.5 | BO134: nee
B135: 724703FB | C135: Kirsten Brouwer | D135: Ferdeaux | E135: LT | F135: Voornruiters, RV. De | H135: 282,5 | I135: 272 | J135: 554.5 | M135: =VLOOKUP(N135,Blad1!A:C,2,0) -> 20 | N135: 1 | R135: 0 | V135: 99 | Z135: 0 | AD135: 99 | BC135: 20 | BD135: 554.5 | BE135: =IF($O$4>0,(SMALL(($M135,$U135,$AC135,$AL135,$AT135,$BB135),1)),"0") -> 20 | BI135: 0 | BJ135: 554.5 | BO135: nee
BJ136: 0 | BO136: nee
BJ137: =BD137-BG137-BH137 -> 0 | BO137: nee
BJ138: 0 | BO138: =IF(COUNT(M138,U138,AC138)>1,"ja","nee") -> nee
BJ139: 0 | BO139: nee
BJ140: 0 | BO140: nee
BJ141: 0 | BO141: nee
BJ142: 0 | BO142: nee
BJ143: 0 | BO143: nee

Sheet L1 (hidden)
A1: Selectie uitslagen
C2: 1 | D2: =FLOOR((C2+3)/4,1) -> 1 | H2: 192 | I2: 190 | J2: =H2+I2 -> 382 | N2: 1 | P2: 193 | Q2: 193 | R2: =P2+Q2 -> 386 | V2: 2 | X2: 198 | Y2: 198 | Z2: =X2+Y2 -> 396 | AD2: 3 | AF2: 177 | AG2: 177 | AH2: =AF2+AG2 -> 354 | AL2: 4 | AN2: 178 | AO2: 178 | AP2: =AN2+AO2 -> 356 | AT2: 5 | AV2: 179 | AW2: 179 | AX2: =AV2+AW2 -> 358 | BB2: 6 | BC2: =N2+V2+AD2+AL2+AT2+BB2 -> 21 | BD2: =J2+R2+Z2+AH2+AP2+AX2 -> 2232 | BE2: =IF($O$4>0,(LARGE(($N2,$V2,$AD2,$AL2,$AT2,$BB2),1)),"0") -> 6 | BF2: =IF($O$4>0,(LARGE(($N2,$V2,$AD2,$AL2,$AT2,$BB2),2)),"0") -> 5 | BG2: 354 | BH2: 354 | BI2: =BC2-BE2-BF2 -> 10 | BJ2: =BD2-BG2-BH2 -> 1524
A3: Kring: | C3: =Instellingen!B3 -> Selectie Subtop | F3: Aantal afvaardiging Regio: | BC3: Aantal wedstrijden: | BL3: =Instellingen!B6 -> 3
A4: Klasse: | C4: L1 | F4: Aantal afval resultaten: | O4: =Instellingen!B7 -> 1
A5: Cat.: | F5: Plaatsingspunten niet gestart: | O5: =Instellingen!B5 -> 99 | BC5: Aantal reserves: | BL5: 2
F6: Lokatie: | G6: =Instellingen!B36 -> Delft/Werkendam/Harich | O6: =Instellingen!B37 -> uden/Emmeloord/Den Hoorn | W6: =Instellingen!B38 -> Nw. en St. Joosland/Boxtel/Bunschoten-Spakenburg | AE6: =Instellingen!B39 ->  | AM6: =Instellingen!B40 ->  | AU6: =Instellingen!B41 ->  | BC6: Dressuur | BI6: Pnt. 60% regel | BL6: 180
F7: Datum: | G7: =Instellingen!C36 -> 18 & 19 -11-2017 | O7: =Instellingen!C37 -> 16 & 17 -12 -2017 | W7: =Instellingen!C38 -> 20 en 21-1-2018 | AE7: =Instellingen!C39 ->  | AM7: =Instellingen!C40 ->  | AU7: =Instellingen!C41 ->  | BC7: Tot. | BD7: Tot. | BE7: afval | BF7: afval | BG7: afval | BH7: afval | BI7: Beste | BJ7: Beste
A8: Pl. | B8: Comb.nr. | C8: Ruiter/amazone | D8: Paard/pony | E8: kl. | F8: vereniging | G8: Ring | H8: pnt.C | I8: pnt.H | J8: pnt.tot | K8: ex 1 | L8: ex 2 | M8: pl. | N8: pl.p. | O8: Ring | P8: pnt.C | Q8: pnt.H | R8: pnt.tot. | S8: ex 1 | T8: ex 2 | U8: pl. | V8: pl.p. | W8: Ring | X8: pnt.C | Y8: pnt. H | Z8: pnt.tot. | AA8: ex 1 | AB8: ex 2 | AC8: pl. | AD8: pl.p. | AE8: Ring | AF8: pnt.C | AG8: pnt.H | AH8: pnt.tot. | AI8: ex 1 | AJ8: ex 2 | AK8: pl. | AL8: pl.p. | AM8: Ring | AN8: pnt.C | AO8: pnt.H | AP8: pnt.tot. | AQ8: ex 1 | AR8: ex 2 | AS8: pl. | AT8: pl.p. | AU8: Ring | AV8: pnt.C | AW8: pnt.H | AX8: pnt.tot. | AY8: ex 1 | AZ8: ex 2 | BA8: pl. | BB8: pl.p. | BC8: pl.pnt | BD8: punten | BE8: pl.pnt | BF8: pl.pnt | BG8: punten | BH8: punten | BI8: pl.pnt | BJ8: punten | BK8: Afv. | BL8: Res. | BM8: Afv. Regio | BN8: opmerking

Sheet L2 (hidden)
A1: Selectie uitslagen
C2: 1 | D2: =FLOOR((C2+3)/4,1) -> 1 | H2: 192 | I2: 190 | J2: =H2+I2 -> 382 | N2: 1 | P2: 193 | Q2: 193 | R2: =P2+Q2 -> 386 | V2: 2 | X2: 198 | Y2: 198 | Z2: =X2+Y2 -> 396 | AD2: 3 | AF2: 177 | AG2: 177 | AH2: =AF2+AG2 -> 354 | AL2: 4 | AN2: 178 | AO2: 178 | AP2: =AN2+AO2 -> 356 | AT2: 5 | AV2: 179 | AW2: 179 | AX2: =AV2+AW2 -> 358 | BB2: 6 | BC2: =N2+V2+AD2+AL2+AT2+BB2 -> 21 | BD2: =J2+R2+Z2+AH2+AP2+AX2 -> 2232 | BE2: =IF($O$4>0,(LARGE(($N2,$V2,$AD2,$AL2,$AT2,$BB2),1)),"0") -> 6 | BF2: =IF($O$4>0,(LARGE(($N2,$V2,$AD2,$AL2,$AT2,$BB2),2)),"0") -> 5 | BG2: 354 | BH2: 354 | BI2: =BC2-BE2-BF2 -> 10 | BJ2: =BD2-BG2-BH2 -> 1524
A3: Kring: | C3: =Instellingen!B3 -> Selectie Subtop | F3: Aantal afvaardiging Regio: | BC3: Aantal wedstrijden: | BL3: =Instellingen!B6 -> 3
A4: Klasse: | C4: L2 | F4: Aantal afval resultaten: | O4: =Instellingen!B7 -> 1
A5: Cat.: | F5: Plaatsingspunten niet gestart: | O5: =Instellingen!B5 -> 99 | BC5: Aantal reserves: | BL5: 2
F6: Lokatie: | G6: =Instellingen!B36 -> Delft/Werkendam/Harich | O6: =Instellingen!B37 -> uden/Emmeloord/Den Hoorn | W6: =Instellingen!B38 -> Nw. en St. Joosland/Boxtel/Bunschoten-Spakenburg | AE6: =Instellingen!B39 ->  | AM6: =Instellingen!B40 ->  | AU6: =Instellingen!B41 ->  | BC6: Dressuur | BI6: Pnt. 60% regel | BL6: 180
F7: Datum: | G7: =Instellingen!C36 -> 18 & 19 -11-2017 | O7: =Instellingen!C37 -> 16 & 17 -12 -2017 | W7: =Instellingen!C38 -> 20 en 21-1-2018 | AE7: =Instellingen!C39 ->  | AM7: =Instellingen!C40 ->  | AU7: =Instellingen!C41 ->  | BC7: Tot. | BD7: Tot. | BE7: afval | BF7: afval | BG7: afval | BH7: afval | BI7: Beste | BJ7: Beste
A8: Pl. | B8: Comb.nr. | C8: Ruiter/amazone | D8: Paard/pony | E8: kl. | F8: vereniging | G8: Ring | H8: pnt.C | I8: pnt.H | J8: pnt.tot | K8: ex 1 | L8: ex 2 | M8: pl. | N8: pl.p. | O8: Ring | P8: pnt.C | Q8: pnt.H | R8: pnt.tot. | S8: ex 1 | T8: ex 2 | U8: pl. | V8: pl.p. | W8: Ring | X8: pnt.C | Y8: pnt. H | Z8: pnt.tot. | AA8: ex 1 | AB8: ex 2 | AC8: pl. | AD8: pl.p. | AE8: Ring | AF8: pnt.C | AG8: pnt.H | AH8: pnt.tot. | AI8: ex 1 | AJ8: ex 2 | AK8: pl. | AL8: pl.p. | AM8: Ring | AN8: pnt.C | AO8: pnt.H | AP8: pnt.tot. | AQ8: ex 1 | AR8: ex 2 | AS8: pl. | AT8: pl.p. | AU8: Ring | AV8: pnt.C | AW8: pnt.H | AX8: pnt.tot. | AY8: ex 1 | AZ8: ex 2 | BA8: pl. | BB8: pl.p. | BC8: pl.pnt | BD8: punten | BE8: pl.pnt | BF8: pl.pnt | BG8: punten | BH8: punten | BI8: pl.pnt | BJ8: punten | BK8: Afv. | BL8: Res. | BM8: Afv. Regio | BN8: opmerking

Sheet L1 - L2 (hidden)
A1: Selectie uitslagen
C2: 1 | D2: =FLOOR((C2+3)/4,1) -> 1 | G2: 192 | H2: 192 | I2: 190 | J2: =H2+I2 -> 382 | N2: 1 | O2: 193 | P2: 193 | Q2: 193 | R2: =P2+Q2 -> 386 | V2: 2 | W2: 198 | X2: 198 | Y2: 198 | Z2: =X2+Y2 -> 396 | AD2: 3 | AE2: 177 | AF2: 177 | AG2: 177 | AH2: =AF2+AG2 -> 354 | AL2: 4 | AM2: 178 | AN2: 178 | AO2: 178 | AP2: =AN2+AO2 -> 356 | AT2: 5 | AU2: 179 | AV2: 179 | AW2: 179 | AX2: =AV2+AW2 -> 358 | BB2: 6 | BC2: =N2+V2+AD2+AL2+AT2+BB2 -> 21 | BD2: =J2+R2+Z2+AH2+AP2+AX2 -> 2232 | BE2: =IF($O$4>0,(LARGE(($N2,$V2,$AD2,$AL2,$AT2,$BB2),1)),"0") -> 6 | BF2: =IF($O$4>0,(LARGE(($N2,$V2,$AD2,$AL2,$AT2,$BB2),2)),"0") -> 5 | BG2: 354 | BH2: 354 | BI2: =BC2-BE2-BF2 -> 10 | BJ2: =BD2-BG2-BH2 -> 1524
A3: Kring: | C3: =Instellingen!B3 -> Selectie Subtop | BC3: Aantal wedstrijden: | BL3: =Instellingen!B6 -> 3
A4: Klasse: | C4: L1 - L2 | F4: Aantal afval resultaten: | O4: =Instellingen!B7 -> 1
A5: Cat.: | F5: Plaatsingspunten niet gestart: | O5: =Instellingen!B5 -> 99
F6: Lokatie: | G6: =Instellingen!B36 -> Delft/Werkendam/Harich | O6: =Instellingen!B37 -> uden/Emmeloord/Den Hoorn | W6: =Instellingen!B38 -> Nw. en St. Joosland/Boxtel/Bunschoten-Spakenburg | AE6: =Instellingen!B39 ->  | AM6: =Instellingen!B40 ->  | AU6: =Instellingen!B41 ->  | BC6: Dressuur
F7: Datum: | G7: =Instellingen!C36 -> 18 & 19 -11-2017 | O7: =Instellingen!C37 -> 16 & 17 -12 -2017 | W7: =Instellingen!C38 -> 20 en 21-1-2018 | AE7: =Instellingen!C39 ->  | AM7: =Instellingen!C40 ->  | AU7: =Instellingen!C41 ->  | BC7: Tot. | BD7: Tot. | BE7: afval | BF7: afval | BG7: afval | BH7: afval | BI7: Beste | BJ7: Beste
A8: Pl. | B8: Comb.nr. | C8: Ruiter/amazone | D8: Paard/pony | E8: kl. | F8: vereniging | G8: Ring | H8: pnt.C | I8: pnt.H | J8: pnt.tot | K8: ex 1 | L8: ex 2 | M8: pl. | N8: pl.p. | O8: Ring | P8: pnt.C | Q8: pnt.H | R8: pnt.tot. | S8: ex 1 | T8: ex 2 | U8: pl. | V8: pl.p. | W8: Ring | X8: pnt.C | Y8: pnt. H | Z8: pnt.tot. | AA8: ex 1 | AB8: ex 2 | AC8: pl. | AD8: pl.p. | AE8: Ring | AF8: pnt.C | AG8: pnt.H | AH8: pnt.tot. | AI8: ex 1 | AJ8: ex 2 | AK8: pl. | AL8: pl.p. | AM8: Ring | AN8: pnt.C | AO8: pnt.H | AP8: pnt.tot. | AQ8: ex 1 | AR8: ex 2 | AS8: pl. | AT8: pl.p. | AU8: Ring | AV8: pnt.C | AW8: pnt.H | AX8: pnt.tot. | AY8: ex 1 | AZ8: ex 2 | BA8: pl. | BB8: pl.p. | BC8: pl.pnt | BD8: punten | BE8: pl.pnt | BF8: pl.pnt | BG8: punten | BH8: punten | BI8: pl.pnt | BJ8: punten | BK8: Afv. | BL8: Res. | BN8: opmerking

Sheet M1 (hidden)
A1: Selectie uitslagen
C2: 1 | D2: =FLOOR((C2+3)/4,1) -> 1 | H2: 192 | I2: 190 | J2: =H2+I2 -> 382 | N2: 1 | P2: 193 | Q2: 193 | R2: =P2+Q2 -> 386 | V2: 2 | X2: 198 | Y2: 198 | Z2: =X2+Y2 -> 396 | AD2: 3 | AF2: 177 | AG2: 177 | AH2: =AF2+AG2 -> 354 | AL2: 4 | AN2: 178 | AO2: 178 | AP2: =AN2+AO2 -> 356 | AT2: 5 | AV2: 179 | AW2: 179 | AX2: =AV2+AW2 -> 358 | BB2: 6 | BC2: =N2+V2+AD2+AL2+AT2+BB2 -> 21 | BD2: =J2+R2+Z2+AH2+AP2+AX2 -> 2232 | BE2: =IF($O$4>0,(LARGE(($N2,$V2,$AD2,$AL2,$AT2,$BB2),1)),"0") -> 6 | BF2: =IF($O$4>0,(LARGE(($N2,$V2,$AD2,$AL2,$AT2,$BB2),2)),"0") -> 5 | BG2: 354 | BH2: 354 | BI2: =BC2-BE2-BF2 -> 10 | BJ2: =BD2-BG2-BH2 -> 1524
A3: Kring: | C3: =Instellingen!B3 -> Selectie Subtop | F3: Aantal afvaardiging Regio: | BC3: Aantal wedstrijden: | BL3: =Instellingen!B6 -> 3
A4: Klasse: | C4: M1 | F4: Aantal afval resultaten: | O4: =Instellingen!B7 -> 1
A5: Cat.: | F5: Plaatsingspunten niet gestart: | O5: =Instellingen!B5 -> 99 | BC5: Aantal reserves: | BL5: 2
F6: Lokatie: | G6: =Instellingen!B36 -> Delft/Werkendam/Harich | O6: =Instellingen!B37 -> uden/Emmeloord/Den Hoorn | W6: =Instellingen!B38 -> Nw. en St. Joosland/Boxtel/Bunschoten-Spakenburg | AE6: =Instellingen!B39 ->  | AM6: =Instellingen!B40 ->  | AU6: =Instellingen!B41 ->  | BC6: Dressuur | BI6: Pnt. 60% regel | BL6: 180
F7: Datum: | G7: =Instellingen!C36 -> 18 & 19 -11-2017 | O7: =Instellingen!C37 -> 16 & 17 -12 -2017 | W7: =Instellingen!C38 -> 20 en 21-1-2018 | AE7: =Instellingen!C39 ->  | AM7: =Instellingen!C40 ->  | AU7: =Instellingen!C41 ->  | BC7: Tot. | BD7: Tot. | BE7: afval | BF7: afval | BG7: afval | BH7: afval | BI7: Beste | BJ7: Beste
A8: Pl. | B8: Comb.nr. | C8: Ruiter/amazone | D8: Paard/pony | E8: kl. | F8: vereniging | G8: Ring | H8: pnt.C | I8: pnt.H | J8: pnt.tot | K8: ex 1 | L8: ex 2 | M8: pl. | N8: pl.p. | O8: Ring | P8: pnt.C | Q8: pnt.H | R8: pnt.tot. | S8: ex 1 | T8: ex 2 | U8: pl. | V8: pl.p. | W8: Ring | X8: pnt.C | Y8: pnt. H | Z8: pnt.tot. | AA8: ex 1 | AB8: ex 2 | AC8: pl. | AD8: pl.p. | AE8: Ring | AF8: pnt.C | AG8: pnt.H | AH8: pnt.tot. | AI8: ex 1 | AJ8: ex 2 | AK8: pl. | AL8: pl.p. | AM8: Ring | AN8: pnt.C | AO8: pnt.H | AP8: pnt.tot. | AQ8: ex 1 | AR8: ex 2 | AS8: pl. | AT8: pl.p. | AU8: Ring | AV8: pnt.C | AW8: pnt.H | AX8: pnt.tot. | AY8: ex 1 | AZ8: ex 2 | BA8: pl. | BB8: pl.p. | BC8: pl.pnt | BD8: punten | BE8: pl.pnt | BF8: pl.pnt | BG8: punten | BH8: punten | BI8: pl.pnt | BJ8: punten | BK8: Afv. | BL8: Res. | BM8: Afv. Regio | BN8: opmerking

Sheet M2 (hidden)
A1: Selectie uitslagen
C2: 1 | D2: =FLOOR((C2+3)/4,1) -> 1 | H2: 192 | I2: 190 | J2: =H2+I2 -> 382 | N2: 1 | P2: 193 | Q2: 193 | R2: =P2+Q2 -> 386 | V2: 2 | X2: 198 | Y2: 198 | Z2: =X2+Y2 -> 396 | AD2: 3 | AF2: 177 | AG2: 177 | AH2: =AF2+AG2 -> 354 | AL2: 4 | AN2: 178 | AO2: 178 | AP2: =AN2+AO2 -> 356 | AT2: 5 | AV2: 179 | AW2: 179 | AX2: =AV2+AW2 -> 358 | BB2: 6 | BC2: =N2+V2+AD2+AL2+AT2+BB2 -> 21 | BD2: =J2+R2+Z2+AH2+AP2+AX2 -> 2232 | BE2: =IF($O$4>0,(LARGE(($N2,$V2,$AD2,$AL2,$AT2,$BB2),1)),"0") -> 6 | BF2: =IF($O$4>0,(LARGE(($N2,$V2,$AD2,$AL2,$AT2,$BB2),2)),"0") -> 5 | BG2: 354 | BH2: 354 | BI2: =BC2-BE2-BF2 -> 10 | BJ2: =BD2-BG2-BH2 -> 1524
A3: Kring: | C3: =Instellingen!B3 -> Selectie Subtop | F3: Aantal afvaardiging Regio: | BC3: Aantal wedstrijden: | BL3: =Instellingen!B6 -> 3
A4: Klasse: | C4: M2 | F4: Aantal afval resultaten: | O4: =Instellingen!B7 -> 1
A5: Cat.: | F5: Plaatsingspunten niet gestart: | O5: =Instellingen!B5 -> 99 | BC5: Aantal reserves: | BL5: 2
F6: Lokatie: | G6: =Instellingen!B36 -> Delft/Werkendam/Harich | O6: =Instellingen!B37 -> uden/Emmeloord/Den Hoorn | W6: =Instellingen!B38 -> Nw. en St. Joosland/Boxtel/Bunschoten-Spakenburg | AE6: =Instellingen!B39 ->  | AM6: =Instellingen!B40 ->  | AU6: =Instellingen!B41 ->  | BC6: Dressuur | BI6: Pnt. 60% regel | BL6: 180
F7: Datum: | G7: =Instellingen!C36 -> 18 & 19 -11-2017 | O7: =Instellingen!C37 -> 16 & 17 -12 -2017 | W7: =Instellingen!C38 -> 20 en 21-1-2018 | AE7: =Instellingen!C39 ->  | AM7: =Instellingen!C40 ->  | AU7: =Instellingen!C41 ->  | BC7: Tot. | BD7: Tot. | BE7: afval | BF7: afval | BG7: afval | BH7: afval | BI7: Beste | BJ7: Beste
A8: Pl. | B8: Comb.nr. | C8: Ruiter/amazone | D8: Paard/pony | E8: kl. | F8: vereniging | G8: Ring | H8: pnt.C | I8: pnt.H | J8: pnt.tot | K8: ex 1 | L8: ex 2 | M8: pl. | N8: pl.p. | O8: Ring | P8: pnt.C | Q8: pnt.H | R8: pnt.tot. | S8: ex 1 | T8: ex 2 | U8: pl. | V8: pl.p. | W8: Ring | X8: pnt.C | Y8: pnt. H | Z8: pnt.tot. | AA8: ex 1 | AB8: ex 2 | AC8: pl. | AD8: pl.p. | AE8: Ring | AF8: pnt.C | AG8: pnt.H | AH8: pnt.tot. | AI8: ex 1 | AJ8: ex 2 | AK8: pl. | AL8: pl.p. | AM8: Ring | AN8: pnt.C | AO8: pnt.H | AP8: pnt.tot. | AQ8: ex 1 | AR8: ex 2 | AS8: pl. | AT8: pl.p. | AU8: Ring | AV8: pnt.C | AW8: pnt.H | AX8: pnt.tot. | AY8: ex 1 | AZ8: ex 2 | BA8: pl. | BB8: pl.p. | BC8: pl.pnt | BD8: punten | BE8: pl.pnt | BF8: pl.pnt | BG8: punten | BH8: punten | BI8: pl.pnt | BJ8: punten | BK8: Afv. | BL8: Res. | BM8: Afv. Regio | BN8: opmerking

Sheet M1 - M2 (hidden)
A1: Selectie uitslagen
C2: 1 | D2: =FLOOR((C2+3)/4,1) -> 1 | G2: 192 | H2: 192 | I2: 190 | J2: =H2+I2 -> 382 | N2: 1 | O2: 193 | P2: 193 | Q2: 193 | R2: =P2+Q2 -> 386 | V2: 2 | W2: 198 | X2: 198 | Y2: 198 | Z2: =X2+Y2 -> 396 | AD2: 3 | AE2: 177 | AF2: 177 | AG2: 177 | AH2: =AF2+AG2 -> 354 | AL2: 4 | AM2: 178 | AN2: 178 | AO2: 178 | AP2: =AN2+AO2 -> 356 | AT2: 5 | AU2: 179 | AV2: 179 | AW2: 179 | AX2: =AV2+AW2 -> 358 | BB2: 6 | BC2: =N2+V2+AD2+AL2+AT2+BB2 -> 21 | BD2: =J2+R2+Z2+AH2+AP2+AX2 -> 2232 | BE2: =IF($O$4>0,(LARGE(($N2,$V2,$AD2,$AL2,$AT2,$BB2),1)),"0") -> 6 | BF2: =IF($O$4>0,(LARGE(($N2,$V2,$AD2,$AL2,$AT2,$BB2),2)),"0") -> 5 | BG2: 354 | BH2: 354 | BI2: =BC2-BE2-BF2 -> 10 | BJ2: =BD2-BG2-BH2 -> 1524
A3: Kring: | C3: =Instellingen!B3 -> Selectie Subtop | BC3: Aantal wedstrijden: | BL3: =Instellingen!B6 -> 3
A4: Klasse: | C4: M1 - M2 | F4: Aantal afval resultaten: | O4: =Instellingen!B7 -> 1
A5: Cat.: | F5: Plaatsingspunten niet gestart: | O5: =Instellingen!B5 -> 99
F6: Lokatie: | G6: =Instellingen!B36 -> Delft/Werkendam/Harich | O6: =Instellingen!B37 -> uden/Emmeloord/Den Hoorn | W6: =Instellingen!B38 -> Nw. en St. Joosland/Boxtel/Bunschoten-Spakenburg | AE6: =Instellingen!B39 ->  | AM6: =Instellingen!B40 ->  | AU6: =Instellingen!B41 ->  | BC6: Dressuur
F7: Datum: | G7: =Instellingen!C36 -> 18 & 19 -11-2017 | O7: =Instellingen!C37 -> 16 & 17 -12 -2017 | W7: =Instellingen!C38 -> 20 en 21-1-2018 | AE7: =Instellingen!C39 ->  | AM7: =Instellingen!C40 ->  | AU7: =Instellingen!C41 ->  | BC7: Tot. | BD7: Tot. | BE7: afval | BF7: afval | BG7: afval | BH7: afval | BI7: Beste | BJ7: Beste
A8: Pl. | B8: Comb.nr. | C8: Ruiter/amazone | D8: Paard/pony | E8: kl. | F8: vereniging | G8: Ring | H8: pnt.C | I8: pnt.H | J8: pnt.tot | K8: ex 1 | L8: ex 2 | M8: pl. | N8: pl.p. | O8: Ring | P8: pnt.C | Q8: pnt.H | R8: pnt.tot. | S8: ex 1 | T8: ex 2 | U8: pl. | V8: pl.p. | W8: Ring | X8: pnt.C | Y8: pnt. H | Z8: pnt.tot. | AA8: ex 1 | AB8: ex 2 | AC8: pl. | AD8: pl.p. | AE8: Ring | AF8: pnt.C | AG8: pnt.H | AH8: pnt.tot. | AI8: ex 1 | AJ8: ex 2 | AK8: pl. | AL8: pl.p. | AM8: Ring | AN8: pnt.C | AO8: pnt.H | AP8: pnt.tot. | AQ8: ex 1 | AR8: ex 2 | AS8: pl. | AT8: pl.p. | AU8: Ring | AV8: pnt.C | AW8: pnt.H | AX8: pnt.tot. | AY8: ex 1 | AZ8: ex 2 | BA8: pl. | BB8: pl.p. | BC8: pl.pnt | BD8: punten | BE8: pl.pnt | BF8: pl.pnt | BG8: punten | BH8: punten | BI8: pl.pnt | BJ8: punten | BK8: Afv. | BL8: Res. | BN8: opmerking

Sheet Z1 (hidden)
A1: Selectie uitslagen
C2: 1 | D2: =FLOOR((C2+3)/4,1) -> 1 | H2: 192 | I2: 190 | J2: =H2+I2 -> 382 | N2: 1 | P2: 193 | Q2: 193 | R2: =P2+Q2 -> 386 | V2: 2 | X2: 198 | Y2: 198 | Z2: =X2+Y2 -> 396 | AD2: 3 | AF2: 177 | AG2: 177 | AH2: =AF2+AG2 -> 354 | AL2: 4 | AN2: 178 | AO2: 178 | AP2: =AN2+AO2 -> 356 | AT2: 5 | AV2: 179 | AW2: 179 | AX2: =AV2+AW2 -> 358 | BB2: 6 | BC2: =N2+V2+AD2+AL2+AT2+BB2 -> 21 | BD2: =J2+R2+Z2+AH2+AP2+AX2 -> 2232 | BE2: =IF($O$4>0,(LARGE(($N2,$V2,$AD2,$AL2,$AT2,$BB2),1)),"0") -> 6 | BF2: =IF($O$4>0,(LARGE(($N2,$V2,$AD2,$AL2,$AT2,$BB2),2)),"0") -> 5 | BG2: 354 | BH2: 354 | BI2: =BC2-BE2-BF2 -> 10 | BJ2: =BD2-BG2-BH2 -> 1524
A3: Kring: | C3: =Instellingen!B3 -> Selectie Subtop | F3: Aantal afvaardiging Regio: | BC3: Aantal wedstrijden: | BL3: =Instellingen!B6 -> 3
A4: Klasse: | C4: Z1 | F4: Aantal afval resultaten: | O4: =Instellingen!B7 -> 1
A5: Cat.: | F5: Plaatsingspunten niet gestart: | O5: =Instellingen!B5 -> 99 | BC5: Aantal reserves: | BL5: 2
F6: Lokatie: | G6: =Instellingen!B36 -> Delft/Werkendam/Harich | O6: =Instellingen!B37 -> uden/Emmeloord/Den Hoorn | W6: =Instellingen!B38 -> Nw. en St. Joosland/Boxtel/Bunschoten-Spakenburg | AE6: =Instellingen!B39 ->  | AM6: =Instellingen!B40 ->  | AU6: =Instellingen!B41 ->  | BC6: Dressuur | BI6: Pnt. 60% regel | BL6: 204
F7: Datum: | G7: =Instellingen!C36 -> 18 & 19 -11-2017 | O7: =Instellingen!C37 -> 16 & 17 -12 -2017 | W7: =Instellingen!C38 -> 20 en 21-1-2018 | AE7: =Instellingen!C39 ->  | AM7: =Instellingen!C40 ->  | AU7: =Instellingen!C41 ->  | BC7: Tot. | BD7: Tot. | BE7: afval | BF7: afval | BG7: afval | BH7: afval | BI7: Beste | BJ7: Beste
A8: Pl. | B8: Comb.nr. | C8: Ruiter/amazone | D8: Paard/pony | E8: kl. | F8: vereniging | G8: Ring | H8: pnt.C | I8: pnt.H | J8: pnt.tot | K8: ex 1 | L8: ex 2 | M8: pl. | N8: pl.p. | O8: Ring | P8: pnt.C | Q8: pnt.H | R8: pnt.tot. | S8: ex 1 | T8: ex 2 | U8: pl. | V8: pl.p. | W8: Ring | X8: pnt.C | Y8: pnt. H | Z8: pnt.tot. | AA8: ex 1 | AB8: ex 2 | AC8: pl. | AD8: pl.p. | AE8: Ring | AF8: pnt.C | AG8: pnt.H | AH8: pnt.tot. | AI8: ex 1 | AJ8: ex 2 | AK8: pl. | AL8: pl.p. | AM8: Ring | AN8: pnt.C | AO8: pnt.H | AP8: pnt.tot. | AQ8: ex 1 | AR8: ex 2 | AS8: pl. | AT8: pl.p. | AU8: Ring | AV8: pnt.C | AW8: pnt.H | AX8: pnt.tot. | AY8: ex 1 | AZ8: ex 2 | BA8: pl. | BB8: pl.p. | BC8: pl.pnt | BD8: punten | BE8: pl.pnt | BF8: pl.pnt | BG8: punten | BH8: punten | BI8: pl.pnt | BJ8: punten | BK8: Afv. | BL8: Res. | BM8: Afv. Regio | BN8: opmerking

Sheet Z2 (hidden)
A1: Selectie uitslagen
C2: 1 | D2: =FLOOR((C2+3)/4,1) -> 1 | H2: 192 | I2: 190 | J2: =H2+I2 -> 382 | N2: 1 | P2: 193 | Q2: 193 | R2: =P2+Q2 -> 386 | V2: 2 | X2: 198 | Y2: 198 | Z2: =X2+Y2 -> 396 | AD2: 3 | AF2: 177 | AG2: 177 | AH2: =AF2+AG2 -> 354 | AL2: 4 | AN2: 178 | AO2: 178 | AP2: =AN2+AO2 -> 356 | AT2: 5 | AV2: 179 | AW2: 179 | AX2: =AV2+AW2 -> 358 | BB2: 6 | BC2: =N2+V2+AD2+AL2+AT2+BB2 -> 21 | BD2: =J2+R2+Z2+AH2+AP2+AX2 -> 2232 | BE2: =IF($O$4>0,(LARGE(($N2,$V2,$AD2,$AL2,$AT2,$BB2),1)),"0") -> 6 | BF2: =IF($O$4>0,(LARGE(($N2,$V2,$AD2,$AL2,$AT2,$BB2),2)),"0") -> 5 | BG2: 354 | BH2: 354 | BI2: =BC2-BE2-BF2 -> 10 | BJ2: =BD2-BG2-BH2 -> 1524
A3: Kring: | C3: =Instellingen!B3 -> Selectie Subtop | F3: Aantal afvaardiging Regio: | BC3: Aantal wedstrijden: | BL3: =Instellingen!B6 -> 3
A4: Klasse: | C4: Z2 | F4: Aantal afval resultaten: | O4: =Instellingen!B7 -> 1
A5: Cat.: | F5: Plaatsingspunten niet gestart: | O5: =Instellingen!B5 -> 99 | BC5: Aantal reserves: | BL5: 2
F6: Lokatie: | G6: =Instellingen!B36 -> Delft/Werkendam/Harich | O6: =Instellingen!B37 -> uden/Emmeloord/Den Hoorn | W6: =Instellingen!B38 -> Nw. en St. Joosland/Boxtel/Bunschoten-Spakenburg | AE6: =Instellingen!B39 ->  | AM6: =Instellingen!B40 ->  | AU6: =Instellingen!B41 ->  | BC6: Dressuur | BI6: Pnt. 60% regel | BL6: 204
F7: Datum: | G7: =Instellingen!C36 -> 18 & 19 -11-2017 | O7: =Instellingen!C37 -> 16 & 17 -12 -2017 | W7: =Instellingen!C38 -> 20 en 21-1-2018 | AE7: =Instellingen!C39 ->  | AM7: =Instellingen!C40 ->  | AU7: =Instellingen!C41 ->  | BC7: Tot. | BD7: Tot. | BE7: afval | BF7: afval | BG7: afval | BH7: afval | BI7: Beste | BJ7: Beste
A8: Pl. | B8: Comb.nr. | C8: Ruiter/amazone | D8: Paard/pony | E8: kl. | F8: vereniging | G8: Ring | H8: pnt.C | I8: pnt.H | J8: pnt.tot | K8: ex 1 | L8: ex 2 | M8: pl. | N8: pl.p. | O8: Ring | P8: pnt.C | Q8: pnt.H | R8: pnt.tot. | S8: ex 1 | T8: ex 2 | U8: pl. | V8: pl.p. | W8: Ring | X8: pnt.C | Y8: pnt. H | Z8: pnt.tot. | AA8: ex 1 | AB8: ex 2 | AC8: pl. | AD8: pl.p. | AE8: Ring | AF8: pnt.C | AG8: pnt.H | AH8: pnt.tot. | AI8: ex 1 | AJ8: ex 2 | AK8: pl. | AL8: pl.p. | AM8: Ring | AN8: pnt.C | AO8: pnt.H | AP8: pnt.tot. | AQ8: ex 1 | AR8: ex 2 | AS8: pl. | AT8: pl.p. | AU8: Ring | AV8: pnt.C | AW8: pnt.H | AX8: pnt.tot. | AY8: ex 1 | AZ8: ex 2 | BA8: pl. | BB8: pl.p. | BC8: pl.pnt | BD8: punten | BE8: pl.pnt | BF8: pl.pnt | BG8: punten | BH8: punten | BI8: pl.pnt | BJ8: punten | BK8: Afv. | BL8: Res. | BM8: Afv. Regio | BN8: opmerking

Sheet ZZL (hidden)
A1: Selectie uitslagen
C2: 1 | D2: =FLOOR((C2+3)/4,1) -> 1 | H2: 192 | I2: 190 | J2: =H2+I2 -> 382 | N2: 1 | P2: 193 | Q2: 193 | R2: =P2+Q2 -> 386 | V2: 2 | X2: 198 | Y2: 198 | Z2: =X2+Y2 -> 396 | AD2: 3 | AF2: 177 | AG2: 177 | AH2: =AF2+AG2 -> 354 | AL2: 4 | AN2: 178 | AO2: 178 | AP2: =AN2+AO2 -> 356 | AT2: 5 | AV2: 179 | AW2: 179 | AX2: =AV2+AW2 -> 358 | BB2: 6 | BC2: =N2+V2+AD2+AL2+AT2+BB2 -> 21 | BD2: =J2+R2+Z2+AH2+AP2+AX2 -> 2232 | BE2: =IF($O$4>0,(LARGE(($N2,$V2,$AD2,$AL2,$AT2,$BB2),1)),"0") -> 6 | BF2: =IF($O$4>0,(LARGE(($N2,$V2,$AD2,$AL2,$AT2,$BB2),2)),"0") -> 5 | BG2: 354 | BH2: 354 | BI2: =BC2-BE2-BF2 -> 10 | BJ2: =BD2-BG2-BH2 -> 1524
A3: Kring: | C3: =Instellingen!B3 -> Selectie Subtop | F3: Aantal afvaardiging Regio: | BC3: Aantal wedstrijden: | BL3: =Instellingen!B6 -> 3
A4: Klasse: | C4: ZZL | F4: Aantal afval resultaten: | O4: =Instellingen!B7 -> 1
A5: Cat.: | F5: Plaatsingspunten niet gestart: | O5: =Instellingen!B5 -> 99 | BC5: Aantal reserves: | BL5: 2
F6: Lokatie: | G6: =Instellingen!B36 -> Delft/Werkendam/Harich | O6: =Instellingen!B37 -> uden/Emmeloord/Den Hoorn | W6: =Instellingen!B38 -> Nw. en St. Joosland/Boxtel/Bunschoten-Spakenburg | AE6: =Instellingen!B39 ->  | AM6: =Instellingen!B40 ->  | AU6: =Instellingen!B41 ->  | BC6: Dressuur | BI6: Pnt. 60% regel | BL6: 210
F7: Datum: | G7: =Instellingen!C36 -> 18 & 19 -11-2017 | O7: =Instellingen!C37 -> 16 & 17 -12 -2017 | W7: =Instellingen!C38 -> 20 en 21-1-2018 | AE7: =Instellingen!C39 ->  | AM7: =Instellingen!C40 ->  | AU7: =Instellingen!C41 ->  | BC7: Tot. | BD7: Tot. | BE7: afval | BF7: afval | BG7: afval | BH7: afval | BI7: Beste | BJ7: Beste
A8: Pl. | B8: Comb.nr. | C8: Ruiter/amazone | D8: Paard/pony | E8: kl. | F8: vereniging | G8: Ring | H8: pnt.C | I8: pnt.H | J8: pnt.tot | K8: ex 1 | L8: ex 2 | M8: pl. | N8: pl.p. | O8: Ring | P8: pnt.C | Q8: pnt.H | R8: pnt.tot. | S8: ex 1 | T8: ex 2 | U8: pl. | V8: pl.p. | W8: Ring | X8: pnt.C | Y8: pnt. H | Z8: pnt.tot. | AA8: ex 1 | AB8: ex 2 | AC8: pl. | AD8: pl.p. | AE8: Ring | AF8: pnt.C | AG8: pnt.H | AH8: pnt.tot. | AI8: ex 1 | AJ8: ex 2 | AK8: pl. | AL8: pl.p. | AM8: Ring | AN8: pnt.C | AO8: pnt.H | AP8: pnt.tot. | AQ8: ex 1 | AR8: ex 2 | AS8: pl. | AT8: pl.p. | AU8: Ring | AV8: pnt.C | AW8: pnt.H | AX8: pnt.tot. | AY8: ex 1 | AZ8: ex 2 | BA8: pl. | BB8: pl.p. | BC8: pl.pnt | BD8: punten | BE8: pl.pnt | BF8: pl.pnt | BG8: punten | BH8: punten | BI8: pl.pnt | BJ8: punten | BK8: Afv. | BL8: Res. | BM8: Afv. Regio | BN8: opmerking

Sheet Z1 - Z2 (hidden)
A1: Selectie uitslagen
C2: 1 | D2: =FLOOR((C2+3)/4,1) -> 1 | G2: 192 | H2: 192 | I2: 190 | J2: =H2+I2 -> 382 | N2: 1 | O2: 193 | P2: 193 | Q2: 193 | R2: =P2+Q2 -> 386 | V2: 2 | W2: 198 | X2: 198 | Y2: 198 | Z2: =X2+Y2 -> 396 | AD2: 3 | AE2: 177 | AF2: 177 | AG2: 177 | AH2: =AF2+AG2 -> 354 | AL2: 4 | AM2: 178 | AN2: 178 | AO2: 178 | AP2: =AN2+AO2 -> 356 | AT2: 5 | AU2: 179 | AV2: 179 | AW2: 179 | AX2: =AV2+AW2 -> 358 | BB2: 6 | BC2: =N2+V2+AD2+AL2+AT2+BB2 -> 21 | BD2: =J2+R2+Z2+AH2+AP2+AX2 -> 2232 | BE2: =IF($O$4>0,(LARGE(($N2,$V2,$AD2,$AL2,$AT2,$BB2),1)),"0") -> 6 | BF2: =IF($O$4>0,(LARGE(($N2,$V2,$AD2,$AL2,$AT2,$BB2),2)),"0") -> 5 | BG2: 354 | BH2: 354 | BI2: =BC2-BE2-BF2 -> 10 | BJ2: =BD2-BG2-BH2 -> 1524
A3: Kring: | C3: =Instellingen!B3 -> Selectie Subtop | BC3: Aantal wedstrijden: | BL3: =Instellingen!B6 -> 3
A4: Klasse: | C4: Z1 - Z2 | F4: Aantal afval resultaten: | O4: =Instellingen!B7 -> 1
A5: Cat.: | F5: Plaatsingspunten niet gestart: | O5: =Instellingen!B5 -> 99
F6: Lokatie: | G6: =Instellingen!B36 -> Delft/Werkendam/Harich | O6: =Instellingen!B37 -> uden/Emmeloord/Den Hoorn | W6: =Instellingen!B38 -> Nw. en St. Joosland/Boxtel/Bunschoten-Spakenburg | AE6: =Instellingen!B39 ->  | AM6: =Instellingen!B40 ->  | AU6: =Instellingen!B41 ->  | BC6: Dressuur
F7: Datum: | G7: =Instellingen!C36 -> 18 & 19 -11-2017 | O7: =Instellingen!C37 -> 16 & 17 -12 -2017 | W7: =Instellingen!C38 -> 20 en 21-1-2018 | AE7: =Instellingen!C39 ->  | AM7: =Instellingen!C40 ->  | AU7: =Instellingen!C41 ->  | BC7: Tot. | BD7: Tot. | BE7: afval | BF7: afval | BG7: afval | BH7: afval | BI7: Beste | BJ7: Beste
A8: Pl. | B8: Comb.nr. | C8: Ruiter/amazone | D8: Paard/pony | E8: kl. | F8: vereniging | G8: Ring | H8: pnt.C | I8: pnt.H | J8: pnt.tot | K8: ex 1 | L8: ex 2 | M8: pl. | N8: pl.p. | O8: Ring | P8: pnt.C | Q8: pnt.H | R8: pnt.tot. | S8: ex 1 | T8: ex 2 | U8: pl. | V8: pl.p. | W8: Ring | X8: pnt.C | Y8: pnt. H | Z8: pnt.tot. | AA8: ex 1 | AB8: ex 2 | AC8: pl. | AD8: pl.p. | AE8: Ring | AF8: pnt.C | AG8: pnt.H | AH8: pnt.tot. | AI8: ex 1 | AJ8: ex 2 | AK8: pl. | AL8: pl.p. | AM8: Ring | AN8: pnt.C | AO8: pnt.H | AP8: pnt.tot. | AQ8: ex 1 | AR8: ex 2 | AS8: pl. | AT8: pl.p. | AU8: Ring | AV8: pnt.C | AW8: pnt.H | AX8: pnt.tot. | AY8: ex 1 | AZ8: ex 2 | BA8: pl. | BB8: pl.p. | BC8: pl.pnt | BD8: punten | BE8: pl.pnt | BF8: pl.pnt | BG8: punten | BH8: punten | BI8: pl.pnt | BJ8: punten | BK8: Afv. | BL8: Res. | BN8: opmerking

Sheet Kampioenen (hidden)
A1: Regio Kampioenen
G2: FALSE | H2: FALSE
A3: Kring: | B3: =Instellingen!B3 -> Selectie Subtop | E3: Handicap: | H3: Aantal per klasse: | J3: 20
A4: Volgnr. | B4: Comb.nr. | C4: Ruiter/amazone | D4: Paard/pony | E4: Klasse | F4: Cat. | G4: Vereniging | H4: Totaal beste | I4: Totaal perc. | J4: Totaal pl.pnt. | K4: Opmerking
C7: Klasse: ZZZ
C9: Klasse: LT

Sheet Diversen (hidden)
A1: Selectie wedstrijd
C2: 48 | D2: =FLOOR((C2+3)/4,1) -> 12 | H2: 192 | I2: 190 | J2: =H2+I2 -> 382
A3: Kring: | C3: =Instellingen!B3 -> Selectie Subtop | E3: Wedstrijd nummer: | H3: 4
A6: Import gegevens
A8: Pl. | B8: Comb.nr. | C8: Ruiter/amazone | D8: Paard/pony | E8: klasse | F8: cat. | G8: vereniging | H8: pnt.C | I8: pnt.H | J8: pnt.tot | K8: ex 1 | L8: ex 2 | M8: perc. | N8: opmerking

Sheet Instellingen (hidden)
B1: Waarde | C1: Opmerking
A2: Gegevens:
A3: Naam van de Kring: | B3: Selectie Subtop
A4: Interval plaatsingspunten: | B4: 1 | C4: 1=(1,2,3,etc) / 2=(1,3,5,etc)
A5: Plaatsingspunten niet gestart: | B5: 99
A6: Aantal selectie wedstrijden: | B6: 3
A7: Aantal afval resultaten: | B7: 1
A8: Aantal jury's: | B8: 2
A9: Ex-aequo punten per wedstrijd | B9: 1 | C9: 1=ja / 0=nee
A10: Plaatsingspunten niet gefinisht | B10: 90 | C10: Blanko is volgens plaatsing
A11: Minimum aantal starts | C11: Blanko is niet van toepassing
A12: Plaatsingspunten te weinig starts | C12: Blanko of minimum is blanko niet corrigeren
A13: Afvaardiging Regiokampioenschappen | C13: Aanmelden, Afmelden, Blanko is iedereen
A14: Klasse Z1-Z2 cat. CDE samenvoegen | B14: Nee
A15: Klasse L1-L2 cat. AB samenvoegen | B15: Nee
A17: Klasse BB verbergen | B17: Nee
A18: Tabbladen B, L1-L2, M1-M2, Z1-Z2 nodig | B18: Nee
A23: Volgorde ex-aequo regeling: | C23: (De laagste waarde heeft voorrang, niet ingevulde gegevens doen niet mee voor de volgorde van het resultaat)
A24: Totaal beste plaatsingspunten: | B24: 1 | C24: (dit is een vaste waarde en heeft de hoogste voorrang)
A25: Plaatsingspunten 6e wedstrijd: | B25: 2
A26: Plaatsingspunten 5e wedstrijd: | B26: 3
A27: Plaatsingspunten 4e wedstrijd: | B27: 4
A28: Plaatsingspunten 3e wedstrijd: | B28: 5
A29: Plaatsingspunten 2e wedstrijd: | B29: 6
A30: Plaatsingspunten 1e wedstrijd: | B30: 7
A31: Totaal alle plaatsingspunten:
A32: Totaal behaalde punten beste wedstrijden:
A33: Totaal behaalde punten alle wedstrijden:
A35: Omschrijving | B35: Lokatie | C35: Datum
A36: 1e wedstrijd | B36: Delft/Werkendam/Harich | C36: 18 & 19 -11-2017
A37: 2e wedstrijd | B37: uden/Emmeloord/Den Hoorn | C37: 16 & 17 -12 -2017
A38: 3e wedstrijd | B38: Nw. en St. Joosland/Boxtel/Bunschoten-Spakenburg | C38: 20 en 21-1-2018
A39: 4e wedstrijd
A40: 5e wedstrijd
A41: 6e wedstrijd

Sheet Afvaardiging
A1: Afvaardiging aan de KNHS- Kampioenschappen
A3: Kring: | B3: =Instellingen!B3 -> Selectie Subtop | E3: Dressuur
A4: Volgnr. | B4: Comb.nr. | C4: Ruiter/amazone | D4: Paard/pony | E4: Klasse | F4: Cat. | G4: Vereniging | H4: Opmerking
C6: Klasse: ZZZ | D6: Afvaardiging: 16
A7: 1 | B7: 810857SB | C7: Kirsten Brouwer | D7: Sultan des Paluds | E7: ZZ | G7: Voornruiters, RV. De
A8: 2 | B8: 800195GN | C8: Jeanine Nieuwenhuis | D8: Genua TC | E8: ZZ | G8: Oud-beijerland, RV.
A9: 3 | B9: 779962CB | C9: Vai Bruntink | D9: Cum Laude | E9: ZZ | G9: Neta, RV.
A10: 4 | B10: 784250GS | C10: Jennifer Sekreve | D10: Gamante d | E10: ZZ | G10: Oost-Veluwse R.J.V., RV.
A11: 5 | B11: 753827GS | C11: Jonna Schelstraete - Van den Ham | D11: Grand-charmeur | E11: ZZ | G11: Jacobus, RV.
A12: 6 | B12: 693466VV | C12: Suzanne Van de Ven | D12: Vdv D'avicci | E12: ZZ | G12: Vereniging Eindhovense Manege, RV.
A13: 7 | B13: 818550TV | C13: Tommie van Puijenbroek - Visser | D13: TOP's Gentle | E13: ZZ | G13: Goirle, RV.
A14: 8 | B14: 826261ED | C14: Mark Van de Donk | D14: Duppie | E14: ZZ | G14: Srjv Groenendaal, RV.
A15: 9 | B15: 742845FE | C15: Petra Van Esch | D15: Fifty Fifty | E15: ZZ | G15: Lambertus, RV.
A16: 10 | B16: 784738HG | C16: Marijke Van Giesen | D16: Hexagon's Furious | E16: ZZ | G16: Hexagon B.V., Stal
A17: 11 | B17: 787940HZ | C17: Thamar Zweistra | D17: Hexagon's Filamanda | E17: ZZ | G17: Hexagon B.V., Stal
A18: 12 | B18: 832336HH | C18: Danielle Heijkoop | D18: Damirez | E18: ZZ | G18: Zwethruiters, RV.
A19: 13 | B19: 787586ZW | C19: Merel Van Wallenburg | D19: Zip | E19: ZZ | G19: Sé-ros, RV.
A20: 14 | B20: 665782DS | C20: Romy Van der Schaft | D20: Diva Dvb | E20: ZZ | G20: WWNA, RV.
A21: 15 | B21: 682458FW | C21: Katie Werring | D21: Francois | E21: ZZ | G21: Voornruiters, RV. De
A22: 16 | B22: 642952DV | C22: Natascha Veen | D22: Damoiselle | E22: ZZ | G22: Drentse Hooglanden, RV.
A23: 1e Res. | B23: 803057BH | C23: Geert Hofland | D23: Blaze | E23: ZZ | G23: Boreftse Ruiters, RV.
A24: 2e Res. | B24: 678585EE | C24: Lotte Van Engelen | D24: Experience | E24: ZZ | G24: s-Gravenhof, RV.
A25: 3e Res. | B25: 717759DP | C25: Joelle Peters | D25: Dacar's Dream | E25: ZZ | G25: Hoefke (HSV), RV.
A26: 4e Res. | B26: 832904FV | C26: Tommie van Puijenbroek - Visser | D26: Fanatique Begijnhoeve | E26: ZZ | G26: Goirle, RV.
A27: 5e Res. | B27: 828718EK | C27: Paulette Kral | D27: El dorado | E27: ZZ | G27: Hoeve Westland Ruiters, RV.
A28: 6e Res. | B28: 728367BJ | C28: Fabienne Jongen | D28: Botticelli | E28: ZZ | G28: Hubertus, RV.
A29: 7e Res. | B29: 786394DL | C29: Corinda Luttjeboer | D29: Da Vinci Sollenburg DC | E29: ZZ | G29: Schaapskooiruiters, RV.
A30: 8e Res. | B30: 683505CH | C30: Patty Hanssen | D30: Cliff | E30: ZZ | G30: Wittenhorst, RV.
A31: 9e Res. | B31: 705515FZ | C31: Zoë Zwiggelaar | D31: Fidarsi Rossi | E31: ZZ | G31: Drentse Hooglanden, RV.
A32: 10e Res. | B32: 765016FW | C32: Wenda Welten | D32: Firefly | E32: ZZ | G32: PPH Horstdravers, RV.
C34: Klasse: LT | D34: Afvaardiging: 20
A35: 1 | B35: 725894RL | C35: Robin Van Lierop | D35: Finja | E35: LT | G35: Ewijk, RV.
A36: 2 | B36: 765172FC | C36: Adelinde Cornelissen | D36: Fleau de Baian | E36: LT | G36: Stroomruiters, RV.
A37: 3 | B37: 660566EC | C37: Ilse Van Cranenbroek | D37: Emerald S | E37: LT | G37: Molenhorst, RV. De
A38: 4 | B38: 808868DH | C38: Danielle Heijkoop | D38: Daula II | E38: LT | G38: Zwethruiters, RV.
A39: 5 | B39: 783238FV | C39: Mara De Vries | D39: Farzana G | E39: LT | G39: Biesboschruiters, RV.
A40: 6 | B40: 743085EK | C40: Jasmien De Koeyer | D40: Esperanza | E40: LT | G40: Oud-beijerland, RV.
A41: 7 | B41: 675384SS | C41: Jennifer Sekreve | D41: San Siro | E41: LT | G41: Oost-Veluwse R.J.V., RV.
A42: 8 | B42: 807344DV | C42: Mara De Vries | D42: Dornenstern | E42: LT | G42: Biesboschruiters, RV.
A43: 9 | B43: 805186DS | C43: Diederik Van Silfhout | D43: Dahlhoff | E43: LT | G43: Valouwe, RV.
A44: 10 | B44: 703415FR | C44: Veronique Roerink | D44: Flanell | E44: LT | G44: Drentse Hooglanden, RV.
A45: 11 | B45: 732828EB | C45: Sandy Van Boxmeer - Westerhuis | D45: Earth Wind and Fire | E45: LT | G45: Hoefslag, RV.
A46: 12 | B46: 829992EZ | C46: Thamar Zweistra | D46: Erina | E46: LT | G46: Hexagon B.V., Stal
A47: 13 | B47: 812924DH | C47: Kebie Van der Heijden | D47: Don Diego | E47: LT | G47: Equinus Stramproy, RV.
A48: 14 | B48: 825460FM | C48: Lynne Maas | D48: Fantastique | E48: LT | G48: t Einde, RV.
A49: 15 | B49: 732829FB | C49: Sandy Van Boxmeer - Westerhuis | D49: Figaro | E49: LT | G49: Hoefslag, RV.
A50: 16 | B50: 817045EH | C50: Danielle Houtvast | D50: Entertainer | E50: LT | G50: Katsbekruiters, RV.
A51: 17 | B51: 800786SS | C51: Diederik Van Silfhout | D51: Scenario 2 | E51: LT | G51: Valouwe, RV.
A52: 18 | B52: 681336DB | C52: Vai Bruntink | D52: Darabel | E52: LT | G52: Neta, RV.
A53: 19 | B53: 789483JV | C53: Linda Verwaal | D53: Jakari 2 | E53: LT | G53: Horstlinde, RV.
A54: 20 | B54: 832061PO | C54: Philip Van Ommen | D54: President's Denver | E54: LT | G54: Hoeve Westland Ruiters, RV.
A55: 1e Res. | B55: 754413OZ | C55: Thamar Zweistra | D55: Oldi 67 | E55: LT | G55: Hexagon B.V., Stal
A56: 2e Res. | B56: 666136DE | C56: Eline Van Egmond | D56: Duvall | E56: LT | G56: Zuid-Hollandsche J.V., RV.
A57: 3e Res. | B57: 766811DV | C57: Sanne Voets | D57: Demantur N.O.P. | E57: LT | G57: St. Martinus, RV.
A58: 4e Res. | B58: 799045BD | C58: Mark Van de Donk | D58: Belcanto | E58: LT | G58: Srjv Groenendaal, RV.
A59: 5e Res. | B59: 721458DW | C59: Myrthe Wedda | D59: Diamond Geezer | E59: LT | G59: Voornruiters, RV. De
A60: 6e Res. | B60: 644523BB | C60: Vincent Bol | D60: Baltimore | E60: LT | G60: Walcheren, RV.
A61: 7e Res. | B61: 640138WS | C61: Jenny Schreven | D61: Wings H | E61: LT | G61: Jasmijnruiters, RV.
A62: 8e Res. | B62: 675747EW | C62: Wilma Wernsen | D62: Estupendo | E62: LT | G62: Srjv Groenendaal, RV.
A63: 9e Res. | B63: 598024BH | C63: Jacinta Hemmen | D63: Burghgraef | E63: LT | G63: Bathmen e.o., RV.
A64: 10e Res. | B64: 639242BR | C64: Gabrielle Röst - de Groot | D64: Bibi Vita | E64: LT | G64: Stroe, RV.

Sheet Blad1 (hidden)
A1: 1 | B1: 20
A2: 2 | B2: 17
A3: 3 | B3: 15
A4: 4 | B4: 13
A5: 5 | B5: 12
A6: 6 | B6: 11
A7: 7 | B7: 10
A8: 8 | B8: 9
A9: 9 | B9: 8
A10: 10 | B10: 7
A11: 11 | B11: 6
A12: 12 | B12: 5
A13: 13 | B13: 4
A14: 14 | B14: 3
A15: 15 | B15: 2
A16: 16 | B16: 1
A17: 17 | B17: 0
A18: 18 | B18: 0
A19: 19 | B19: 0
A20: 20 | B20: 0
A21: 21 | B21: 0
A22: 22 | B22: 0
A23: 23 | B23: 0
A24: 24 | B24: 0
A25: 25 | B25: 0
A26: 26 | B26: 0
A27: 27 | B27: 0
A28: 28 | B28: 0
A29: 29 | B29: 0
A30: 30 | B30: 0
A31: 31 | B31: 0
A32: 32 | B32: 0
A33: 33 | B33: 0
A34: 34 | B34: 0
A35: 35 | B35: 0
A36: 36 | B36: 0
A37: 37 | B37: 0
A38: 38 | B38: 0
A39: 39 | B39: 0
A40: 40 | B40: 0
A41: 41 | B41: 0
A42: 42 | B42: 0
A43: 43 | B43: 0
A44: 44 | B44: 0
A45: 45 | B45: 0
A46: 46 | B46: 0
A47: 47 | B47: 0
A48: 48 | B48: 0
A49: 49 | B49: 0
A50: 50 | B50: 0
